Department,Entity,Transaction Date,Expense Type,Expense Area,Supplier,Transaction No.,Amount
"Department for Business, Energy and Industrial Strategy",The Coal Authority,31/10/2023,Applications Consultancy,DIG - Technical Delivery,Cgi It Uk Ltd,167751,"108,616.00"
"Department for Business, Energy and Industrial Strategy",The Coal Authority,27/11/2023,Bank Charges,Finance,Bottomline Technologies D/D,168313,176.66
"Department for Business, Energy and Industrial Strategy",The Coal Authority,10/11/2023,BGS Royalty,Mining Reports,Nerc,167674,"1,939.44"
"Department for Business, Energy and Industrial Strategy",The Coal Authority,27/11/2023,Bridgewater - Contractor Costs,PS&S - General Claims,The Bridgewater Canal Co Ltd,168080,"5,273.41"
"Department for Business, Energy and Industrial Strategy",The Coal Authority,27/11/2023,Bridgewater - Contractor Costs,PS&S - General Claims,The Bridgewater Canal Co Ltd,168082,"19,825.39"
"Department for Business, Energy and Industrial Strategy",The Coal Authority,27/11/2023,Bridgewater - Contractor Costs,PS&S - General Claims,The Bridgewater Canal Co Ltd,168083,768.63
"Department for Business, Energy and Industrial Strategy",The Coal Authority,24/10/2023,Business Entertainment / Hospitality,"Health, Safety & Wellbeing",Government Procurement Card,168348,19
"Department for Business, Energy and Industrial Strategy",The Coal Authority,20/10/2023,Business Meetings,DEV - Permissions,Calder Conference Ltd,166773,"1,398.00"
"Department for Business, Energy and Industrial Strategy",The Coal Authority,27/10/2023,Business Meetings,DEV - Permissions,Calder Conference Ltd,166774,"1,440.00"
"Department for Business, Energy and Industrial Strategy",The Coal Authority,31/10/2023,Business Meetings,People & Organisational Development,National Coal Mining Museum,167284,58.72
"Department for Business, Energy and Industrial Strategy",The Coal Authority,12/10/2023,Business Meetings,Community Response,Ransomwood Estates Ltd,167323,279.5
"Department for Business, Energy and Industrial Strategy",The Coal Authority,06/11/2023,Business Meetings,ENV - Projects & Delivery,S P Foods,167468,86.8
"Department for Business, Energy and Industrial Strategy",The Coal Authority,14/11/2023,Business Meetings,DEV - Permissions,Calder Conference Ltd,167513,0.01
"Department for Business, Energy and Industrial Strategy",The Coal Authority,14/11/2023,Business Meetings,DEV - Permissions,Calder Conference Ltd,167513,"1,874.99"
"Department for Business, Energy and Industrial Strategy",The Coal Authority,15/11/2023,Business Meetings,DEV - Mine Heat Licensing,Calder Conference Ltd,167560,62.5
"Department for Business, Energy and Industrial Strategy",The Coal Authority,15/11/2023,Business Meetings,DEV - Mine Heat Licensing,Calder Conference Ltd,167560,115
"Department for Business, Energy and Industrial Strategy",The Coal Authority,20/11/2023,Business Meetings,NRW Metal Mine Programme,Clywedog Community Association,167731,180
"Department for Business, Energy and Industrial Strategy",The Coal Authority,07/11/2023,Business Meetings,Customer Services & Strategy,Central Law Training Scotland Limited,167769,"1,800.00"
"Department for Business, Energy and Industrial Strategy",The Coal Authority,23/05/2023,Business Meetings,Customer Services & Strategy,Scottish Paralegal Association,167770,"2,000.00"
"Department for Business, Energy and Industrial Strategy",The Coal Authority,21/11/2023,Business Meetings,ENV - Mine Water Operations,Ransomwood Estates Ltd,167790,360
"Department for Business, Energy and Industrial Strategy",The Coal Authority,24/11/2023,Business Meetings,ENV - Mine Water Operations,Ransomwood Estates Ltd,167974,360
"Department for Business, Energy and Industrial Strategy",The Coal Authority,06/11/2023,Business Meetings,Board,Calder Conference Ltd,168111,"4,205.82"
"Department for Business, Energy and Industrial Strategy",The Coal Authority,24/11/2023,Business Meetings,People & Organisational Development,Calder Conference Ltd,168266,147.5
"Department for Business, Energy and Industrial Strategy",The Coal Authority,04/10/2023,Business Meetings,PS&S - General Claims,Government Procurement Card,168336,5.79
"Department for Business, Energy and Industrial Strategy",The Coal Authority,17/10/2023,Business Meetings,PS&S - General Claims,Government Procurement Card,168336,12.2
"Department for Business, Energy and Industrial Strategy",The Coal Authority,18/10/2023,Business Meetings,PS&S - General Claims,Government Procurement Card,168336,5.33
"Department for Business, Energy and Industrial Strategy",The Coal Authority,24/10/2023,Business Meetings,PS&S - General Claims,Government Procurement Card,168336,20.83
"Department for Business, Energy and Industrial Strategy",The Coal Authority,05/10/2023,Business Meetings,People & Organisational Development,Government Procurement Card,168348,100
"Department for Business, Energy and Industrial Strategy",The Coal Authority,05/10/2023,Business Meetings,Tips Response,Government Procurement Card,168348,7.05
"Department for Business, Energy and Industrial Strategy",The Coal Authority,10/10/2023,Business Meetings,PS&S - General Claims,Government Procurement Card,168348,2.5
"Department for Business, Energy and Industrial Strategy",The Coal Authority,11/10/2023,Business Meetings,NRW Metal Mine Programme,Government Procurement Card,168348,60
"Department for Business, Energy and Industrial Strategy",The Coal Authority,12/10/2023,Business Meetings,PS&S - General Claims,Government Procurement Card,168348,12.5
"Department for Business, Energy and Industrial Strategy",The Coal Authority,13/10/2023,Business Meetings,PS&S - General Claims,Government Procurement Card,168348,5.71
"Department for Business, Energy and Industrial Strategy",The Coal Authority,17/10/2023,Business Meetings,People & Organisational Development,Government Procurement Card,168348,125
"Department for Business, Energy and Industrial Strategy",The Coal Authority,18/10/2023,Business Meetings,"Health, Safety & Wellbeing",Government Procurement Card,168348,10
"Department for Business, Energy and Industrial Strategy",The Coal Authority,18/10/2023,Business Meetings,PS&S - General Claims,Government Procurement Card,168348,13.8
"Department for Business, Energy and Industrial Strategy",The Coal Authority,18/10/2023,Business Meetings,PS&S - General Claims,Government Procurement Card,168348,7.67
"Department for Business, Energy and Industrial Strategy",The Coal Authority,19/10/2023,Business Meetings,PS&S - General Claims,Government Procurement Card,168348,6.32
"Department for Business, Energy and Industrial Strategy",The Coal Authority,21/10/2023,Business Meetings,PS&S - General Claims,Government Procurement Card,168348,16.15
"Department for Business, Energy and Industrial Strategy",The Coal Authority,24/10/2023,Business Meetings,PS&S - General Claims,Government Procurement Card,168348,3.42
"Department for Business, Energy and Industrial Strategy",The Coal Authority,30/10/2023,Business Meetings,PS&S - General Claims,Government Procurement Card,168348,4.5
"Department for Business, Energy and Industrial Strategy",The Coal Authority,01/11/2023,Business Meetings,Tips Response,Government Procurement Card,168348,6.46
"Department for Business, Energy and Industrial Strategy",The Coal Authority,02/11/2023,Business Meetings,People & Organisational Development,Government Procurement Card,168348,83.33
"Department for Business, Energy and Industrial Strategy",The Coal Authority,05/10/2023,Business Publications,Incident & Emergency Response,Government Procurement Card,168348,247
"Department for Business, Energy and Industrial Strategy",The Coal Authority,11/10/2023,Business Publications,Procurement,Government Procurement Card,168348,189.25
"Department for Business, Energy and Industrial Strategy",The Coal Authority,12/10/2023,Central Training,People & Organisational Development,Oe Cam Llp,166253,"10,910.10"
"Department for Business, Energy and Industrial Strategy",The Coal Authority,02/10/2023,Central Training,"Health, Safety & Wellbeing",Risk & Safety Management Serv,167364,469
"Department for Business, Energy and Industrial Strategy",The Coal Authority,02/10/2023,Central Training,"Health, Safety & Wellbeing",Risk & Safety Management Serv,167365,289
"Department for Business, Energy and Industrial Strategy",The Coal Authority,13/09/2023,Central Training,"Health, Safety & Wellbeing",Iam Drive & Survive Ltd,167369,720
"Department for Business, Energy and Industrial Strategy",The Coal Authority,27/09/2023,Central Training,"Health, Safety & Wellbeing",Mines Rescue Service Limited,167370,193
"Department for Business, Energy and Industrial Strategy",The Coal Authority,09/11/2023,Central Training,People & Organisational Development,S P Foods,167413,195.3
"Department for Business, Energy and Industrial Strategy",The Coal Authority,16/11/2023,Central Training,People & Organisational Development,S P Foods,167924,195.3
"Department for Business, Energy and Industrial Strategy",The Coal Authority,21/11/2023,Central Training,People & Organisational Development,Oe Cam Llp,168136,"2,882.17"
"Department for Business, Energy and Industrial Strategy",The Coal Authority,21/11/2023,Central Training,People & Organisational Development,Oe Cam Llp,168137,262.28
"Department for Business, Energy and Industrial Strategy",The Coal Authority,21/11/2023,Central Training,People & Organisational Development,Oe Cam Llp,168138,"2,043.58"
"Department for Business, Energy and Industrial Strategy",The Coal Authority,21/11/2023,Central Training,People & Organisational Development,Oe Cam Llp,168139,512.18
"Department for Business, Energy and Industrial Strategy",The Coal Authority,03/11/2023,Central Training,People & Organisational Development,Inclusive Employers Limited,168177,"5,625.00"
"Department for Business, Energy and Industrial Strategy",The Coal Authority,31/10/2023,Cleaning Materials,Facilities,Fidelis,167632,701.32
"Department for Business, Energy and Industrial Strategy",The Coal Authority,17/10/2023,Consultancy - Commercialisation Costs,Procurement,AECOM Ltd,167806,"2,806.38"
"Department for Business, Energy and Industrial Strategy",The Coal Authority,17/10/2023,Consultancy - Commercialisation Costs,Procurement,AECOM Ltd,167806,"1,000.29"
"Department for Business, Energy and Industrial Strategy",The Coal Authority,17/10/2023,Consultancy - Commercialisation Costs,Procurement,AECOM Ltd,167806,824.33
"Department for Business, Energy and Industrial Strategy",The Coal Authority,23/05/2023,Consultancy - Commercialisation Costs,Procurement,AECOM Ltd,167807,"7,287.77"
"Department for Business, Energy and Industrial Strategy",The Coal Authority,23/05/2023,Consultancy - Commercialisation Costs,Procurement,AECOM Ltd,167807,"2,140.63"
"Department for Business, Energy and Industrial Strategy",The Coal Authority,23/05/2023,Consultancy - Commercialisation Costs,Procurement,AECOM Ltd,167807,"2,597.62"
"Department for Business, Energy and Industrial Strategy",The Coal Authority,07/08/2023,Consultancy - Commercialisation Costs,Procurement,AECOM Ltd,167820,"6,152.42"
"Department for Business, Energy and Industrial Strategy",The Coal Authority,07/08/2023,Consultancy - Commercialisation Costs,Procurement,AECOM Ltd,167820,"2,192.94"
"Department for Business, Energy and Industrial Strategy",The Coal Authority,07/08/2023,Consultancy - Commercialisation Costs,Procurement,AECOM Ltd,167820,"1,807.14"
"Department for Business, Energy and Industrial Strategy",The Coal Authority,22/11/2023,Consultancy - Commercialisation Costs,Procurement,AECOM Ltd,167821,-1
"Department for Business, Energy and Industrial Strategy",The Coal Authority,08/11/2023,Consultancy-Legacy Mine Workings,DEV - Licensing,UKRI as represented by the British Geological Surv,167149,"5,435.09"
"Department for Business, Energy and Industrial Strategy",The Coal Authority,08/11/2023,Consultancy-Legacy Mine Workings,DEV - Licensing,UKRI as represented by the British Geological Surv,167150,"1,892.30"
"Department for Business, Energy and Industrial Strategy",The Coal Authority,07/11/2023,Consultancy-Legacy Mine Workings,DEV - Licensing,UKRI as represented by the British Geological Surv,167152,429
"Department for Business, Energy and Industrial Strategy",The Coal Authority,14/11/2023,Consultancy-Legacy Mine Workings,DEV - Licensing,Wardell Armstrong LLP,167546,"13,500.00"
"Department for Business, Energy and Industrial Strategy",The Coal Authority,22/11/2023,Consultancy-Legacy Mine Workings,DEV - Licensing,UKRI as represented by the British Geological Surv,167822,"-5,435.09"
"Department for Business, Energy and Industrial Strategy",The Coal Authority,22/11/2023,Consultancy-Legacy Mine Workings,DEV - Licensing,UKRI as represented by the British Geological Surv,167825,-429
"Department for Business, Energy and Industrial Strategy",The Coal Authority,22/11/2023,Consultancy-Legacy Mine Workings,DEV - Licensing,UKRI as represented by the British Geological Surv,167826,"-1,892.30"
"Department for Business, Energy and Industrial Strategy",The Coal Authority,30/10/2023,Contract Hire Vehicles,PS&S - General Claims,Kinto UK Limited,166794,0.08
"Department for Business, Energy and Industrial Strategy",The Coal Authority,30/10/2023,Contract Hire Vehicles,PS&S - General Claims,Kinto UK Limited,166794,405.81
"Department for Business, Energy and Industrial Strategy",The Coal Authority,30/10/2023,Contract Hire Vehicles,PS&S - General Claims,Kinto UK Limited,166794,40.5
"Department for Business, Energy and Industrial Strategy",The Coal Authority,30/10/2023,Contract Hire Vehicles,PS&S - General Claims,Kinto UK Limited,166794,48.49
"Department for Business, Energy and Industrial Strategy",The Coal Authority,30/10/2023,Contract Hire Vehicles,PS&S - General Claims,Kinto UK Limited,166794,44.77
"Department for Business, Energy and Industrial Strategy",The Coal Authority,30/10/2023,Contract Hire Vehicles,PS&S - General Claims,Kinto UK Limited,166794,48.5
"Department for Business, Energy and Industrial Strategy",The Coal Authority,30/10/2023,Contract Hire Vehicles,PS&S - General Claims,Kinto UK Limited,166794,447.65
"Department for Business, Energy and Industrial Strategy",The Coal Authority,30/09/2023,Contract Hire Vehicles,Facilities,Harveys Autocentre Ltd,166795,140
"Department for Business, Energy and Industrial Strategy",The Coal Authority,31/10/2023,Contract Hire Vehicles,Facilities,Enterprise Rent A Car,167067,"2,855.79"
"Department for Business, Energy and Industrial Strategy",The Coal Authority,31/10/2023,Contract Hire Vehicles,Facilities,Harveys Autocentre Ltd,167068,105
"Department for Business, Energy and Industrial Strategy",The Coal Authority,01/11/2023,Contract Hire Vehicles,PS&S - General Claims,Days Fleet,167134,25
"Department for Business, Energy and Industrial Strategy",The Coal Authority,22/11/2023,Contract Hire Vehicles,PS&S - General Claims,Kinto UK Limited,168347,105
"Department for Business, Energy and Industrial Strategy",The Coal Authority,14/10/2023,Contract Hire Vehicles,PS&S - General Claims,Government Procurement Card,168348,10
"Department for Business, Energy and Industrial Strategy",The Coal Authority,25/10/2023,CY - Minewater Scheme - Additions,ENV - Projects & Delivery,JBA Bentley Ltd,166521,"245,581.73"
"Department for Business, Energy and Industrial Strategy",The Coal Authority,27/10/2023,CY - Minewater Scheme - Additions,ENV - Projects & Delivery,Turner and Townsend Project Management Ltd.,166540,23.23
"Department for Business, Energy and Industrial Strategy",The Coal Authority,27/10/2023,CY - Minewater Scheme - Additions,ENV - Projects & Delivery,Turner and Townsend Project Management Ltd.,166540,"4,316.28"
"Department for Business, Energy and Industrial Strategy",The Coal Authority,27/10/2023,CY - Minewater Scheme - Additions,ENV - Projects & Delivery,Turner and Townsend Project Management Ltd.,166540,"1,773.82"
"Department for Business, Energy and Industrial Strategy",The Coal Authority,07/11/2023,CY - Minewater Scheme - Additions,DEFRA Metal Mine Programme,John F Hunt Regeneration Ltd,166907,"109,182.68"
"Department for Business, Energy and Industrial Strategy",The Coal Authority,07/11/2023,CY - Minewater Scheme - Additions,DEFRA LEP Funding,Severn Trent Serv Ops Uk Ltd,167107,81.17
"Department for Business, Energy and Industrial Strategy",The Coal Authority,07/11/2023,CY - Minewater Scheme - Additions,DEFRA Metal Mine Programme,Severn Trent Serv Ops Uk Ltd,167107,162.33
"Department for Business, Energy and Industrial Strategy",The Coal Authority,27/06/2023,CY - Minewater Scheme - Additions,ENV - Projects & Delivery,J N Bentley Limited,167137,"32,758.66"
"Department for Business, Energy and Industrial Strategy",The Coal Authority,07/11/2023,CY - Minewater Scheme - Additions,ENV - Mine Water Operations,Severn Trent Serv Ops Uk Ltd,167402,"2,310.02"
"Department for Business, Energy and Industrial Strategy",The Coal Authority,07/11/2023,CY - Minewater Scheme - Additions,ENV - Mine Water Operations,Severn Trent Serv Ops Uk Ltd,167402,121.75
"Department for Business, Energy and Industrial Strategy",The Coal Authority,07/11/2023,CY - Minewater Scheme - Additions,ENV - Mine Water Operations,Severn Trent Serv Ops Uk Ltd,167402,"136,595.97"
"Department for Business, Energy and Industrial Strategy",The Coal Authority,07/11/2023,CY - Minewater Scheme - Additions,ENV - Mine Water Operations,Severn Trent Serv Ops Uk Ltd,167402,209.46
"Department for Business, Energy and Industrial Strategy",The Coal Authority,07/11/2023,CY - Minewater Scheme - Additions,ENV - Mine Water Operations,Severn Trent Serv Ops Uk Ltd,167402,121.75
"Department for Business, Energy and Industrial Strategy",The Coal Authority,07/11/2023,CY - Minewater Scheme - Additions,ENV - Mine Water Operations,Severn Trent Serv Ops Uk Ltd,167402,162.33
"Department for Business, Energy and Industrial Strategy",The Coal Authority,07/11/2023,CY - Minewater Scheme - Additions,ENV - Mine Water Operations,Severn Trent Serv Ops Uk Ltd,167402,162.33
"Department for Business, Energy and Industrial Strategy",The Coal Authority,07/11/2023,CY - Minewater Scheme - Additions,ENV - Mine Water Operations,Severn Trent Serv Ops Uk Ltd,167402,68.16
"Department for Business, Energy and Industrial Strategy",The Coal Authority,07/11/2023,CY - Minewater Scheme - Additions,ENV - Mine Water Operations,Severn Trent Serv Ops Uk Ltd,167402,204.71
"Department for Business, Energy and Industrial Strategy",The Coal Authority,07/11/2023,CY - Minewater Scheme - Additions,ENV - Mine Water Operations,Severn Trent Serv Ops Uk Ltd,167402,162.33
"Department for Business, Energy and Industrial Strategy",The Coal Authority,07/11/2023,CY - Minewater Scheme - Additions,ENV - Mine Water Operations,Severn Trent Serv Ops Uk Ltd,167402,"6,103.13"
"Department for Business, Energy and Industrial Strategy",The Coal Authority,07/11/2023,CY - Minewater Scheme - Additions,ENV - Mine Water Operations,Severn Trent Serv Ops Uk Ltd,167402,556.25
"Department for Business, Energy and Industrial Strategy",The Coal Authority,07/11/2023,CY - Minewater Scheme - Additions,ENV - Mine Water Operations,Severn Trent Serv Ops Uk Ltd,167402,"5,767.31"
"Department for Business, Energy and Industrial Strategy",The Coal Authority,07/11/2023,CY - Minewater Scheme - Additions,ENV - Mine Water Operations,Severn Trent Serv Ops Uk Ltd,167402,"1,488.08"
"Department for Business, Energy and Industrial Strategy",The Coal Authority,07/11/2023,CY - Minewater Scheme - Additions,ENV - Mine Water Operations,Severn Trent Serv Ops Uk Ltd,167402,44.04
"Department for Business, Energy and Industrial Strategy",The Coal Authority,07/11/2023,CY - Minewater Scheme - Additions,ENV - Mine Water Operations,Severn Trent Serv Ops Uk Ltd,167402,259.39
"Department for Business, Energy and Industrial Strategy",The Coal Authority,07/11/2023,CY - Minewater Scheme - Additions,ENV - Mine Water Operations,Severn Trent Serv Ops Uk Ltd,167402,100.16
"Department for Business, Energy and Industrial Strategy",The Coal Authority,07/11/2023,CY - Minewater Scheme - Additions,ENV - Mine Water Operations,Severn Trent Serv Ops Uk Ltd,167402,"1,516.02"
"Department for Business, Energy and Industrial Strategy",The Coal Authority,07/11/2023,CY - Minewater Scheme - Additions,ENV - Mine Water Operations,Severn Trent Serv Ops Uk Ltd,167402,517.5
"Department for Business, Energy and Industrial Strategy",The Coal Authority,07/11/2023,CY - Minewater Scheme - Additions,ENV - Mine Water Operations,Severn Trent Serv Ops Uk Ltd,167402,"192,528.54"
"Department for Business, Energy and Industrial Strategy",The Coal Authority,07/11/2023,CY - Minewater Scheme - Additions,ENV - Mine Water Operations,Severn Trent Serv Ops Uk Ltd,167402,68.16
"Department for Business, Energy and Industrial Strategy",The Coal Authority,07/11/2023,CY - Minewater Scheme - Additions,ENV - Mine Water Operations,Severn Trent Serv Ops Uk Ltd,167402,"1,711.97"
"Department for Business, Energy and Industrial Strategy",The Coal Authority,07/11/2023,CY - Minewater Scheme - Additions,ENV - Mine Water Operations,Severn Trent Serv Ops Uk Ltd,167402,81.17
"Department for Business, Energy and Industrial Strategy",The Coal Authority,07/11/2023,CY - Minewater Scheme - Additions,ENV - Mine Water Operations,Severn Trent Serv Ops Uk Ltd,167402,423.51
"Department for Business, Energy and Industrial Strategy",The Coal Authority,07/11/2023,CY - Minewater Scheme - Additions,ENV - Mine Water Operations,Severn Trent Serv Ops Uk Ltd,167402,101.37
"Department for Business, Energy and Industrial Strategy",The Coal Authority,07/11/2023,CY - Minewater Scheme - Additions,ENV - Mine Water Operations,Severn Trent Serv Ops Uk Ltd,167402,441.7
"Department for Business, Energy and Industrial Strategy",The Coal Authority,07/11/2023,CY - Minewater Scheme - Additions,ENV - Mine Water Operations,Severn Trent Serv Ops Uk Ltd,167402,"77,391.22"
"Department for Business, Energy and Industrial Strategy",The Coal Authority,07/11/2023,CY - Minewater Scheme - Additions,ENV - Projects & Delivery,Severn Trent Serv Ops Uk Ltd,167402,162.33
"Department for Business, Energy and Industrial Strategy",The Coal Authority,07/11/2023,CY - Minewater Scheme - Additions,ENV - Projects & Delivery,Severn Trent Serv Ops Uk Ltd,167402,"4,528.34"
"Department for Business, Energy and Industrial Strategy",The Coal Authority,07/11/2023,CY - Minewater Scheme - Additions,ENV - Salinity Programme,Severn Trent Serv Ops Uk Ltd,167402,362.31
"Department for Business, Energy and Industrial Strategy",The Coal Authority,07/11/2023,CY - Minewater Scheme - Additions,ENV - Salinity Programme,Severn Trent Serv Ops Uk Ltd,167402,"11,225.40"
"Department for Business, Energy and Industrial Strategy",The Coal Authority,07/11/2023,CY - Minewater Scheme - Additions,ENV - Salinity Programme,Severn Trent Serv Ops Uk Ltd,167402,44.04
"Department for Business, Energy and Industrial Strategy",The Coal Authority,07/11/2023,CY - Minewater Scheme - Additions,ENV - Salinity Programme,Severn Trent Serv Ops Uk Ltd,167402,"6,508.84"
"Department for Business, Energy and Industrial Strategy",The Coal Authority,31/10/2023,CY - Minewater Scheme - Additions,ENV - Projects & Delivery,Kier Integrated Services Limited,167490,"24,656.55"
"Department for Business, Energy and Industrial Strategy",The Coal Authority,30/09/2023,CY - Minewater Scheme - Additions,ENV - Projects & Delivery,Kier Integrated Services Limited,167491,"74,512.19"
"Department for Business, Energy and Industrial Strategy",The Coal Authority,30/09/2023,CY - Minewater Scheme - Additions,ENV - Projects & Delivery,Kier Integrated Services Limited,167492,"31,670.19"
"Department for Business, Energy and Industrial Strategy",The Coal Authority,30/09/2023,CY - Minewater Scheme - Additions,ENV - Projects & Delivery,Kier Integrated Services Limited,167503,"85,829.53"
"Department for Business, Energy and Industrial Strategy",The Coal Authority,08/11/2023,CY - Minewater Scheme - Additions,ENV - Projects & Delivery,AECOM Ltd,167515,"9,229.63"
"Department for Business, Energy and Industrial Strategy",The Coal Authority,08/11/2023,CY - Minewater Scheme - Additions,ENV - Projects & Delivery,AECOM Ltd,167515,"5,740.00"
"Department for Business, Energy and Industrial Strategy",The Coal Authority,08/11/2023,CY - Minewater Scheme - Additions,ENV - Projects & Delivery,AECOM Ltd,167515,0.2
"Department for Business, Energy and Industrial Strategy",The Coal Authority,19/10/2023,CY - Minewater Scheme - Additions,ENV - Salinity Programme,WSP UK Ltd,167689,972.9
"Department for Business, Energy and Industrial Strategy",The Coal Authority,31/10/2023,CY - Minewater Scheme - Additions,ENV - Technical,Drilcorp Limited,167759,"72,782.19"
"Department for Business, Energy and Industrial Strategy",The Coal Authority,15/11/2023,CY - Minewater Scheme - Additions,ENV - Projects & Delivery,Environmental Monitoring Solutions Limited,167797,"4,050.00"
"Department for Business, Energy and Industrial Strategy",The Coal Authority,13/11/2023,CY - Minewater Scheme - Additions,ENV - Mine Water Operations,AECOM Ltd,168066,"5,644.47"
"Department for Business, Energy and Industrial Strategy",The Coal Authority,31/10/2023,CY - Minewater Scheme - Additions,ENV - Projects & Delivery,Turner and Townsend Project Management Ltd.,168168,"4,737.00"
"Department for Business, Energy and Industrial Strategy",The Coal Authority,31/10/2023,CY - Minewater Scheme - Additions,ENV - Projects & Delivery,Turner and Townsend Project Management Ltd.,168168,720
"Department for Business, Energy and Industrial Strategy",The Coal Authority,24/11/2023,CY - Minewater Scheme - Additions,ENV - Projects & Delivery,AECOM Ltd,168203,636.05
"Department for Business, Energy and Industrial Strategy",The Coal Authority,24/11/2023,CY - Minewater Scheme - Additions,ENV - Projects & Delivery,AECOM Ltd,168203,9.15
"Department for Business, Energy and Industrial Strategy",The Coal Authority,27/11/2023,CY - Minewater Scheme - Additions,ENV - Projects & Delivery,Turner and Townsend Project Management Ltd.,168254,93.45
"Department for Business, Energy and Industrial Strategy",The Coal Authority,27/11/2023,CY - Minewater Scheme - Additions,ENV - Projects & Delivery,Turner and Townsend Project Management Ltd.,168254,"8,171.49"
"Department for Business, Energy and Industrial Strategy",The Coal Authority,25/09/2023,CY - Minewater Scheme - Additions,ENV - Projects & Delivery,Turner and Townsend Project Management Ltd.,168255,"4,010.66"
"Department for Business, Energy and Industrial Strategy",The Coal Authority,25/09/2023,CY - Minewater Scheme - Additions,ENV - Projects & Delivery,Turner and Townsend Project Management Ltd.,168255,"1,905.00"
"Department for Business, Energy and Industrial Strategy",The Coal Authority,07/09/2023,CY - Minewater Scheme - Additions,ENV - Projects & Delivery,SP Energy Networks,168314,"1,250.00"
"Department for Business, Energy and Industrial Strategy",The Coal Authority,31/10/2023,CY - Minewater Scheme - Additions,ENV - Projects & Delivery,Environmental Monitoring Solutions Limited,168327,"12,843.96"
"Department for Business, Energy and Industrial Strategy",The Coal Authority,25/10/2023,CY - Non-coal Minewater - Additions,DEFRA Metal Mine Programme,AECOM Ltd,166519,"3,993.75"
"Department for Business, Energy and Industrial Strategy",The Coal Authority,07/11/2023,CY - Non-coal Minewater - Additions,DEFRA LEP Funding,Severn Trent Serv Ops Uk Ltd,167107,81.17
"Department for Business, Energy and Industrial Strategy",The Coal Authority,07/11/2023,CY - Non-coal Minewater - Additions,DEFRA Metal Mine Programme,Severn Trent Serv Ops Uk Ltd,167107,"2,446.96"
"Department for Business, Energy and Industrial Strategy",The Coal Authority,08/11/2023,CY - Non-coal Minewater - Additions,DEFRA LEP Funding,Aecom Infrastructure & Env,167308,"7,203.93"
"Department for Business, Energy and Industrial Strategy",The Coal Authority,08/11/2023,CY - Non-coal Minewater - Additions,DEFRA LEP Funding,Aecom Infrastructure & Env,167308,"2,867.58"
"Department for Business, Energy and Industrial Strategy",The Coal Authority,08/11/2023,CY - Non-coal Minewater - Additions,DEFRA LEP Funding,Aecom Infrastructure & Env,167308,324.75
"Department for Business, Energy and Industrial Strategy",The Coal Authority,08/11/2023,CY - Non-coal Minewater - Additions,DEFRA LEP Funding,Aecom Infrastructure & Env,167308,"1,379.00"
"Department for Business, Energy and Industrial Strategy",The Coal Authority,08/11/2023,CY - Non-coal Minewater - Additions,DEFRA LEP Funding,Aecom Infrastructure & Env,167308,"2,497.17"
"Department for Business, Energy and Industrial Strategy",The Coal Authority,08/11/2023,CY - Non-coal Minewater - Additions,DEFRA LEP Funding,Aecom Infrastructure & Env,167308,608.63
"Department for Business, Energy and Industrial Strategy",The Coal Authority,08/11/2023,CY - Non-coal Minewater - Additions,DEFRA LEP Funding,Aecom Infrastructure & Env,167308,"2,567.42"
"Department for Business, Energy and Industrial Strategy",The Coal Authority,08/11/2023,CY - Non-coal Minewater - Additions,DEFRA LEP Funding,Aecom Infrastructure & Env,167308,"5,803.55"
"Department for Business, Energy and Industrial Strategy",The Coal Authority,08/11/2023,CY - Non-coal Minewater - Additions,DEFRA LEP Funding,Aecom Infrastructure & Env,167308,"1,246.42"
"Department for Business, Energy and Industrial Strategy",The Coal Authority,08/11/2023,CY - Non-coal Minewater - Additions,DEFRA LEP Funding,Aecom Infrastructure & Env,167308,391.28
"Department for Business, Energy and Industrial Strategy",The Coal Authority,08/11/2023,CY - Non-coal Minewater - Additions,DEFRA LEP Funding,Aecom Infrastructure & Env,167308,724
"Department for Business, Energy and Industrial Strategy",The Coal Authority,08/11/2023,CY - Non-coal Minewater - Additions,DEFRA LEP Funding,Aecom Infrastructure & Env,167308,"4,916.29"
"Department for Business, Energy and Industrial Strategy",The Coal Authority,08/11/2023,CY - Non-coal Minewater - Additions,DEFRA LEP Funding,Aecom Infrastructure & Env,167308,"1,191.29"
"Department for Business, Energy and Industrial Strategy",The Coal Authority,08/11/2023,CY - Non-coal Minewater - Additions,DEFRA LEP Funding,Aecom Infrastructure & Env,167308,976.7
"Department for Business, Energy and Industrial Strategy",The Coal Authority,08/11/2023,CY - Non-coal Minewater - Additions,DEFRA LEP Funding,Aecom Infrastructure & Env,167308,136.97
"Department for Business, Energy and Industrial Strategy",The Coal Authority,31/10/2023,CY - Non-coal Minewater - Additions,DEFRA Metal Mine Programme,Yorkshire Dales Rivers Trust,167438,"6,412.28"
"Department for Business, Energy and Industrial Strategy",The Coal Authority,31/10/2023,CY - Non-coal Minewater - Additions,DEFRA Metal Mine Programme,Yorkshire Dales Rivers Trust,167438,645
"Department for Business, Energy and Industrial Strategy",The Coal Authority,19/10/2023,CY - Non-coal Minewater - Additions,DEFRA LEP Funding,Tyne Rivers Trust,167832,"1,617.60"
"Department for Business, Energy and Industrial Strategy",The Coal Authority,20/11/2023,CY - Non-coal Minewater - Additions,DEFRA LEP Funding,Aecom Infrastructure & Env,167892,327.77
"Department for Business, Energy and Industrial Strategy",The Coal Authority,20/11/2023,CY - Non-coal Minewater - Additions,DEFRA LEP Funding,Aecom Infrastructure & Env,167892,224.59
"Department for Business, Energy and Industrial Strategy",The Coal Authority,20/11/2023,CY - Non-coal Minewater - Additions,DEFRA LEP Funding,Aecom Infrastructure & Env,167892,"2,974.27"
"Department for Business, Energy and Industrial Strategy",The Coal Authority,20/11/2023,CY - Non-coal Minewater - Additions,DEFRA LEP Funding,Aecom Infrastructure & Env,167892,950
"Department for Business, Energy and Industrial Strategy",The Coal Authority,20/11/2023,CY - Non-coal Minewater - Additions,DEFRA LEP Funding,Aecom Infrastructure & Env,167892,"3,279.49"
"Department for Business, Energy and Industrial Strategy",The Coal Authority,20/11/2023,CY - Non-coal Minewater - Additions,DEFRA LEP Funding,Aecom Infrastructure & Env,167892,"2,401.31"
"Department for Business, Energy and Industrial Strategy",The Coal Authority,20/11/2023,CY - Non-coal Minewater - Additions,DEFRA LEP Funding,Aecom Infrastructure & Env,167892,390.88
"Department for Business, Energy and Industrial Strategy",The Coal Authority,20/11/2023,CY - Non-coal Minewater - Additions,DEFRA LEP Funding,Aecom Infrastructure & Env,167892,"1,966.52"
"Department for Business, Energy and Industrial Strategy",The Coal Authority,20/11/2023,CY - Non-coal Minewater - Additions,DEFRA LEP Funding,Aecom Infrastructure & Env,167892,397.1
"Department for Business, Energy and Industrial Strategy",The Coal Authority,20/11/2023,CY - Non-coal Minewater - Additions,DEFRA LEP Funding,Aecom Infrastructure & Env,167892,"4,994.35"
"Department for Business, Energy and Industrial Strategy",The Coal Authority,20/11/2023,CY - Non-coal Minewater - Additions,DEFRA LEP Funding,Aecom Infrastructure & Env,167892,"2,901.78"
"Department for Business, Energy and Industrial Strategy",The Coal Authority,20/11/2023,CY - Non-coal Minewater - Additions,DEFRA LEP Funding,Aecom Infrastructure & Env,167892,"8,725.66"
"Department for Business, Energy and Industrial Strategy",The Coal Authority,20/11/2023,CY - Non-coal Minewater - Additions,DEFRA LEP Funding,Aecom Infrastructure & Env,167892,"2,867.00"
"Department for Business, Energy and Industrial Strategy",The Coal Authority,20/11/2023,CY - Non-coal Minewater - Additions,DEFRA LEP Funding,Aecom Infrastructure & Env,167892,"1,298.98"
"Department for Business, Energy and Industrial Strategy",The Coal Authority,20/11/2023,CY - Non-coal Minewater - Additions,DEFRA LEP Funding,Aecom Infrastructure & Env,167892,"2,567.42"
"Department for Business, Energy and Industrial Strategy",The Coal Authority,22/11/2023,CY - Non-coal Minewater - Additions,DEFRA LEP Funding,I & H Brown Limited,167916,"220,469.69"
"Department for Business, Energy and Industrial Strategy",The Coal Authority,27/11/2023,CY - Non-coal Minewater - Additions,DEFRA LEP Funding,Turner and Townsend Project Management Ltd.,168326,"2,034.12"
"Department for Business, Energy and Industrial Strategy",The Coal Authority,07/11/2023,CY - Plant & Machinery - Additions,ENV - Mine Water Operations,Severn Trent Serv Ops Uk Ltd,167402,"12,784.87"
"Department for Business, Energy and Industrial Strategy",The Coal Authority,07/11/2023,CY - Plant & Machinery - Additions,ENV - Mine Water Operations,Severn Trent Serv Ops Uk Ltd,167402,768.01
"Department for Business, Energy and Industrial Strategy",The Coal Authority,31/10/2023,CY - Subsidence Pumping - Additions,ENV - Mine Water Operations,Danvm Drainage Commissioners,166525,"20,047.94"
"Department for Business, Energy and Industrial Strategy",The Coal Authority,31/10/2023,CY - Subsidence Pumping - Additions,ENV - Mine Water Operations,Danvm Drainage Commissioners,166525,"7,072.38"
"Department for Business, Energy and Industrial Strategy",The Coal Authority,31/10/2023,CY - Subsidence Pumping - Additions,ENV - Mine Water Operations,Danvm Drainage Commissioners,166525,0.46
"Department for Business, Energy and Industrial Strategy",The Coal Authority,24/10/2023,CY - Tangible IT - Additions,DIG - Service & Assurance,"Jigsaw Systems Ltd, trading as Jigsaw24",166958,276
"Department for Business, Energy and Industrial Strategy",The Coal Authority,25/10/2023,CY - Tangible IT - Additions,DIG - Service & Assurance,"Jigsaw Systems Ltd, trading as Jigsaw24",166959,390
"Department for Business, Energy and Industrial Strategy",The Coal Authority,26/10/2023,CY - Tangible IT - Additions,DIG - Service & Assurance,"Jigsaw Systems Ltd, trading as Jigsaw24",166960,390
"Department for Business, Energy and Industrial Strategy",The Coal Authority,24/10/2023,CY - Tangible IT - Additions,DIG - Service & Assurance,"Jigsaw Systems Ltd, trading as Jigsaw24",166964,"76,474.20"
"Department for Business, Energy and Industrial Strategy",The Coal Authority,24/10/2023,CY - Tangible IT - Additions,DIG - Service & Assurance,"Jigsaw Systems Ltd, trading as Jigsaw24",166965,"34,761.00"
"Department for Business, Energy and Industrial Strategy",The Coal Authority,30/09/2023,eCommerce Commission Charges,DEV - Permissions,Worldpay,166852,25
"Department for Business, Energy and Industrial Strategy",The Coal Authority,30/09/2023,eCommerce Commission Charges,DEV - Permissions,Worldpay,166852,814.12
"Department for Business, Energy and Industrial Strategy",The Coal Authority,30/09/2023,eCommerce Commission Charges,DIG - Data Licensing,Worldpay,166852,20.63
"Department for Business, Energy and Industrial Strategy",The Coal Authority,30/09/2023,eCommerce Commission Charges,Mining Reports,Worldpay,166852,"1,255.18"
"Department for Business, Energy and Industrial Strategy",The Coal Authority,31/08/2023,eCommerce Commission Charges,DEV - Permissions,Worldpay,166853,25
"Department for Business, Energy and Industrial Strategy",The Coal Authority,31/08/2023,eCommerce Commission Charges,DEV - Permissions,Worldpay,166853,576.09
"Department for Business, Energy and Industrial Strategy",The Coal Authority,31/08/2023,eCommerce Commission Charges,DIG - Data Licensing,Worldpay,166853,17.55
"Department for Business, Energy and Industrial Strategy",The Coal Authority,31/08/2023,eCommerce Commission Charges,Mining Reports,Worldpay,166853,"1,214.51"
"Department for Business, Energy and Industrial Strategy",The Coal Authority,01/11/2023,eCommerce Commission Charges,Customer Services & Strategy,Worldpay Limited,167069,262.81
"Department for Business, Energy and Industrial Strategy",The Coal Authority,01/11/2023,eCommerce Commission Charges,DEV - Permissions,Worldpay Limited,167100,9.44
"Department for Business, Energy and Industrial Strategy",The Coal Authority,31/10/2023,eCommerce Commission Charges,DEV - Permissions,Worldpay,168039,718.19
"Department for Business, Energy and Industrial Strategy",The Coal Authority,31/10/2023,eCommerce Commission Charges,DEV - Permissions,Worldpay,168039,25
"Department for Business, Energy and Industrial Strategy",The Coal Authority,31/10/2023,eCommerce Commission Charges,DIG - Data Licensing,Worldpay,168039,15.49
"Department for Business, Energy and Industrial Strategy",The Coal Authority,31/10/2023,eCommerce Commission Charges,Mining Reports,Worldpay,168039,"1,490.70"
"Department for Business, Energy and Industrial Strategy",The Coal Authority,06/11/2023,Electricity Usage,Facilities,Edf Energy,167428,"18,917.66"
"Department for Business, Energy and Industrial Strategy",The Coal Authority,30/10/2023,Fares - Public Transport,Customer Services & Strategy,Ace Of Mansfield Ltd,166523,145.94
"Department for Business, Energy and Industrial Strategy",The Coal Authority,30/10/2023,Fares - Public Transport,Customer Services & Strategy,Staff Control Expenses,166808,4.4
"Department for Business, Energy and Industrial Strategy",The Coal Authority,30/10/2023,Fares - Public Transport,Customer Services & Strategy,Staff Control Expenses,166808,9.5
"Department for Business, Energy and Industrial Strategy",The Coal Authority,01/11/2023,Fares - Public Transport,Customer Services & Strategy,Staff Control Expenses,166808,8.75
"Department for Business, Energy and Industrial Strategy",The Coal Authority,16/10/2023,Fares - Public Transport,DEV - Permissions,Staff Control Expenses,167721,10.91
"Department for Business, Energy and Industrial Strategy",The Coal Authority,18/10/2023,Fares - Public Transport,DEV - Permissions,Staff Control Expenses,167721,11.98
"Department for Business, Energy and Industrial Strategy",The Coal Authority,16/10/2023,Fares - Public Transport,DEV - Mine Heat Licensing,Government Procurement Card,168348,9.93
"Department for Business, Energy and Industrial Strategy",The Coal Authority,19/10/2023,Fares - Public Transport,PS&S - General Claims,Government Procurement Card,168348,3.83
"Department for Business, Energy and Industrial Strategy",The Coal Authority,24/10/2023,Fares - Public Transport,PS&S - General Claims,Government Procurement Card,168348,3.83
"Department for Business, Energy and Industrial Strategy",The Coal Authority,31/10/2023,Fares - Public Transport,PS&S - General Claims,Government Procurement Card,168348,4.6
"Department for Business, Energy and Industrial Strategy",The Coal Authority,18/09/2023,Fares - Rail,ENV - Projects & Delivery,Staff Control Expenses,166808,8.55
"Department for Business, Energy and Industrial Strategy",The Coal Authority,12/10/2023,Fares - Rail,Engineering,Staff Control Expenses,166808,24.79
"Department for Business, Energy and Industrial Strategy",The Coal Authority,16/10/2023,Fares - Rail,SEPA Metal Mine Programme,Staff Control Expenses,166808,14.2
"Department for Business, Energy and Industrial Strategy",The Coal Authority,17/10/2023,Fares - Rail,SEPA Metal Mine Programme,Staff Control Expenses,166808,28.4
"Department for Business, Energy and Industrial Strategy",The Coal Authority,31/10/2023,Fares - Rail,Finance,Corporate Travel Management North,166929,"6,557.20"
"Department for Business, Energy and Industrial Strategy",The Coal Authority,10/11/2023,Fares - Rail,Innovation By-Product & Services Delivery,Staff Control Expenses,167326,72.79
"Department for Business, Energy and Industrial Strategy",The Coal Authority,09/05/2023,Fares - Rail,DEV - Property Management,Government Procurement Card,167977,1.53
"Department for Business, Energy and Industrial Strategy",The Coal Authority,09/05/2023,Fares - Rail,DEV - Property Management,Government Procurement Card,167977,1.53
"Department for Business, Energy and Industrial Strategy",The Coal Authority,04/09/2023,Fares - Rail,Innovation By-Product & Services Delivery,Government Procurement Card,167978,28.27
"Department for Business, Energy and Industrial Strategy",The Coal Authority,12/09/2023,Fares - Rail,Innovation By-Product & Services Delivery,Government Procurement Card,167978,4.1
"Department for Business, Energy and Industrial Strategy",The Coal Authority,05/09/2023,Fares - Rail,DEFRA Metal Mine Programme,Staff Control Expenses,168103,11.6
"Department for Business, Energy and Industrial Strategy",The Coal Authority,05/09/2023,Fares - Rail,DEFRA Metal Mine Programme,Staff Control Expenses,168103,8.3
"Department for Business, Energy and Industrial Strategy",The Coal Authority,31/10/2023,Financial Assurance / Credit Checks,Finance,Experian Ltd,166835,"3,729.49"
"Department for Business, Energy and Industrial Strategy",The Coal Authority,25/10/2023,Fuel (Vehicle),PS&S - General Claims,Allstar Business Solutions Ltd,166205,73.79
"Department for Business, Energy and Industrial Strategy",The Coal Authority,25/10/2023,Fuel (Vehicle),PS&S - General Claims,Allstar Business Solutions Ltd,166205,98.65
"Department for Business, Energy and Industrial Strategy",The Coal Authority,25/10/2023,Fuel (Vehicle),PS&S - General Claims,Allstar Business Solutions Ltd,166205,19
"Department for Business, Energy and Industrial Strategy",The Coal Authority,25/10/2023,Fuel (Vehicle),PS&S - General Claims,Allstar Business Solutions Ltd,166205,41.63
"Department for Business, Energy and Industrial Strategy",The Coal Authority,25/10/2023,Fuel (Vehicle),PS&S - General Claims,Allstar Business Solutions Ltd,166205,53.95
"Department for Business, Energy and Industrial Strategy",The Coal Authority,25/10/2023,Fuel (Vehicle),PS&S - General Claims,Allstar Business Solutions Ltd,166205,42.29
"Department for Business, Energy and Industrial Strategy",The Coal Authority,25/10/2023,Fuel (Vehicle),Tips Response,Allstar Business Solutions Ltd,166205,7.13
"Department for Business, Energy and Industrial Strategy",The Coal Authority,25/10/2023,Fuel (Vehicle),Tips Response,Allstar Business Solutions Ltd,166205,40.33
"Department for Business, Energy and Industrial Strategy",The Coal Authority,25/10/2023,Fuel (Vehicle),Tips Response,Allstar Business Solutions Ltd,166205,84.61
"Department for Business, Energy and Industrial Strategy",The Coal Authority,25/10/2023,Fuel (Vehicle),ENV - Projects & Delivery,Allstar Business Solutions Ltd,166232,55.1
"Department for Business, Energy and Industrial Strategy",The Coal Authority,01/11/2023,Fuel (Vehicle),Facilities,Allstar Business Solutions Ltd,166545,75.72
"Department for Business, Energy and Industrial Strategy",The Coal Authority,01/11/2023,Fuel (Vehicle),Facilities,Allstar Business Solutions Ltd,166545,31.78
"Department for Business, Energy and Industrial Strategy",The Coal Authority,01/11/2023,Fuel (Vehicle),Facilities,Allstar Business Solutions Ltd,166545,11.4
"Department for Business, Energy and Industrial Strategy",The Coal Authority,01/11/2023,Fuel (Vehicle),Facilities,Allstar Business Solutions Ltd,166545,90.18
"Department for Business, Energy and Industrial Strategy",The Coal Authority,01/11/2023,Fuel (Vehicle),PS&S - General Claims,Allstar Business Solutions Ltd,166628,42.33
"Department for Business, Energy and Industrial Strategy",The Coal Authority,01/11/2023,Fuel (Vehicle),PS&S - General Claims,Allstar Business Solutions Ltd,166628,46.8
"Department for Business, Energy and Industrial Strategy",The Coal Authority,01/11/2023,Fuel (Vehicle),PS&S - General Claims,Allstar Business Solutions Ltd,166628,59.34
"Department for Business, Energy and Industrial Strategy",The Coal Authority,01/11/2023,Fuel (Vehicle),PS&S - General Claims,Allstar Business Solutions Ltd,166628,48.53
"Department for Business, Energy and Industrial Strategy",The Coal Authority,01/11/2023,Fuel (Vehicle),PS&S - General Claims,Allstar Business Solutions Ltd,166628,86.81
"Department for Business, Energy and Industrial Strategy",The Coal Authority,01/11/2023,Fuel (Vehicle),PS&S - General Claims,Allstar Business Solutions Ltd,166628,88.48
"Department for Business, Energy and Industrial Strategy",The Coal Authority,01/11/2023,Fuel (Vehicle),PS&S - General Claims,Allstar Business Solutions Ltd,166628,19
"Department for Business, Energy and Industrial Strategy",The Coal Authority,01/11/2023,Fuel (Vehicle),Tips Response,Allstar Business Solutions Ltd,166628,41.67
"Department for Business, Energy and Industrial Strategy",The Coal Authority,01/11/2023,Fuel (Vehicle),Tips Response,Allstar Business Solutions Ltd,166628,45.88
"Department for Business, Energy and Industrial Strategy",The Coal Authority,01/11/2023,Fuel (Vehicle),Tips Response,Allstar Business Solutions Ltd,166628,79.2
"Department for Business, Energy and Industrial Strategy",The Coal Authority,11/07/2023,Fuel (Vehicle),PS&S - Management,Staff Control Expenses,166808,24.78
"Department for Business, Energy and Industrial Strategy",The Coal Authority,27/09/2023,Fuel (Vehicle),PS&S - General Claims,Staff Control Expenses,166808,47.45
"Department for Business, Energy and Industrial Strategy",The Coal Authority,03/10/2023,Fuel (Vehicle),PS&S - General Claims,Staff Control Expenses,166808,56.03
"Department for Business, Energy and Industrial Strategy",The Coal Authority,10/10/2023,Fuel (Vehicle),NRW Metal Mine Programme,Staff Control Expenses,166808,17.97
"Department for Business, Energy and Industrial Strategy",The Coal Authority,13/10/2023,Fuel (Vehicle),PS&S - General Claims,Staff Control Expenses,166808,58.85
"Department for Business, Energy and Industrial Strategy",The Coal Authority,17/10/2023,Fuel (Vehicle),Tip Management Services,Staff Control Expenses,166808,50
"Department for Business, Energy and Industrial Strategy",The Coal Authority,19/10/2023,Fuel (Vehicle),PS&S - General Claims,Staff Control Expenses,166808,64.93
"Department for Business, Energy and Industrial Strategy",The Coal Authority,23/10/2023,Fuel (Vehicle),PS&S - General Claims,Staff Control Expenses,166808,50.72
"Department for Business, Energy and Industrial Strategy",The Coal Authority,30/10/2023,Fuel (Vehicle),PS&S - General Claims,Staff Control Expenses,166808,57.77
"Department for Business, Energy and Industrial Strategy",The Coal Authority,31/10/2023,Fuel (Vehicle),Tip Management Services,Staff Control Expenses,166808,57.37
"Department for Business, Energy and Industrial Strategy",The Coal Authority,01/11/2023,Fuel (Vehicle),ENV - Projects & Delivery,Allstar Business Solutions Ltd,167130,40.85
"Department for Business, Energy and Industrial Strategy",The Coal Authority,08/11/2023,Fuel (Vehicle),Facilities,Allstar Business Solutions Ltd,167158,100.96
"Department for Business, Energy and Industrial Strategy",The Coal Authority,08/11/2023,Fuel (Vehicle),Facilities,Allstar Business Solutions Ltd,167158,11.4
"Department for Business, Energy and Industrial Strategy",The Coal Authority,08/11/2023,Fuel (Vehicle),Facilities,Allstar Business Solutions Ltd,167158,83.11
"Department for Business, Energy and Industrial Strategy",The Coal Authority,08/11/2023,Fuel (Vehicle),Facilities,Allstar Business Solutions Ltd,167158,23.59
"Department for Business, Energy and Industrial Strategy",The Coal Authority,08/11/2023,Fuel (Vehicle),Facilities,Allstar Business Solutions Ltd,167158,57.83
"Department for Business, Energy and Industrial Strategy",The Coal Authority,08/11/2023,Fuel (Vehicle),PS&S - General Claims,Allstar Business Solutions Ltd,167163,54.79
"Department for Business, Energy and Industrial Strategy",The Coal Authority,08/11/2023,Fuel (Vehicle),PS&S - General Claims,Allstar Business Solutions Ltd,167163,50.42
"Department for Business, Energy and Industrial Strategy",The Coal Authority,08/11/2023,Fuel (Vehicle),PS&S - General Claims,Allstar Business Solutions Ltd,167163,45.5
"Department for Business, Energy and Industrial Strategy",The Coal Authority,08/11/2023,Fuel (Vehicle),PS&S - General Claims,Allstar Business Solutions Ltd,167163,46.58
"Department for Business, Energy and Industrial Strategy",The Coal Authority,08/11/2023,Fuel (Vehicle),PS&S - General Claims,Allstar Business Solutions Ltd,167163,73.97
"Department for Business, Energy and Industrial Strategy",The Coal Authority,08/11/2023,Fuel (Vehicle),PS&S - General Claims,Allstar Business Solutions Ltd,167163,40.52
"Department for Business, Energy and Industrial Strategy",The Coal Authority,08/11/2023,Fuel (Vehicle),PS&S - General Claims,Allstar Business Solutions Ltd,167163,27.38
"Department for Business, Energy and Industrial Strategy",The Coal Authority,08/11/2023,Fuel (Vehicle),PS&S - General Claims,Allstar Business Solutions Ltd,167163,17.1
"Department for Business, Energy and Industrial Strategy",The Coal Authority,08/11/2023,Fuel (Vehicle),Tips Response,Allstar Business Solutions Ltd,167163,45.69
"Department for Business, Energy and Industrial Strategy",The Coal Authority,08/11/2023,Fuel (Vehicle),Tips Response,Allstar Business Solutions Ltd,167163,43.85
"Department for Business, Energy and Industrial Strategy",The Coal Authority,15/11/2023,Fuel (Vehicle),PS&S - General Claims,Allstar Business Solutions Ltd,167580,54.08
"Department for Business, Energy and Industrial Strategy",The Coal Authority,15/11/2023,Fuel (Vehicle),PS&S - General Claims,Allstar Business Solutions Ltd,167580,75.63
"Department for Business, Energy and Industrial Strategy",The Coal Authority,15/11/2023,Fuel (Vehicle),PS&S - General Claims,Allstar Business Solutions Ltd,167580,44.23
"Department for Business, Energy and Industrial Strategy",The Coal Authority,15/11/2023,Fuel (Vehicle),PS&S - General Claims,Allstar Business Solutions Ltd,167580,38.53
"Department for Business, Energy and Industrial Strategy",The Coal Authority,15/11/2023,Fuel (Vehicle),PS&S - General Claims,Allstar Business Solutions Ltd,167580,51.29
"Department for Business, Energy and Industrial Strategy",The Coal Authority,15/11/2023,Fuel (Vehicle),PS&S - General Claims,Allstar Business Solutions Ltd,167580,15.2
"Department for Business, Energy and Industrial Strategy",The Coal Authority,15/11/2023,Fuel (Vehicle),Tips Response,Allstar Business Solutions Ltd,167580,39.33
"Department for Business, Energy and Industrial Strategy",The Coal Authority,15/11/2023,Fuel (Vehicle),Tips Response,Allstar Business Solutions Ltd,167580,39.88
"Department for Business, Energy and Industrial Strategy",The Coal Authority,15/11/2023,Fuel (Vehicle),Tips Response,Allstar Business Solutions Ltd,167580,74.73
"Department for Business, Energy and Industrial Strategy",The Coal Authority,15/11/2023,Fuel (Vehicle),Facilities,Allstar Business Solutions Ltd,167621,42.67
"Department for Business, Energy and Industrial Strategy",The Coal Authority,15/11/2023,Fuel (Vehicle),Facilities,Allstar Business Solutions Ltd,167621,38.78
"Department for Business, Energy and Industrial Strategy",The Coal Authority,15/11/2023,Fuel (Vehicle),Facilities,Allstar Business Solutions Ltd,167621,50.66
"Department for Business, Energy and Industrial Strategy",The Coal Authority,15/11/2023,Fuel (Vehicle),Facilities,Allstar Business Solutions Ltd,167621,61.32
"Department for Business, Energy and Industrial Strategy",The Coal Authority,15/11/2023,Fuel (Vehicle),Facilities,Allstar Business Solutions Ltd,167621,7.6
"Department for Business, Energy and Industrial Strategy",The Coal Authority,15/11/2023,Fuel (Vehicle),ENV - Mine Water Operations,Allstar Business Solutions Ltd,167686,40.99
"Department for Business, Energy and Industrial Strategy",The Coal Authority,04/10/2023,Fuel (Vehicle),ENV - Salinity Programme,Staff Control Expenses,167721,45.84
"Department for Business, Energy and Industrial Strategy",The Coal Authority,18/10/2023,Fuel (Vehicle),ENV - Salinity Programme,Staff Control Expenses,167721,14.59
"Department for Business, Energy and Industrial Strategy",The Coal Authority,18/10/2023,Fuel (Vehicle),ENV - Salinity Programme,Staff Control Expenses,167721,44.72
"Department for Business, Energy and Industrial Strategy",The Coal Authority,10/07/2023,Fuel (Vehicle),Executive,Government Procurement Card,167975,23.38
"Department for Business, Energy and Industrial Strategy",The Coal Authority,13/07/2023,Fuel (Vehicle),Executive,Government Procurement Card,167975,16.69
"Department for Business, Energy and Industrial Strategy",The Coal Authority,13/07/2023,Fuel (Vehicle),Executive,Government Procurement Card,167975,16.81
"Department for Business, Energy and Industrial Strategy",The Coal Authority,13/09/2023,Fuel (Vehicle),Heat & By-Product Innovation,Government Procurement Card,167978,50.01
"Department for Business, Energy and Industrial Strategy",The Coal Authority,23/10/2023,Fuel (Vehicle),NRW Metal Mine Programme,Staff Control Expenses,168103,35.25
"Department for Business, Energy and Industrial Strategy",The Coal Authority,08/11/2023,Fuel (Vehicle),ENV - Projects & Delivery,Staff Control Expenses,168103,39.38
"Department for Business, Energy and Industrial Strategy",The Coal Authority,16/11/2023,Fuel (Vehicle),NRW Metal Mine Programme,Staff Control Expenses,168103,23.69
"Department for Business, Energy and Industrial Strategy",The Coal Authority,21/11/2023,Fuel (Vehicle),DEV - Planning & Local Authority Liaison,Staff Control Expenses,168103,56.67
"Department for Business, Energy and Industrial Strategy",The Coal Authority,07/08/2023,Fuel (Vehicle),Heat & By-Product Innovation,Government Procurement Card,168226,34.91
"Department for Business, Energy and Industrial Strategy",The Coal Authority,03/10/2023,Fuel (Vehicle),Other Customers,Government Procurement Card,168336,59.82
"Department for Business, Energy and Industrial Strategy",The Coal Authority,04/10/2023,Fuel (Vehicle),ENV - Projects & Delivery,Government Procurement Card,168336,43.77
"Department for Business, Energy and Industrial Strategy",The Coal Authority,12/10/2023,Fuel (Vehicle),DEFRA Metal Mine Programme,Government Procurement Card,168336,56.33
"Department for Business, Energy and Industrial Strategy",The Coal Authority,13/10/2023,Fuel (Vehicle),DEFRA Metal Mine Programme,Government Procurement Card,168336,38.16
"Department for Business, Energy and Industrial Strategy",The Coal Authority,18/10/2023,Fuel (Vehicle),PS&S - General Claims,Government Procurement Card,168336,51.01
"Department for Business, Energy and Industrial Strategy",The Coal Authority,19/10/2023,Fuel (Vehicle),PS&S - General Claims,Government Procurement Card,168336,54.67
"Department for Business, Energy and Industrial Strategy",The Coal Authority,20/10/2023,Fuel (Vehicle),DEFRA LEP Funding,Government Procurement Card,168336,48.36
"Department for Business, Energy and Industrial Strategy",The Coal Authority,20/10/2023,Fuel (Vehicle),PS&S - General Claims,Government Procurement Card,168336,44.75
"Department for Business, Energy and Industrial Strategy",The Coal Authority,02/11/2023,Fuel (Vehicle),PS&S - General Claims,Government Procurement Card,168336,39.68
"Department for Business, Energy and Industrial Strategy",The Coal Authority,03/10/2023,Fuel (Vehicle),DEFRA Metal Mine Programme,Government Procurement Card,168348,57.48
"Department for Business, Energy and Industrial Strategy",The Coal Authority,03/10/2023,Fuel (Vehicle),ENV - Mine Water Operations,Government Procurement Card,168348,45.83
"Department for Business, Energy and Industrial Strategy",The Coal Authority,03/10/2023,Fuel (Vehicle),ENV - Mine Water Operations,Government Procurement Card,168348,77.96
"Department for Business, Energy and Industrial Strategy",The Coal Authority,04/10/2023,Fuel (Vehicle),DEFRA Metal Mine Programme,Government Procurement Card,168348,59.35
"Department for Business, Energy and Industrial Strategy",The Coal Authority,04/10/2023,Fuel (Vehicle),PS&S - General Claims,Government Procurement Card,168348,16.68
"Department for Business, Energy and Industrial Strategy",The Coal Authority,05/10/2023,Fuel (Vehicle),DEFRA Metal Mine Programme,Government Procurement Card,168348,50.79
"Department for Business, Energy and Industrial Strategy",The Coal Authority,05/10/2023,Fuel (Vehicle),"Health, Safety & Wellbeing",Government Procurement Card,168348,49.28
"Department for Business, Energy and Industrial Strategy",The Coal Authority,05/10/2023,Fuel (Vehicle),PS&S - General Claims,Government Procurement Card,168348,49.59
"Department for Business, Energy and Industrial Strategy",The Coal Authority,06/10/2023,Fuel (Vehicle),DEFRA Metal Mine Programme,Government Procurement Card,168348,47.33
"Department for Business, Energy and Industrial Strategy",The Coal Authority,06/10/2023,Fuel (Vehicle),DEV - Licensing,Government Procurement Card,168348,63.34
"Department for Business, Energy and Industrial Strategy",The Coal Authority,06/10/2023,Fuel (Vehicle),ENV - Mine Water Operations,Government Procurement Card,168348,39.17
"Department for Business, Energy and Industrial Strategy",The Coal Authority,11/10/2023,Fuel (Vehicle),ENV - Mine Water Operations,Government Procurement Card,168348,51.99
"Department for Business, Energy and Industrial Strategy",The Coal Authority,11/10/2023,Fuel (Vehicle),NRW Metal Mine Programme,Government Procurement Card,168348,62.41
"Department for Business, Energy and Industrial Strategy",The Coal Authority,12/10/2023,Fuel (Vehicle),ENV - Mine Water Operations,Government Procurement Card,168348,41.68
"Department for Business, Energy and Industrial Strategy",The Coal Authority,12/10/2023,Fuel (Vehicle),ENV - Mine Water Operations,Government Procurement Card,168348,46.06
"Department for Business, Energy and Industrial Strategy",The Coal Authority,12/10/2023,Fuel (Vehicle),NRW Metal Mine Programme,Government Procurement Card,168348,12.5
"Department for Business, Energy and Industrial Strategy",The Coal Authority,13/10/2023,Fuel (Vehicle),ENV - Mine Water Operations,Government Procurement Card,168348,82.29
"Department for Business, Energy and Industrial Strategy",The Coal Authority,17/10/2023,Fuel (Vehicle),ENV - Mine Water Operations,Government Procurement Card,168348,60.21
"Department for Business, Energy and Industrial Strategy",The Coal Authority,18/10/2023,Fuel (Vehicle),ENV - Mine Water Operations,Government Procurement Card,168348,41.68
"Department for Business, Energy and Industrial Strategy",The Coal Authority,19/10/2023,Fuel (Vehicle),ENV - Mine Water Operations,Government Procurement Card,168348,33.35
"Department for Business, Energy and Industrial Strategy",The Coal Authority,20/10/2023,Fuel (Vehicle),PS&S - General Claims,Government Procurement Card,168348,22
"Department for Business, Energy and Industrial Strategy",The Coal Authority,21/10/2023,Fuel (Vehicle),PS&S - General Claims,Government Procurement Card,168348,1
"Department for Business, Energy and Industrial Strategy",The Coal Authority,24/10/2023,Fuel (Vehicle),Engineering,Government Procurement Card,168348,27.08
"Department for Business, Energy and Industrial Strategy",The Coal Authority,25/10/2023,Fuel (Vehicle),DEFRA Metal Mine Programme,Government Procurement Card,168348,45.38
"Department for Business, Energy and Industrial Strategy",The Coal Authority,25/10/2023,Fuel (Vehicle),ENV - Mine Water Operations,Government Procurement Card,168348,61.78
"Department for Business, Energy and Industrial Strategy",The Coal Authority,27/10/2023,Fuel (Vehicle),Innovation By-Product & Services Delivery,Government Procurement Card,168348,48.04
"Department for Business, Energy and Industrial Strategy",The Coal Authority,28/10/2023,Fuel (Vehicle),NRW Metal Mine Programme,Government Procurement Card,168348,60.76
"Department for Business, Energy and Industrial Strategy",The Coal Authority,29/10/2023,Fuel (Vehicle),ENV - Mine Water Operations,Government Procurement Card,168348,60.99
"Department for Business, Energy and Industrial Strategy",The Coal Authority,30/10/2023,Fuel (Vehicle),Tips Response,Government Procurement Card,168348,7.5
"Department for Business, Energy and Industrial Strategy",The Coal Authority,31/10/2023,Fuel (Vehicle),ENV - Mine Water Operations,Government Procurement Card,168348,78.03
"Department for Business, Energy and Industrial Strategy",The Coal Authority,31/10/2023,Fuel (Vehicle),Engineering,Government Procurement Card,168348,49.02
"Department for Business, Energy and Industrial Strategy",The Coal Authority,01/11/2023,Fuel (Vehicle),DEFRA Metal Mine Programme,Government Procurement Card,168348,18.18
"Department for Business, Energy and Industrial Strategy",The Coal Authority,01/11/2023,Fuel (Vehicle),Engineering,Government Procurement Card,168348,39.51
"Department for Business, Energy and Industrial Strategy",The Coal Authority,09/10/2023,Fuel (Vehicle),PS&S - General Claims,Government Procurement Card,168349,19.91
"Department for Business, Energy and Industrial Strategy",The Coal Authority,13/10/2023,Fuel (Vehicle),PS&S - General Claims,Government Procurement Card,168349,33.11
"Department for Business, Energy and Industrial Strategy",The Coal Authority,24/10/2023,Gas / Other Fuels,Facilities,Calor Gas Limited,166574,34.25
"Department for Business, Energy and Industrial Strategy",The Coal Authority,26/10/2023,Gas / Other Fuels,Facilities,Calor Gas Limited,166575,"1,246.40"
"Department for Business, Energy and Industrial Strategy",The Coal Authority,12/10/2023,Hotel & Accommodation,DIG - Architecture,Staff Control Expenses,166808,250
"Department for Business, Energy and Industrial Strategy",The Coal Authority,31/10/2023,Hotel & Accommodation,Finance,Corporate Travel Management North,166928,0.8
"Department for Business, Energy and Industrial Strategy",The Coal Authority,31/10/2023,Hotel & Accommodation,Finance,Corporate Travel Management North,166928,40.9
"Department for Business, Energy and Industrial Strategy",The Coal Authority,31/10/2023,Hotel & Accommodation,Finance,Corporate Travel Management North,166929,"11,232.57"
"Department for Business, Energy and Industrial Strategy",The Coal Authority,08/09/2023,Hotel & Accommodation,Innovation By-Product & Services Delivery,Government Procurement Card,167978,107.93
"Department for Business, Energy and Industrial Strategy",The Coal Authority,08/09/2023,Hotel & Accommodation,Innovation By-Product & Services Delivery,Government Procurement Card,167978,107.94
"Department for Business, Energy and Industrial Strategy",The Coal Authority,31/10/2023,Incidentals,DEFRA Metal Mine Programme,S P Foods,166506,86.8
"Department for Business, Energy and Industrial Strategy",The Coal Authority,31/10/2023,Incidentals,DEFRA Metal Mine Programme,S P Foods,166506,32.55
"Department for Business, Energy and Industrial Strategy",The Coal Authority,01/11/2023,Incidentals,Customer Services & Strategy,Security Plus Limited,166524,16.61
"Department for Business, Energy and Industrial Strategy",The Coal Authority,30/09/2023,Incidentals,Customer Services & Strategy,Groundsure Limited,167126,"26,111.50"
"Department for Business, Energy and Industrial Strategy",The Coal Authority,11/09/2023,Incidentals,Heat & By-Product Innovation,Staff Control Expenses,167326,5
"Department for Business, Energy and Industrial Strategy",The Coal Authority,11/09/2023,Incidentals,Heat & By-Product Innovation,Staff Control Expenses,167326,5
"Department for Business, Energy and Industrial Strategy",The Coal Authority,18/10/2023,Incidentals,DIG - GIS,Staff Control Expenses,167326,18.33
"Department for Business, Energy and Industrial Strategy",The Coal Authority,06/11/2023,Incidentals,ENV - Mine Water Operations,Staff Control Expenses,167326,2.2
"Department for Business, Energy and Industrial Strategy",The Coal Authority,07/11/2023,Incidentals,ENV - Mine Water Operations,Staff Control Expenses,167326,2.2
"Department for Business, Energy and Industrial Strategy",The Coal Authority,07/11/2023,Incidentals,Heat & By-Product Innovation,Staff Control Expenses,167326,11.67
"Department for Business, Energy and Industrial Strategy",The Coal Authority,31/10/2023,Incidentals,Innovation By-Product & Services Delivery,Data Energy Management Services Limited,167373,72.5
"Department for Business, Energy and Industrial Strategy",The Coal Authority,09/11/2023,Incidentals,DEV - Planning & Local Authority Liaison,Staff Control Expenses,167721,8
"Department for Business, Energy and Industrial Strategy",The Coal Authority,20/10/2023,Incidentals,Customer Services & Strategy,The Law Society,167768,894.84
"Department for Business, Energy and Industrial Strategy",The Coal Authority,20/10/2023,Incidentals,Customer Services & Strategy,The Law Society,167768,4
"Department for Business, Energy and Industrial Strategy",The Coal Authority,12/06/2023,Incidentals,Executive,Government Procurement Card,167976,5.4
"Department for Business, Energy and Industrial Strategy",The Coal Authority,12/06/2023,Incidentals,Executive,Government Procurement Card,167976,6.95
"Department for Business, Energy and Industrial Strategy",The Coal Authority,27/06/2023,Incidentals,Executive,Government Procurement Card,167976,8.1
"Department for Business, Energy and Industrial Strategy",The Coal Authority,28/06/2023,Incidentals,Executive,Government Procurement Card,167976,5.5
"Department for Business, Energy and Industrial Strategy",The Coal Authority,11/09/2023,Incidentals,Heat & By-Product Innovation,Government Procurement Card,167978,30
"Department for Business, Energy and Industrial Strategy",The Coal Authority,19/09/2023,Incidentals,PS&S - General Claims,Government Procurement Card,167978,1.6
"Department for Business, Energy and Industrial Strategy",The Coal Authority,20/09/2023,Incidentals,PS&S - General Claims,Government Procurement Card,167978,8.5
"Department for Business, Energy and Industrial Strategy",The Coal Authority,28/09/2023,Incidentals,Executive,Government Procurement Card,167978,16
"Department for Business, Energy and Industrial Strategy",The Coal Authority,02/10/2023,Incidentals,Heat & By-Product Innovation,Government Procurement Card,167978,5.42
"Department for Business, Energy and Industrial Strategy",The Coal Authority,25/09/2023,Incidentals,Customer Services & Strategy,Ideasbynet,168033,"2,130.00"
"Department for Business, Energy and Industrial Strategy",The Coal Authority,01/08/2022,Incidentals,Customer Services & Strategy,Security Plus Limited,168051,14.7
"Department for Business, Energy and Industrial Strategy",The Coal Authority,05/09/2023,Incidentals,Executive,Staff Control Expenses,168103,4.1
"Department for Business, Energy and Industrial Strategy",The Coal Authority,07/11/2023,Incidentals,ENV - Projects & Delivery,Staff Control Expenses,168103,4.4
"Department for Business, Energy and Industrial Strategy",The Coal Authority,15/11/2023,Incidentals,NRW Metal Mine Programme,Staff Control Expenses,168103,3.54
"Department for Business, Energy and Industrial Strategy",The Coal Authority,17/11/2023,Incidentals,Community Response,Staff Control Expenses,168103,4.5
"Department for Business, Energy and Industrial Strategy",The Coal Authority,30/10/2023,Incidentals,Innovation By-Product & Services Delivery,Adverset Media Solutions Limited,168179,45
"Department for Business, Energy and Industrial Strategy",The Coal Authority,21/08/2023,Incidentals,Executive,Government Procurement Card,168226,6.95
"Department for Business, Energy and Industrial Strategy",The Coal Authority,03/10/2023,Incidentals,ENV - Projects & Delivery,Government Procurement Card,168336,14.17
"Department for Business, Energy and Industrial Strategy",The Coal Authority,09/10/2023,Incidentals,DEFRA Metal Mine Programme,Government Procurement Card,168336,1.5
"Department for Business, Energy and Industrial Strategy",The Coal Authority,25/10/2023,Incidentals,PS&S - General Claims,Government Procurement Card,168336,3.67
"Department for Business, Energy and Industrial Strategy",The Coal Authority,05/10/2023,Incidentals,"Health, Safety & Wellbeing",Government Procurement Card,168348,4.4
"Department for Business, Energy and Industrial Strategy",The Coal Authority,10/10/2023,Incidentals,ENV - Mine Water Operations,Government Procurement Card,168348,2.2
"Department for Business, Energy and Industrial Strategy",The Coal Authority,14/10/2023,Incidentals,PS&S - General Claims,Government Procurement Card,168348,7
"Department for Business, Energy and Industrial Strategy",The Coal Authority,16/10/2023,Incidentals,DEV - Property Management,Government Procurement Card,168348,7
"Department for Business, Energy and Industrial Strategy",The Coal Authority,16/10/2023,Incidentals,Innovation By-Product & Services Delivery,Government Procurement Card,168348,4
"Department for Business, Energy and Industrial Strategy",The Coal Authority,16/10/2023,Incidentals,Innovation By-Product & Services Delivery,Government Procurement Card,168348,3.33
"Department for Business, Energy and Industrial Strategy",The Coal Authority,16/10/2023,Incidentals,PS&S - General Claims,Government Procurement Card,168348,4.17
"Department for Business, Energy and Industrial Strategy",The Coal Authority,18/10/2023,Incidentals,By-Products - Ochre,Government Procurement Card,168348,2.2
"Department for Business, Energy and Industrial Strategy",The Coal Authority,18/10/2023,Incidentals,Innovation By-Product & Services Delivery,Government Procurement Card,168348,6.67
"Department for Business, Energy and Industrial Strategy",The Coal Authority,19/10/2023,Incidentals,By-Products - Ochre,Government Procurement Card,168348,2.2
"Department for Business, Energy and Industrial Strategy",The Coal Authority,19/10/2023,Incidentals,Innovation By-Product & Services Delivery,Government Procurement Card,168348,27
"Department for Business, Energy and Industrial Strategy",The Coal Authority,25/10/2023,Incidentals,PS&S - General Claims,Government Procurement Card,168348,31.5
"Department for Business, Energy and Industrial Strategy",The Coal Authority,30/10/2023,Incidentals,Customer Services & Strategy,Government Procurement Card,168348,12
"Department for Business, Energy and Industrial Strategy",The Coal Authority,01/11/2023,Incidentals,PS&S - General Claims,Government Procurement Card,168348,20
"Department for Business, Energy and Industrial Strategy",The Coal Authority,06/10/2023,Incidentals,PS&S - General Claims,Government Procurement Card,168349,7
"Department for Business, Energy and Industrial Strategy",The Coal Authority,23/10/2023,Incidentals,PS&S - General Claims,Government Procurement Card,168349,0.83
"Department for Business, Energy and Industrial Strategy",The Coal Authority,26/10/2023,Incidentals,PS&S - General Claims,Government Procurement Card,168349,4.98
"Department for Business, Energy and Industrial Strategy",The Coal Authority,27/10/2023,Incidentals,PS&S - General Claims,Government Procurement Card,168349,7.94
"Department for Business, Energy and Industrial Strategy",The Coal Authority,31/10/2023,Information Security software support,DIG - Technical Delivery,Specialist Computer Centres Pl,166327,"1,480.50"
"Department for Business, Energy and Industrial Strategy",The Coal Authority,19/10/2023,Innovation Costs,Innovation By-Product & Services Delivery,Adverset Media Solutions Limited,166923,45
"Department for Business, Energy and Industrial Strategy",The Coal Authority,19/09/2023,Innovation Costs,Innovation By-Product & Services Delivery,Sibert Solar Ltd,166940,461.25
"Department for Business, Energy and Industrial Strategy",The Coal Authority,03/11/2023,Innovation Costs,Innovation By-Product & Services Delivery,Sibert Solar Ltd,166941,400
"Department for Business, Energy and Industrial Strategy",The Coal Authority,08/10/2023,Innovation Costs,By-Products - Energy,Sibert Solar Ltd,167006,272.2
"Department for Business, Energy and Industrial Strategy",The Coal Authority,07/11/2023,Innovation Costs,Innovation By-Product & Services Delivery,Severn Trent Serv Ops Uk Ltd,167107,91.65
"Department for Business, Energy and Industrial Strategy",The Coal Authority,07/11/2023,Innovation Costs,Innovation By-Product & Services Delivery,Severn Trent Serv Ops Uk Ltd,167107,"24,195.73"
"Department for Business, Energy and Industrial Strategy",The Coal Authority,07/11/2023,Innovation Costs,By-Products - Energy,Severn Trent Serv Ops Uk Ltd,167402,"3,623.90"
"Department for Business, Energy and Industrial Strategy",The Coal Authority,10/10/2023,Innovation Costs,DEFRA Metal Mine Programme,Government Procurement Card,168336,33.28
"Department for Business, Energy and Industrial Strategy",The Coal Authority,11/10/2023,Insurance Premiums,Procurement,Arthur J. Gallagher Insurance Brokers Limited,167309,"47,779.20"
"Department for Business, Energy and Industrial Strategy",The Coal Authority,11/10/2023,Insurance Premiums,Procurement,Arthur J. Gallagher Insurance Brokers Limited,167310,"33,600.00"
"Department for Business, Energy and Industrial Strategy",The Coal Authority,11/10/2023,Insurance Premiums,Procurement,Arthur J. Gallagher Insurance Brokers Limited,167319,898.79
"Department for Business, Energy and Industrial Strategy",The Coal Authority,05/10/2023,Insurance Premiums,Procurement,Arthur J. Gallagher Insurance Brokers Limited,167320,"4,500.00"
"Department for Business, Energy and Industrial Strategy",The Coal Authority,31/10/2023,Internet Service Provider & Comms,DIG - Technical Delivery,WCL UK Ltd (trading as Everything ICT),166526,"10,000.00"
"Department for Business, Energy and Industrial Strategy",The Coal Authority,17/10/2023,Legal - General,DEFRA Metal Mine Programme,Womble Bond Dickinson (UK) LLP,166301,"2,060.40"
"Department for Business, Energy and Industrial Strategy",The Coal Authority,26/09/2023,Legal - General,Legal & Governance,Browne Jacobson Llp Client Account,166391,"28,241.00"
"Department for Business, Energy and Industrial Strategy",The Coal Authority,26/09/2023,Legal - General,Legal & Governance,Browne Jacobson Llp Client Account,166391,"32,950.00"
"Department for Business, Energy and Industrial Strategy",The Coal Authority,22/08/2023,Legal - General,Legal & Governance,Anderson Strathern,166833,364
"Department for Business, Energy and Industrial Strategy",The Coal Authority,03/11/2023,Legal - General,People & Organisational Development,Browne Jacobson Llp Client Account,166975,"2,619.50"
"Department for Business, Energy and Industrial Strategy",The Coal Authority,25/10/2023,Legal - General,Legal & Governance,Browne Jacobson Llp Client Account,167065,187
"Department for Business, Energy and Industrial Strategy",The Coal Authority,25/10/2023,Legal - General,Legal & Governance,Browne Jacobson Llp Client Account,167070,958.6
"Department for Business, Energy and Industrial Strategy",The Coal Authority,20/10/2023,Legal - General,Legal & Governance,Browne Jacobson Llp Client Account,167071,326.4
"Department for Business, Energy and Industrial Strategy",The Coal Authority,20/10/2023,Legal - General,Legal & Governance,Browne Jacobson Llp Client Account,167071,"1,300.00"
"Department for Business, Energy and Industrial Strategy",The Coal Authority,27/10/2023,Legal - General,DEFRA Metal Mine Programme,Browne Jacobson Llp Client Account,167077,326.4
"Department for Business, Energy and Industrial Strategy",The Coal Authority,19/10/2023,Legal - General,Legal & Governance,Browne Jacobson Llp Client Account,167078,"1,153.60"
"Department for Business, Energy and Industrial Strategy",The Coal Authority,27/10/2023,Legal - General,DEFRA Metal Mine Programme,Browne Jacobson Llp Client Account,167080,527.81
"Department for Business, Energy and Industrial Strategy",The Coal Authority,27/10/2023,Legal - General,DEFRA Metal Mine Programme,Browne Jacobson Llp Client Account,167080,"1,912.59"
"Department for Business, Energy and Industrial Strategy",The Coal Authority,19/10/2023,Legal - General,Legal & Governance,Browne Jacobson Llp Client Account,167093,"1,369.60"
"Department for Business, Energy and Industrial Strategy",The Coal Authority,19/10/2023,Legal - General,Legal & Governance,Browne Jacobson Llp Client Account,167093,"2,350.00"
"Department for Business, Energy and Industrial Strategy",The Coal Authority,27/10/2023,Legal - General,Legal & Governance,Browne Jacobson Llp Client Account,167094,"1,513.70"
"Department for Business, Energy and Industrial Strategy",The Coal Authority,25/10/2023,Legal - General,Legal & Governance,Browne Jacobson Llp Client Account,167095,290.4
"Department for Business, Energy and Industrial Strategy",The Coal Authority,24/10/2023,Legal - General,Legal & Governance,Browne Jacobson Llp Client Account,167113,"9,574.40"
"Department for Business, Energy and Industrial Strategy",The Coal Authority,24/10/2023,Legal - General,Legal & Governance,Browne Jacobson Llp Client Account,167113,"15,125.00"
"Department for Business, Energy and Industrial Strategy",The Coal Authority,30/10/2023,Legal - General,Legal & Governance,Walker Morris,167431,644.62
"Department for Business, Energy and Industrial Strategy",The Coal Authority,30/10/2023,Legal - General,Legal & Governance,Walker Morris,167431,"1,446.90"
"Department for Business, Energy and Industrial Strategy",The Coal Authority,30/10/2023,Legal - General,Legal & Governance,Walker Morris,167431,"3,130.38"
"Department for Business, Energy and Industrial Strategy",The Coal Authority,23/10/2023,Legal - General,DEFRA Metal Mine Programme,Browne Jacobson Llp Client Account,167470,750
"Department for Business, Energy and Industrial Strategy",The Coal Authority,25/10/2023,Legal - General,ENV - Mine Water Operations,Browne Jacobson Llp Client Account,167471,"1,024.70"
"Department for Business, Energy and Industrial Strategy",The Coal Authority,25/10/2023,Legal - General,ENV - Mine Water Operations,Browne Jacobson Llp Client Account,167471,100.2
"Department for Business, Energy and Industrial Strategy",The Coal Authority,25/10/2023,Legal - General,Legal & Governance,Browne Jacobson Llp Client Account,167472,104.4
"Department for Business, Energy and Industrial Strategy",The Coal Authority,25/10/2023,Legal - General,Legal & Governance,Browne Jacobson Llp Client Account,167472,922.6
"Department for Business, Energy and Industrial Strategy",The Coal Authority,27/10/2023,Legal - General,Legal & Governance,Browne Jacobson Llp Client Account,167576,"10,243.90"
"Department for Business, Energy and Industrial Strategy",The Coal Authority,27/10/2023,Legal - General,Legal & Governance,Browne Jacobson Llp Client Account,167576,"7,520.00"
"Department for Business, Energy and Industrial Strategy",The Coal Authority,09/11/2023,Legal - General,Legal & Governance,Anderson Strathern,167757,13
"Department for Business, Energy and Industrial Strategy",The Coal Authority,20/11/2023,Legal - General,Legal & Governance,Anderson Strathern,167758,13
"Department for Business, Energy and Industrial Strategy",The Coal Authority,23/11/2023,Legal - General,Legal & Governance,Dla Piper Uk Llp,168234,200
"Department for Business, Energy and Industrial Strategy",The Coal Authority,23/11/2023,Legal - General,Legal & Governance,Dla Piper Uk Llp,168234,56.66
"Department for Business, Energy and Industrial Strategy",The Coal Authority,23/11/2023,Legal - General,Legal & Governance,Dla Piper Uk Llp,168234,"10,338.92"
"Department for Business, Energy and Industrial Strategy",The Coal Authority,23/11/2023,Legal - General,Legal & Governance,Dla Piper Uk Llp,168234,"57,500.00"
"Department for Business, Energy and Industrial Strategy",The Coal Authority,23/11/2023,Legal - General,Legal & Governance,Dla Piper Uk Llp,168234,"1,336.83"
"Department for Business, Energy and Industrial Strategy",The Coal Authority,23/11/2023,Legal - General,Legal & Governance,Dla Piper Scotland Llp,168235,350
"Department for Business, Energy and Industrial Strategy",The Coal Authority,23/11/2023,Legal - General,Legal & Governance,Dla Piper Scotland Llp,168235,"1,881.00"
"Department for Business, Energy and Industrial Strategy",The Coal Authority,27/10/2023,Legal - Property Title Search,Legal & Governance,Land Registry,166731,51
"Department for Business, Energy and Industrial Strategy",The Coal Authority,29/09/2023,Legal - Property Title Search,Legal & Governance,Land Registry,166935,87
"Department for Business, Energy and Industrial Strategy",The Coal Authority,03/11/2023,Legal - Property Title Search,Legal & Governance,Land Registry,167445,48
"Department for Business, Energy and Industrial Strategy",The Coal Authority,07/11/2023,Legal - Property Title Search,Legal & Governance,Land Registry,167446,83
"Department for Business, Energy and Industrial Strategy",The Coal Authority,10/11/2023,Legal - Property Title Search,Legal & Governance,Land Registry,167656,15
"Department for Business, Energy and Industrial Strategy",The Coal Authority,17/11/2023,Legal - Property Title Search,Legal & Governance,Land Registry,168262,21
"Department for Business, Energy and Industrial Strategy",The Coal Authority,15/11/2023,Legal - Property Title Search,Legal & Governance,Land Registry,168263,69
"Department for Business, Energy and Industrial Strategy",The Coal Authority,24/11/2023,Legal - Property Title Search,Legal & Governance,Land Registry,168265,3
"Department for Business, Energy and Industrial Strategy",The Coal Authority,06/11/2023,Membership Subscriptions,People & Organisational Development,Inclusive Employers Limited,166943,"3,250.00"
"Department for Business, Energy and Industrial Strategy",The Coal Authority,01/11/2023,Membership Subscriptions,Community Response,Staff Control Expenses,167326,243
"Department for Business, Energy and Industrial Strategy",The Coal Authority,09/11/2023,Membership Subscriptions,ENV - Projects & Delivery,Staff Control Expenses,167326,262.91
"Department for Business, Energy and Industrial Strategy",The Coal Authority,12/07/2023,Mileage Payments,PS&S - Management,Staff Control Expenses,166808,8.1
"Department for Business, Energy and Industrial Strategy",The Coal Authority,28/07/2023,Mileage Payments,PS&S - Management,Staff Control Expenses,166808,18.9
"Department for Business, Energy and Industrial Strategy",The Coal Authority,04/08/2023,Mileage Payments,PS&S - Management,Staff Control Expenses,166808,8.1
"Department for Business, Energy and Industrial Strategy",The Coal Authority,10/08/2023,Mileage Payments,PS&S - Management,Staff Control Expenses,166808,8.1
"Department for Business, Energy and Industrial Strategy",The Coal Authority,12/08/2023,Mileage Payments,PS&S - Management,Staff Control Expenses,166808,8.1
"Department for Business, Energy and Industrial Strategy",The Coal Authority,14/08/2023,Mileage Payments,PS&S - Management,Staff Control Expenses,166808,8.1
"Department for Business, Energy and Industrial Strategy",The Coal Authority,16/08/2023,Mileage Payments,PS&S - Management,Staff Control Expenses,166808,8.1
"Department for Business, Energy and Industrial Strategy",The Coal Authority,19/08/2023,Mileage Payments,PS&S - Management,Staff Control Expenses,166808,8.1
"Department for Business, Energy and Industrial Strategy",The Coal Authority,21/08/2023,Mileage Payments,PS&S - Management,Staff Control Expenses,166808,8.1
"Department for Business, Energy and Industrial Strategy",The Coal Authority,26/08/2023,Mileage Payments,PS&S - Management,Staff Control Expenses,166808,8.1
"Department for Business, Energy and Industrial Strategy",The Coal Authority,28/08/2023,Mileage Payments,PS&S - Management,Staff Control Expenses,166808,8.1
"Department for Business, Energy and Industrial Strategy",The Coal Authority,29/08/2023,Mileage Payments,PS&S - Management,Staff Control Expenses,166808,8.1
"Department for Business, Energy and Industrial Strategy",The Coal Authority,07/09/2023,Mileage Payments,PS&S - Management,Staff Control Expenses,166808,8.1
"Department for Business, Energy and Industrial Strategy",The Coal Authority,14/09/2023,Mileage Payments,"Health, Safety & Wellbeing",Staff Control Expenses,166808,6.97
"Department for Business, Energy and Industrial Strategy",The Coal Authority,14/09/2023,Mileage Payments,"Health, Safety & Wellbeing",Staff Control Expenses,166808,6.66
"Department for Business, Energy and Industrial Strategy",The Coal Authority,28/09/2023,Mileage Payments,NRW Metal Mine Programme,Staff Control Expenses,166808,14.4
"Department for Business, Energy and Industrial Strategy",The Coal Authority,04/10/2023,Mileage Payments,NRW Metal Mine Programme,Staff Control Expenses,166808,14.4
"Department for Business, Energy and Industrial Strategy",The Coal Authority,09/10/2023,Mileage Payments,PS&S - General Claims,Staff Control Expenses,166808,6.98
"Department for Business, Energy and Industrial Strategy",The Coal Authority,09/10/2023,Mileage Payments,PS&S - General Claims,Staff Control Expenses,166808,6.64
"Department for Business, Energy and Industrial Strategy",The Coal Authority,11/10/2023,Mileage Payments,PS&S - General Claims,Staff Control Expenses,166808,23.95
"Department for Business, Energy and Industrial Strategy",The Coal Authority,11/10/2023,Mileage Payments,PS&S - General Claims,Staff Control Expenses,166808,24.42
"Department for Business, Energy and Industrial Strategy",The Coal Authority,11/10/2023,Mileage Payments,PS&S - General Claims,Staff Control Expenses,166808,6.98
"Department for Business, Energy and Industrial Strategy",The Coal Authority,11/10/2023,Mileage Payments,PS&S - General Claims,Staff Control Expenses,166808,6.63
"Department for Business, Energy and Industrial Strategy",The Coal Authority,12/10/2023,Mileage Payments,PS&S - General Claims,Staff Control Expenses,166808,27.52
"Department for Business, Energy and Industrial Strategy",The Coal Authority,12/10/2023,Mileage Payments,PS&S - General Claims,Staff Control Expenses,166808,12.11
"Department for Business, Energy and Industrial Strategy",The Coal Authority,12/10/2023,Mileage Payments,PS&S - General Claims,Staff Control Expenses,166808,22.79
"Department for Business, Energy and Industrial Strategy",The Coal Authority,13/10/2023,Mileage Payments,PS&S - General Claims,Staff Control Expenses,166808,4.82
"Department for Business, Energy and Industrial Strategy",The Coal Authority,13/10/2023,Mileage Payments,PS&S - General Claims,Staff Control Expenses,166808,4.49
"Department for Business, Energy and Industrial Strategy",The Coal Authority,13/10/2023,Mileage Payments,PS&S - Management,Staff Control Expenses,166808,4.26
"Department for Business, Energy and Industrial Strategy",The Coal Authority,13/10/2023,Mileage Payments,PS&S - Management,Staff Control Expenses,166808,14.43
"Department for Business, Energy and Industrial Strategy",The Coal Authority,13/10/2023,Mileage Payments,PS&S - Management,Staff Control Expenses,166808,13.3
"Department for Business, Energy and Industrial Strategy",The Coal Authority,17/10/2023,Mileage Payments,ENV - Projects & Delivery,Staff Control Expenses,166808,37.34
"Department for Business, Energy and Industrial Strategy",The Coal Authority,17/10/2023,Mileage Payments,PS&S - General Claims,Staff Control Expenses,166808,6.98
"Department for Business, Energy and Industrial Strategy",The Coal Authority,17/10/2023,Mileage Payments,PS&S - General Claims,Staff Control Expenses,166808,6.64
"Department for Business, Energy and Industrial Strategy",The Coal Authority,18/10/2023,Mileage Payments,"Health, Safety & Wellbeing",Staff Control Expenses,166808,9.05
"Department for Business, Energy and Industrial Strategy",The Coal Authority,18/10/2023,Mileage Payments,"Health, Safety & Wellbeing",Staff Control Expenses,166808,9.04
"Department for Business, Energy and Industrial Strategy",The Coal Authority,20/10/2023,Mileage Payments,PS&S - General Claims,Staff Control Expenses,166808,30.58
"Department for Business, Energy and Industrial Strategy",The Coal Authority,20/10/2023,Mileage Payments,PS&S - General Claims,Staff Control Expenses,166808,31.14
"Department for Business, Energy and Industrial Strategy",The Coal Authority,23/10/2023,Mileage Payments,PS&S - General Claims,Staff Control Expenses,166808,3.15
"Department for Business, Energy and Industrial Strategy",The Coal Authority,23/10/2023,Mileage Payments,PS&S - General Claims,Staff Control Expenses,166808,5.62
"Department for Business, Energy and Industrial Strategy",The Coal Authority,23/10/2023,Mileage Payments,PS&S - General Claims,Staff Control Expenses,166808,22.8
"Department for Business, Energy and Industrial Strategy",The Coal Authority,23/10/2023,Mileage Payments,PS&S - General Claims,Staff Control Expenses,166808,21.79
"Department for Business, Energy and Industrial Strategy",The Coal Authority,23/10/2023,Mileage Payments,PS&S - General Claims,Staff Control Expenses,166808,97.2
"Department for Business, Energy and Industrial Strategy",The Coal Authority,23/10/2023,Mileage Payments,PS&S - Management,Staff Control Expenses,166808,27
"Department for Business, Energy and Industrial Strategy",The Coal Authority,24/10/2023,Mileage Payments,PS&S - General Claims,Staff Control Expenses,166808,97.2
"Department for Business, Energy and Industrial Strategy",The Coal Authority,25/10/2023,Mileage Payments,NRW Metal Mine Programme,Staff Control Expenses,166808,46.8
"Department for Business, Energy and Industrial Strategy",The Coal Authority,25/10/2023,Mileage Payments,PS&S - General Claims,Staff Control Expenses,166808,6.98
"Department for Business, Energy and Industrial Strategy",The Coal Authority,25/10/2023,Mileage Payments,PS&S - General Claims,Staff Control Expenses,166808,6.63
"Department for Business, Energy and Industrial Strategy",The Coal Authority,25/10/2023,Mileage Payments,PS&S - General Claims,Staff Control Expenses,166808,10.8
"Department for Business, Energy and Industrial Strategy",The Coal Authority,26/10/2023,Mileage Payments,PS&S - General Claims,Staff Control Expenses,166808,32.85
"Department for Business, Energy and Industrial Strategy",The Coal Authority,26/10/2023,Mileage Payments,PS&S - General Claims,Staff Control Expenses,166808,5.4
"Department for Business, Energy and Industrial Strategy",The Coal Authority,26/10/2023,Mileage Payments,PS&S - General Claims,Staff Control Expenses,166808,32.85
"Department for Business, Energy and Industrial Strategy",The Coal Authority,26/10/2023,Mileage Payments,PS&S - General Claims,Staff Control Expenses,166808,1.8
"Department for Business, Energy and Industrial Strategy",The Coal Authority,30/10/2023,Mileage Payments,DEFRA Metal Mine Programme,Staff Control Expenses,166808,13.95
"Department for Business, Energy and Industrial Strategy",The Coal Authority,30/10/2023,Mileage Payments,PS&S - Management,Staff Control Expenses,166808,27
"Department for Business, Energy and Industrial Strategy",The Coal Authority,31/10/2023,Mileage Payments,"Health, Safety & Wellbeing",Staff Control Expenses,166808,14.85
"Department for Business, Energy and Industrial Strategy",The Coal Authority,31/10/2023,Mileage Payments,"Health, Safety & Wellbeing",Staff Control Expenses,166808,14.85
"Department for Business, Energy and Industrial Strategy",The Coal Authority,02/11/2023,Mileage Payments,ENV - Salinity Programme,Staff Control Expenses,166808,6.3
"Department for Business, Energy and Industrial Strategy",The Coal Authority,02/11/2023,Mileage Payments,ENV - Salinity Programme,Staff Control Expenses,166808,6.3
"Department for Business, Energy and Industrial Strategy",The Coal Authority,02/11/2023,Mileage Payments,NRW Metal Mine Programme,Staff Control Expenses,166808,21.6
"Department for Business, Energy and Industrial Strategy",The Coal Authority,04/10/2023,Mileage Payments,PS&S - General Claims,Staff Control Expenses,167326,1.8
"Department for Business, Energy and Industrial Strategy",The Coal Authority,10/10/2023,Mileage Payments,Tip Management Services,Staff Control Expenses,167326,3.98
"Department for Business, Energy and Industrial Strategy",The Coal Authority,10/10/2023,Mileage Payments,Tip Management Services,Staff Control Expenses,167326,3.22
"Department for Business, Energy and Industrial Strategy",The Coal Authority,11/10/2023,Mileage Payments,PS&S - General Claims,Staff Control Expenses,167326,18.3
"Department for Business, Energy and Industrial Strategy",The Coal Authority,11/10/2023,Mileage Payments,PS&S - General Claims,Staff Control Expenses,167326,18.62
"Department for Business, Energy and Industrial Strategy",The Coal Authority,11/10/2023,Mileage Payments,Tip Management Services,Staff Control Expenses,167326,2.78
"Department for Business, Energy and Industrial Strategy",The Coal Authority,11/10/2023,Mileage Payments,Tip Management Services,Staff Control Expenses,167326,2.83
"Department for Business, Energy and Industrial Strategy",The Coal Authority,12/10/2023,Mileage Payments,Tip Management Services,Staff Control Expenses,167326,4.84
"Department for Business, Energy and Industrial Strategy",The Coal Authority,12/10/2023,Mileage Payments,Tip Management Services,Staff Control Expenses,167326,4.57
"Department for Business, Energy and Industrial Strategy",The Coal Authority,13/10/2023,Mileage Payments,PS&S - General Claims,Staff Control Expenses,167326,7.2
"Department for Business, Energy and Industrial Strategy",The Coal Authority,16/10/2023,Mileage Payments,Tip Management Services,Staff Control Expenses,167326,2.22
"Department for Business, Energy and Industrial Strategy",The Coal Authority,16/10/2023,Mileage Payments,Tip Management Services,Staff Control Expenses,167326,1.74
"Department for Business, Energy and Industrial Strategy",The Coal Authority,17/10/2023,Mileage Payments,Tip Management Services,Staff Control Expenses,167326,4.04
"Department for Business, Energy and Industrial Strategy",The Coal Authority,17/10/2023,Mileage Payments,Tip Management Services,Staff Control Expenses,167326,3.87
"Department for Business, Energy and Industrial Strategy",The Coal Authority,18/10/2023,Mileage Payments,Community Response,Staff Control Expenses,167326,10.68
"Department for Business, Energy and Industrial Strategy",The Coal Authority,18/10/2023,Mileage Payments,Community Response,Staff Control Expenses,167326,13.12
"Department for Business, Energy and Industrial Strategy",The Coal Authority,18/10/2023,Mileage Payments,Innovation By-Product & Services Delivery,Staff Control Expenses,167326,22.73
"Department for Business, Energy and Industrial Strategy",The Coal Authority,18/10/2023,Mileage Payments,Innovation By-Product & Services Delivery,Staff Control Expenses,167326,22.72
"Department for Business, Energy and Industrial Strategy",The Coal Authority,18/10/2023,Mileage Payments,Tip Management Services,Staff Control Expenses,167326,1.66
"Department for Business, Energy and Industrial Strategy",The Coal Authority,18/10/2023,Mileage Payments,Tip Management Services,Staff Control Expenses,167326,1.65
"Department for Business, Energy and Industrial Strategy",The Coal Authority,23/10/2023,Mileage Payments,Innovation By-Product & Services Delivery,Staff Control Expenses,167326,8.02
"Department for Business, Energy and Industrial Strategy",The Coal Authority,23/10/2023,Mileage Payments,Innovation By-Product & Services Delivery,Staff Control Expenses,167326,6.09
"Department for Business, Energy and Industrial Strategy",The Coal Authority,23/10/2023,Mileage Payments,Tip Management Services,Staff Control Expenses,167326,4.48
"Department for Business, Energy and Industrial Strategy",The Coal Authority,23/10/2023,Mileage Payments,Tip Management Services,Staff Control Expenses,167326,1.17
"Department for Business, Energy and Industrial Strategy",The Coal Authority,23/10/2023,Mileage Payments,Tip Management Services,Staff Control Expenses,167326,3.4
"Department for Business, Energy and Industrial Strategy",The Coal Authority,24/10/2023,Mileage Payments,Tip Management Services,Staff Control Expenses,167326,3.5
"Department for Business, Energy and Industrial Strategy",The Coal Authority,24/10/2023,Mileage Payments,Tip Management Services,Staff Control Expenses,167326,0.62
"Department for Business, Energy and Industrial Strategy",The Coal Authority,24/10/2023,Mileage Payments,Tip Management Services,Staff Control Expenses,167326,3.26
"Department for Business, Energy and Industrial Strategy",The Coal Authority,25/10/2023,Mileage Payments,Tip Management Services,Staff Control Expenses,167326,5.09
"Department for Business, Energy and Industrial Strategy",The Coal Authority,25/10/2023,Mileage Payments,Tip Management Services,Staff Control Expenses,167326,0.41
"Department for Business, Energy and Industrial Strategy",The Coal Authority,25/10/2023,Mileage Payments,Tip Management Services,Staff Control Expenses,167326,4.42
"Department for Business, Energy and Industrial Strategy",The Coal Authority,27/10/2023,Mileage Payments,PS&S - General Claims,Staff Control Expenses,167326,41.41
"Department for Business, Energy and Industrial Strategy",The Coal Authority,27/10/2023,Mileage Payments,PS&S - General Claims,Staff Control Expenses,167326,42.08
"Department for Business, Energy and Industrial Strategy",The Coal Authority,31/10/2023,Mileage Payments,Innovation By-Product & Services Delivery,Staff Control Expenses,167326,9.67
"Department for Business, Energy and Industrial Strategy",The Coal Authority,31/10/2023,Mileage Payments,Innovation By-Product & Services Delivery,Staff Control Expenses,167326,8.87
"Department for Business, Energy and Industrial Strategy",The Coal Authority,02/11/2023,Mileage Payments,Innovation By-Product & Services Delivery,Staff Control Expenses,167326,9.67
"Department for Business, Energy and Industrial Strategy",The Coal Authority,02/11/2023,Mileage Payments,Innovation By-Product & Services Delivery,Staff Control Expenses,167326,7.33
"Department for Business, Energy and Industrial Strategy",The Coal Authority,02/11/2023,Mileage Payments,Innovation By-Product & Services Delivery,Staff Control Expenses,167326,6.08
"Department for Business, Energy and Industrial Strategy",The Coal Authority,08/11/2023,Mileage Payments,ENV - Technical,Staff Control Expenses,167326,12.15
"Department for Business, Energy and Industrial Strategy",The Coal Authority,08/11/2023,Mileage Payments,ENV - Technical,Staff Control Expenses,167326,12.15
"Department for Business, Energy and Industrial Strategy",The Coal Authority,09/11/2023,Mileage Payments,ENV - Mine Water Operations,Staff Control Expenses,167326,19.88
"Department for Business, Energy and Industrial Strategy",The Coal Authority,09/11/2023,Mileage Payments,ENV - Mine Water Operations,Staff Control Expenses,167326,21.18
"Department for Business, Energy and Industrial Strategy",The Coal Authority,16/10/2023,Mileage Payments,DEV - Property Management,Staff Control Expenses,167721,11.65
"Department for Business, Energy and Industrial Strategy",The Coal Authority,16/10/2023,Mileage Payments,DEV - Property Management,Staff Control Expenses,167721,11.63
"Department for Business, Energy and Industrial Strategy",The Coal Authority,26/10/2023,Mileage Payments,ENV - Projects & Delivery,Staff Control Expenses,167721,144
"Department for Business, Energy and Industrial Strategy",The Coal Authority,30/10/2023,Mileage Payments,PS&S - General Claims,Staff Control Expenses,167721,2.7
"Department for Business, Energy and Industrial Strategy",The Coal Authority,30/10/2023,Mileage Payments,PS&S - General Claims,Staff Control Expenses,167721,7.65
"Department for Business, Energy and Industrial Strategy",The Coal Authority,30/10/2023,Mileage Payments,PS&S - General Claims,Staff Control Expenses,167721,2.25
"Department for Business, Energy and Industrial Strategy",The Coal Authority,30/10/2023,Mileage Payments,PS&S - General Claims,Staff Control Expenses,167721,4.5
"Department for Business, Energy and Industrial Strategy",The Coal Authority,31/10/2023,Mileage Payments,PS&S - General Claims,Staff Control Expenses,167721,18
"Department for Business, Energy and Industrial Strategy",The Coal Authority,01/11/2023,Mileage Payments,PS&S - General Claims,Staff Control Expenses,167721,81
"Department for Business, Energy and Industrial Strategy",The Coal Authority,06/11/2023,Mileage Payments,PS&S - General Claims,Staff Control Expenses,167721,4.05
"Department for Business, Energy and Industrial Strategy",The Coal Authority,06/11/2023,Mileage Payments,PS&S - General Claims,Staff Control Expenses,167721,7.2
"Department for Business, Energy and Industrial Strategy",The Coal Authority,06/11/2023,Mileage Payments,PS&S - General Claims,Staff Control Expenses,167721,10.35
"Department for Business, Energy and Industrial Strategy",The Coal Authority,07/11/2023,Mileage Payments,PS&S - General Claims,Staff Control Expenses,167721,10.35
"Department for Business, Energy and Industrial Strategy",The Coal Authority,07/11/2023,Mileage Payments,PS&S - General Claims,Staff Control Expenses,167721,4.05
"Department for Business, Energy and Industrial Strategy",The Coal Authority,07/11/2023,Mileage Payments,PS&S - General Claims,Staff Control Expenses,167721,7.2
"Department for Business, Energy and Industrial Strategy",The Coal Authority,08/11/2023,Mileage Payments,PS&S - General Claims,Staff Control Expenses,167721,4.05
"Department for Business, Energy and Industrial Strategy",The Coal Authority,08/11/2023,Mileage Payments,PS&S - General Claims,Staff Control Expenses,167721,7.2
"Department for Business, Energy and Industrial Strategy",The Coal Authority,08/11/2023,Mileage Payments,PS&S - General Claims,Staff Control Expenses,167721,10.35
"Department for Business, Energy and Industrial Strategy",The Coal Authority,10/11/2023,Mileage Payments,PS&S - General Claims,Staff Control Expenses,167721,9
"Department for Business, Energy and Industrial Strategy",The Coal Authority,14/11/2023,Mileage Payments,PS&S - General Claims,Staff Control Expenses,167721,75.6
"Department for Business, Energy and Industrial Strategy",The Coal Authority,15/11/2023,Mileage Payments,PS&S - General Claims,Staff Control Expenses,167721,75.6
"Department for Business, Energy and Industrial Strategy",The Coal Authority,16/11/2023,Mileage Payments,PS&S - General Claims,Staff Control Expenses,167721,8.1
"Department for Business, Energy and Industrial Strategy",The Coal Authority,16/11/2023,Mileage Payments,PS&S - General Claims,Staff Control Expenses,167721,4.05
"Department for Business, Energy and Industrial Strategy",The Coal Authority,16/11/2023,Mileage Payments,PS&S - General Claims,Staff Control Expenses,167721,11.25
"Department for Business, Energy and Industrial Strategy",The Coal Authority,17/11/2023,Mileage Payments,PS&S - General Claims,Staff Control Expenses,167721,4.05
"Department for Business, Energy and Industrial Strategy",The Coal Authority,17/11/2023,Mileage Payments,PS&S - General Claims,Staff Control Expenses,167721,19.35
"Department for Business, Energy and Industrial Strategy",The Coal Authority,17/11/2023,Mileage Payments,PS&S - General Claims,Staff Control Expenses,167721,22.05
"Department for Business, Energy and Industrial Strategy",The Coal Authority,23/08/2023,Mileage Payments,PS&S - General Claims,Staff Control Expenses,168103,72.9
"Department for Business, Energy and Industrial Strategy",The Coal Authority,04/09/2023,Mileage Payments,Executive,Staff Control Expenses,168103,55.35
"Department for Business, Energy and Industrial Strategy",The Coal Authority,05/09/2023,Mileage Payments,Executive,Staff Control Expenses,168103,77.85
"Department for Business, Energy and Industrial Strategy",The Coal Authority,06/09/2023,Mileage Payments,Executive,Staff Control Expenses,168103,96.3
"Department for Business, Energy and Industrial Strategy",The Coal Authority,12/09/2023,Mileage Payments,PS&S - General Claims,Staff Control Expenses,168103,72.9
"Department for Business, Energy and Industrial Strategy",The Coal Authority,22/09/2023,Mileage Payments,Executive,Staff Control Expenses,168103,31.5
"Department for Business, Energy and Industrial Strategy",The Coal Authority,28/09/2023,Mileage Payments,PS&S - General Claims,Staff Control Expenses,168103,4.8
"Department for Business, Energy and Industrial Strategy",The Coal Authority,28/09/2023,Mileage Payments,PS&S - General Claims,Staff Control Expenses,168103,5.49
"Department for Business, Energy and Industrial Strategy",The Coal Authority,28/09/2023,Mileage Payments,PS&S - General Claims,Staff Control Expenses,168103,37.33
"Department for Business, Energy and Industrial Strategy",The Coal Authority,28/09/2023,Mileage Payments,PS&S - General Claims,Staff Control Expenses,168103,38.31
"Department for Business, Energy and Industrial Strategy",The Coal Authority,05/10/2023,Mileage Payments,PS&S - General Claims,Staff Control Expenses,168103,40.5
"Department for Business, Energy and Industrial Strategy",The Coal Authority,09/10/2023,Mileage Payments,Executive,Staff Control Expenses,168103,25.2
"Department for Business, Energy and Industrial Strategy",The Coal Authority,13/10/2023,Mileage Payments,PS&S - General Claims,Staff Control Expenses,168103,12.6
"Department for Business, Energy and Industrial Strategy",The Coal Authority,17/10/2023,Mileage Payments,PS&S - General Claims,Staff Control Expenses,168103,5.5
"Department for Business, Energy and Industrial Strategy",The Coal Authority,17/10/2023,Mileage Payments,PS&S - General Claims,Staff Control Expenses,168103,37.32
"Department for Business, Energy and Industrial Strategy",The Coal Authority,17/10/2023,Mileage Payments,PS&S - General Claims,Staff Control Expenses,168103,35.14
"Department for Business, Energy and Industrial Strategy",The Coal Authority,18/10/2023,Mileage Payments,ENV - Technical,Staff Control Expenses,168103,48.6
"Department for Business, Energy and Industrial Strategy",The Coal Authority,18/10/2023,Mileage Payments,ENV - Technical,Staff Control Expenses,168103,43.65
"Department for Business, Energy and Industrial Strategy",The Coal Authority,25/10/2023,Mileage Payments,NRW Metal Mine Programme,Staff Control Expenses,168103,31.9
"Department for Business, Energy and Industrial Strategy",The Coal Authority,25/10/2023,Mileage Payments,NRW Metal Mine Programme,Staff Control Expenses,168103,31.92
"Department for Business, Energy and Industrial Strategy",The Coal Authority,31/10/2023,Mileage Payments,PS&S - General Claims,Staff Control Expenses,168103,6.98
"Department for Business, Energy and Industrial Strategy",The Coal Authority,31/10/2023,Mileage Payments,PS&S - General Claims,Staff Control Expenses,168103,8.55
"Department for Business, Energy and Industrial Strategy",The Coal Authority,06/11/2023,Mileage Payments,PS&S - General Claims,Staff Control Expenses,168103,6.98
"Department for Business, Energy and Industrial Strategy",The Coal Authority,06/11/2023,Mileage Payments,PS&S - General Claims,Staff Control Expenses,168103,6.63
"Department for Business, Energy and Industrial Strategy",The Coal Authority,08/11/2023,Mileage Payments,NRW Metal Mine Programme,Staff Control Expenses,168103,31.9
"Department for Business, Energy and Industrial Strategy",The Coal Authority,08/11/2023,Mileage Payments,NRW Metal Mine Programme,Staff Control Expenses,168103,31.93
"Department for Business, Energy and Industrial Strategy",The Coal Authority,10/11/2023,Mileage Payments,PS&S - General Claims,Staff Control Expenses,168103,6.64
"Department for Business, Energy and Industrial Strategy",The Coal Authority,10/11/2023,Mileage Payments,PS&S - General Claims,Staff Control Expenses,168103,6.98
"Department for Business, Energy and Industrial Strategy",The Coal Authority,14/11/2023,Mileage Payments,Innovation By-Product & Services Delivery,Staff Control Expenses,168103,63.21
"Department for Business, Energy and Industrial Strategy",The Coal Authority,14/11/2023,Mileage Payments,Innovation By-Product & Services Delivery,Staff Control Expenses,168103,62.59
"Department for Business, Energy and Industrial Strategy",The Coal Authority,14/11/2023,Mileage Payments,PS&S - General Claims,Staff Control Expenses,168103,6.98
"Department for Business, Energy and Industrial Strategy",The Coal Authority,14/11/2023,Mileage Payments,PS&S - General Claims,Staff Control Expenses,168103,8.55
"Department for Business, Energy and Industrial Strategy",The Coal Authority,15/11/2023,Mileage Payments,Community Response,Staff Control Expenses,168103,13.13
"Department for Business, Energy and Industrial Strategy",The Coal Authority,15/11/2023,Mileage Payments,Community Response,Staff Control Expenses,168103,10.68
"Department for Business, Energy and Industrial Strategy",The Coal Authority,15/11/2023,Mileage Payments,NRW Metal Mine Programme,Staff Control Expenses,168103,13.68
"Department for Business, Energy and Industrial Strategy",The Coal Authority,15/11/2023,Mileage Payments,NRW Metal Mine Programme,Staff Control Expenses,168103,14.02
"Department for Business, Energy and Industrial Strategy",The Coal Authority,15/11/2023,Mileage Payments,PS&S - General Claims,Staff Control Expenses,168103,6.98
"Department for Business, Energy and Industrial Strategy",The Coal Authority,15/11/2023,Mileage Payments,PS&S - General Claims,Staff Control Expenses,168103,8.55
"Department for Business, Energy and Industrial Strategy",The Coal Authority,16/11/2023,Mileage Payments,PS&S - General Claims,Staff Control Expenses,168103,12.11
"Department for Business, Energy and Industrial Strategy",The Coal Authority,16/11/2023,Mileage Payments,PS&S - General Claims,Staff Control Expenses,168103,5.21
"Department for Business, Energy and Industrial Strategy",The Coal Authority,16/11/2023,Mileage Payments,PS&S - General Claims,Staff Control Expenses,168103,21.95
"Department for Business, Energy and Industrial Strategy",The Coal Authority,16/11/2023,Mileage Payments,PS&S - General Claims,Staff Control Expenses,168103,27.52
"Department for Business, Energy and Industrial Strategy",The Coal Authority,17/11/2023,Mileage Payments,Community Response,Staff Control Expenses,168103,28.64
"Department for Business, Energy and Industrial Strategy",The Coal Authority,17/11/2023,Mileage Payments,PS&S - General Claims,Staff Control Expenses,168103,6.98
"Department for Business, Energy and Industrial Strategy",The Coal Authority,17/11/2023,Mileage Payments,PS&S - General Claims,Staff Control Expenses,168103,6.64
"Department for Business, Energy and Industrial Strategy",The Coal Authority,20/11/2023,Mileage Payments,Innovation By-Product & Services Delivery,Staff Control Expenses,168103,22.73
"Department for Business, Energy and Industrial Strategy",The Coal Authority,20/11/2023,Mileage Payments,Innovation By-Product & Services Delivery,Staff Control Expenses,168103,22.72
"Department for Business, Energy and Industrial Strategy",The Coal Authority,21/11/2023,Mileage Payments,PS&S - General Claims,Staff Control Expenses,168103,8.55
"Department for Business, Energy and Industrial Strategy",The Coal Authority,21/11/2023,Mileage Payments,PS&S - General Claims,Staff Control Expenses,168103,6.98
"Department for Business, Energy and Industrial Strategy",The Coal Authority,22/11/2023,Mileage Payments,Innovation By-Product & Services Delivery,Staff Control Expenses,168103,34.57
"Department for Business, Energy and Industrial Strategy",The Coal Authority,22/11/2023,Mileage Payments,PS&S - General Claims,Staff Control Expenses,168103,6.98
"Department for Business, Energy and Industrial Strategy",The Coal Authority,22/11/2023,Mileage Payments,PS&S - General Claims,Staff Control Expenses,168103,8.55
"Department for Business, Energy and Industrial Strategy",The Coal Authority,23/11/2023,Mileage Payments,Innovation By-Product & Services Delivery,Staff Control Expenses,168103,0.87
"Department for Business, Energy and Industrial Strategy",The Coal Authority,23/11/2023,Mileage Payments,Innovation By-Product & Services Delivery,Staff Control Expenses,168103,41.85
"Department for Business, Energy and Industrial Strategy",The Coal Authority,24/11/2023,Mileage Payments,PS&S - General Claims,Staff Control Expenses,168103,6.98
"Department for Business, Energy and Industrial Strategy",The Coal Authority,24/11/2023,Mileage Payments,PS&S - General Claims,Staff Control Expenses,168103,8.55
"Department for Business, Energy and Industrial Strategy",The Coal Authority,31/10/2023,Mine Entry Inspection - Contractor Costs,PS&S - General Claims,Interlocks Surveys,166481,"7,949.88"
"Department for Business, Energy and Industrial Strategy",The Coal Authority,31/10/2023,Mine Entry Inspection - Contractor Costs,PS&S - General Claims,Bethell Construction Limited,167030,"3,519.30"
"Department for Business, Energy and Industrial Strategy",The Coal Authority,27/10/2023,Mine Entry Inspection - Contractor Costs,PS&S - General Claims,Socotec UK Limited,168017,"4,695.68"
"Department for Business, Energy and Industrial Strategy",The Coal Authority,22/11/2023,Mine Entry Inspection - Contractor Costs,PS&S - General Claims,Llettyshenkin Cons Co Ltd,168032,"3,310.92"
"Department for Business, Energy and Industrial Strategy",The Coal Authority,23/11/2023,Mine Entry Inspection - Contractor Costs,PS&S - General Claims,Socotec UK Limited,168310,"4,732.80"
"Department for Business, Energy and Industrial Strategy",The Coal Authority,19/10/2023,Mine Entry Inspection - Contractor Costs,PS&S - General Claims,Firm of J & E Shepherd,168345,300
"Department for Business, Energy and Industrial Strategy",The Coal Authority,07/11/2023,Minewater Chemicals - Operational Sites,DEFRA Metal Mine Programme,John F Hunt Regeneration Ltd,166907,"9,580.03"
"Department for Business, Energy and Industrial Strategy",The Coal Authority,07/11/2023,Minewater Chemicals - Operational Sites,ENV - Mine Water Operations,Severn Trent Serv Ops Uk Ltd,167402,348.62
"Department for Business, Energy and Industrial Strategy",The Coal Authority,07/11/2023,Minewater Consultancy - Operational Sites,ENV - Mine Water Operations,AECOM Ltd,166884,"43,877.00"
"Department for Business, Energy and Industrial Strategy",The Coal Authority,18/08/2023,Minewater Consultancy - Operational Sites,ENV - Mine Water Operations,AECOM Ltd,168073,896.1
"Department for Business, Energy and Industrial Strategy",The Coal Authority,07/11/2023,Minewater Contractor Add. Task Order - Ops Site,DEFRA Metal Mine Programme,John F Hunt Regeneration Ltd,166907,"1,052.03"
"Department for Business, Energy and Industrial Strategy",The Coal Authority,07/11/2023,Minewater Contractor Add. Task Order - Ops Site,DEFRA Metal Mine Programme,Severn Trent Serv Ops Uk Ltd,167107,979.2
"Department for Business, Energy and Industrial Strategy",The Coal Authority,07/11/2023,Minewater Contractor Add. Task Order - Ops Site,DEFRA Metal Mine Programme,Severn Trent Serv Ops Uk Ltd,167107,802.51
"Department for Business, Energy and Industrial Strategy",The Coal Authority,07/11/2023,Minewater Contractor Add. Task Order - Ops Site,ENV - Mine Water Operations,Severn Trent Serv Ops Uk Ltd,167402,"1,208.22"
"Department for Business, Energy and Industrial Strategy",The Coal Authority,07/11/2023,Minewater Contractor Add. Task Order - Ops Site,ENV - Mine Water Operations,Severn Trent Serv Ops Uk Ltd,167402,81.17
"Department for Business, Energy and Industrial Strategy",The Coal Authority,07/11/2023,Minewater Contractor Add. Task Order - Ops Site,ENV - Mine Water Operations,Severn Trent Serv Ops Uk Ltd,167402,"1,885.08"
"Department for Business, Energy and Industrial Strategy",The Coal Authority,07/11/2023,Minewater Contractor Maint. Visits - Ops Site,DEFRA Metal Mine Programme,John F Hunt Regeneration Ltd,166907,"34,898.79"
"Department for Business, Energy and Industrial Strategy",The Coal Authority,07/11/2023,Minewater Contractor Maint. Visits - Ops Site,ENV - Mine Water Operations,Severn Trent Serv Ops Uk Ltd,167106,"8,886.80"
"Department for Business, Energy and Industrial Strategy",The Coal Authority,07/11/2023,Minewater Contractor Maint. Visits - Ops Site,ENV - Mine Water Operations,Severn Trent Serv Ops Uk Ltd,167108,"367,533.83"
"Department for Business, Energy and Industrial Strategy",The Coal Authority,07/11/2023,Minewater Contractor Maint. Visits - Ops Site,ENV - Mine Water Operations,Severn Trent Serv Ops Uk Ltd,167402,379.39
"Department for Business, Energy and Industrial Strategy",The Coal Authority,08/11/2023,Minewater Cost Benefit Analysis,DEFRA Metal Mine Programme,Idox Software Ltd,167640,"5,727.00"
"Department for Business, Energy and Industrial Strategy",The Coal Authority,27/11/2023,Minewater Discharge Consents,ENV - Salinity Programme,Environment Agency,168034,"1,500.00"
"Department for Business, Energy and Industrial Strategy",The Coal Authority,10/11/2023,Minewater Discharge Consents,DEFRA LEP Funding,Environment Agency,168067,"3,273.73"
"Department for Business, Energy and Industrial Strategy",The Coal Authority,25/10/2023,Minewater Feasibility / Scoping,DEFRA Metal Mine Programme,AECOM Ltd,166519,"4,518.00"
"Department for Business, Energy and Industrial Strategy",The Coal Authority,02/11/2023,Minewater Feasibility / Scoping,NRW Metal Mine Programme,Jeremy Benn Associates Ltd,166541,"13,513.91"
"Department for Business, Energy and Industrial Strategy",The Coal Authority,19/10/2023,Minewater Feasibility / Scoping,ENV - Projects & Delivery,WSP UK Ltd,166636,"12,079.13"
"Department for Business, Energy and Industrial Strategy",The Coal Authority,07/11/2023,Minewater Feasibility / Scoping,NRW Metal Mine Programme,Jeremy Benn Associates Ltd,166863,500.24
"Department for Business, Energy and Industrial Strategy",The Coal Authority,07/11/2023,Minewater Feasibility / Scoping,NRW Metal Mine Programme,Jeremy Benn Associates Ltd,166863,"1,925.45"
"Department for Business, Energy and Industrial Strategy",The Coal Authority,07/11/2023,Minewater Feasibility / Scoping,NRW Metal Mine Programme,Jeremy Benn Associates Ltd,166863,693.47
"Department for Business, Energy and Industrial Strategy",The Coal Authority,07/11/2023,Minewater Feasibility / Scoping,NRW Metal Mine Programme,Jeremy Benn Associates Ltd,166863,"2,614.15"
"Department for Business, Energy and Industrial Strategy",The Coal Authority,03/11/2023,Minewater Feasibility / Scoping,NRW Metal Mine Programme,AECOM Ltd,167181,"3,395.54"
"Department for Business, Energy and Industrial Strategy",The Coal Authority,08/11/2023,Minewater Feasibility / Scoping,ENV - Projects & Delivery,WSP UK Ltd,167504,865.41
"Department for Business, Energy and Industrial Strategy",The Coal Authority,16/11/2023,Minewater Feasibility / Scoping,NRW Metal Mine Programme,Ramboll Uk Ltd,167652,"22,052.00"
"Department for Business, Energy and Industrial Strategy",The Coal Authority,19/10/2023,Minewater Feasibility / Scoping,ENV - Projects & Delivery,WSP UK Ltd,167689,2.69
"Department for Business, Energy and Industrial Strategy",The Coal Authority,19/10/2023,Minewater Feasibility / Scoping,ENV - Projects & Delivery,WSP UK Ltd,167689,44.67
"Department for Business, Energy and Industrial Strategy",The Coal Authority,19/10/2023,Minewater Feasibility / Scoping,ENV - Projects & Delivery,WSP UK Ltd,167689,10.59
"Department for Business, Energy and Industrial Strategy",The Coal Authority,21/11/2023,Minewater Feasibility / Scoping,ENV - Projects & Delivery,WSP UK Ltd,167810,"2,158.42"
"Department for Business, Energy and Industrial Strategy",The Coal Authority,22/11/2023,Minewater Feasibility / Scoping,NRW Metal Mine Programme,AECOM Ltd,167917,"9,169.97"
"Department for Business, Energy and Industrial Strategy",The Coal Authority,22/11/2023,Minewater Feasibility / Scoping,ENV - Projects & Delivery,WSP UK Ltd,168213,"1,368.37"
"Department for Business, Energy and Industrial Strategy",The Coal Authority,22/11/2023,Minewater Feasibility / Scoping,ENV - Projects & Delivery,WSP UK Ltd,168213,"2,050.34"
"Department for Business, Energy and Industrial Strategy",The Coal Authority,27/09/2023,Minewater Feasibility / Scoping,ENV - Salinity Programme,Robertson Geologging Ltd,168246,320
"Department for Business, Energy and Industrial Strategy",The Coal Authority,27/09/2023,Minewater Feasibility / Scoping,ENV - Salinity Programme,Robertson Geologging Ltd,168246,"1,790.00"
"Department for Business, Energy and Industrial Strategy",The Coal Authority,22/08/2023,Minewater Investigation Studies,ENV - Salinity Programme,AECOM Ltd,166409,"8,821.52"
"Department for Business, Energy and Industrial Strategy",The Coal Authority,22/08/2023,Minewater Investigation Studies,ENV - Salinity Programme,AECOM Ltd,166409,"7,075.16"
"Department for Business, Energy and Industrial Strategy",The Coal Authority,30/10/2023,Minewater Investigation Studies,ENV - Salinity Programme,Robertson Geologging Ltd,166431,930
"Department for Business, Energy and Industrial Strategy",The Coal Authority,30/10/2023,Minewater Investigation Studies,ENV - Salinity Programme,Robertson Geologging Ltd,166436,"2,480.00"
"Department for Business, Energy and Industrial Strategy",The Coal Authority,19/10/2023,Minewater Investigation Studies,ENV - Salinity Programme,European Geophysical Services,166763,"2,538.60"
"Department for Business, Energy and Industrial Strategy",The Coal Authority,19/10/2023,Minewater Investigation Studies,ENV - Salinity Programme,European Geophysical Services,166763,50
"Department for Business, Energy and Industrial Strategy",The Coal Authority,10/11/2023,Minewater Investigation Studies,ENV - Salinity Programme,Calder Conference Ltd,167219,356.67
"Department for Business, Energy and Industrial Strategy",The Coal Authority,10/11/2023,Minewater Investigation Studies,ENV - Salinity Programme,Calder Conference Ltd,167219,71.33
"Department for Business, Energy and Industrial Strategy",The Coal Authority,07/11/2023,Minewater Investigation Studies,ENV - Technical,Severn Trent Serv Ops Uk Ltd,167402,"3,673.70"
"Department for Business, Energy and Industrial Strategy",The Coal Authority,08/11/2023,Minewater Investigation Studies,ENV - Salinity Programme,AECOM Ltd,167434,"129,844.23"
"Department for Business, Energy and Industrial Strategy",The Coal Authority,17/11/2023,Minewater Investigation Studies,ENV - Salinity Programme,European Geophysical Services,167888,"1,445.00"
"Department for Business, Energy and Industrial Strategy",The Coal Authority,15/11/2023,Minewater Investigation Studies,ENV - Salinity Programme,European Geophysical Services,167889,200.8
"Department for Business, Energy and Industrial Strategy",The Coal Authority,15/11/2023,Minewater Investigation Studies,ENV - Salinity Programme,European Geophysical Services,167889,"1,389.00"
"Department for Business, Energy and Industrial Strategy",The Coal Authority,29/09/2023,Minewater Investigation Studies,ENV - Salinity Programme,European Geophysical Services,167989,200
"Department for Business, Energy and Industrial Strategy",The Coal Authority,29/09/2023,Minewater Investigation Studies,ENV - Salinity Programme,European Geophysical Services,167989,"2,835.10"
"Department for Business, Energy and Industrial Strategy",The Coal Authority,28/11/2023,Minewater Investigation Studies,ENV - Salinity Programme,Robertson Geologging Ltd,168291,"2,850.00"
"Department for Business, Energy and Industrial Strategy",The Coal Authority,28/11/2023,Minewater Investigation Studies,ENV - Salinity Programme,Robertson Geologging Ltd,168291,"1,240.00"
"Department for Business, Energy and Industrial Strategy",The Coal Authority,28/11/2023,Minewater Investigation Studies,ENV - Salinity Programme,Robertson Geologging Ltd,168295,"4,240.00"
"Department for Business, Energy and Industrial Strategy",The Coal Authority,28/11/2023,Minewater Investigation Studies,ENV - Salinity Programme,Robertson Geologging Ltd,168296,"1,440.00"
"Department for Business, Energy and Industrial Strategy",The Coal Authority,07/11/2023,Minewater Jetting & Pigging,ENV - Mine Water Operations,Severn Trent Serv Ops Uk Ltd,167402,238.55
"Department for Business, Energy and Industrial Strategy",The Coal Authority,07/11/2023,Minewater Landscaping,ENV - Mine Water Operations,Severn Trent Serv Ops Uk Ltd,167402,"1,929.48"
"Department for Business, Energy and Industrial Strategy",The Coal Authority,07/11/2023,Minewater Management Fees,DEFRA Metal Mine Programme,John F Hunt Regeneration Ltd,166907,"51,566.73"
"Department for Business, Energy and Industrial Strategy",The Coal Authority,07/11/2023,Minewater Management Fees,ENV - Mine Water Operations,Severn Trent Serv Ops Uk Ltd,167402,140.75
"Department for Business, Energy and Industrial Strategy",The Coal Authority,31/10/2023,Minewater Monitoring & Flow Measurement,NRW Metal Mine Programme,Socotec UK Limited,166319,583.77
"Department for Business, Energy and Industrial Strategy",The Coal Authority,31/10/2023,Minewater Monitoring & Flow Measurement,DEFRA LEP Funding,Ramboll Uk Ltd,166370,"6,650.00"
"Department for Business, Energy and Industrial Strategy",The Coal Authority,31/10/2023,Minewater Monitoring & Flow Measurement,ENV - Projects & Delivery,Socotec UK Limited,166410,947.6
"Department for Business, Energy and Industrial Strategy",The Coal Authority,31/10/2023,Minewater Monitoring & Flow Measurement,NRW Metal Mine Programme,Socotec UK Limited,166532,265.89
"Department for Business, Energy and Industrial Strategy",The Coal Authority,20/11/2023,Minewater Monitoring & Flow Measurement,NRW Metal Mine Programme,Hydro-Logic Services Int Limited,168018,"1,893.75"
"Department for Business, Energy and Industrial Strategy",The Coal Authority,20/11/2023,Minewater Monitoring & Flow Measurement,NRW Metal Mine Programme,Hydro-Logic Services Int Limited,168020,"1,893.75"
"Department for Business, Energy and Industrial Strategy",The Coal Authority,27/11/2023,Minewater Monitoring & Flow Measurement,NRW Metal Mine Programme,Hydro-Logic Services Int Limited,168021,"-1,893.75"
"Department for Business, Energy and Industrial Strategy",The Coal Authority,16/10/2023,Minewater Monitoring & Flow Measurement,ENV - Projects & Delivery,Government Procurement Card,168348,143.89
"Department for Business, Energy and Industrial Strategy",The Coal Authority,16/10/2023,Minewater Monitoring & Flow Measurement,ENV - Technical,Government Procurement Card,168348,35.98
"Department for Business, Energy and Industrial Strategy",The Coal Authority,31/10/2023,Minewater Power Costs,DEFRA Metal Mine Programme,Wheal Jane Ltd,167283,745.31
"Department for Business, Energy and Industrial Strategy",The Coal Authority,01/11/2023,Minewater Power Costs,ENV - Mine Water Operations,Edf Energy,167285,"1,724.88"
"Department for Business, Energy and Industrial Strategy",The Coal Authority,01/11/2023,Minewater Power Costs,DEFRA Metal Mine Programme,Edf Energy,167286,290.6
"Department for Business, Energy and Industrial Strategy",The Coal Authority,06/11/2023,Minewater Power Costs,DEFRA Metal Mine Programme,Edf Energy,167428,"4,120.00"
"Department for Business, Energy and Industrial Strategy",The Coal Authority,06/11/2023,Minewater Power Costs,DEFRA Metal Mine Programme,Edf Energy,167428,"45,385.05"
"Department for Business, Energy and Industrial Strategy",The Coal Authority,06/11/2023,Minewater Power Costs,ENV - Mine Water Operations,Edf Energy,167428,"1,696.46"
"Department for Business, Energy and Industrial Strategy",The Coal Authority,06/11/2023,Minewater Power Costs,ENV - Mine Water Operations,Edf Energy,167428,"2,334.03"
"Department for Business, Energy and Industrial Strategy",The Coal Authority,06/11/2023,Minewater Power Costs,ENV - Mine Water Operations,Edf Energy,167428,"10,364.51"
"Department for Business, Energy and Industrial Strategy",The Coal Authority,06/11/2023,Minewater Power Costs,ENV - Mine Water Operations,Edf Energy,167428,"2,329.74"
"Department for Business, Energy and Industrial Strategy",The Coal Authority,06/11/2023,Minewater Power Costs,ENV - Mine Water Operations,Edf Energy,167428,"16,898.96"
"Department for Business, Energy and Industrial Strategy",The Coal Authority,06/11/2023,Minewater Power Costs,ENV - Mine Water Operations,Edf Energy,167428,"2,305.49"
"Department for Business, Energy and Industrial Strategy",The Coal Authority,06/11/2023,Minewater Power Costs,ENV - Mine Water Operations,Edf Energy,167428,"4,420.58"
"Department for Business, Energy and Industrial Strategy",The Coal Authority,06/11/2023,Minewater Power Costs,ENV - Mine Water Operations,Edf Energy,167428,"7,889.14"
"Department for Business, Energy and Industrial Strategy",The Coal Authority,06/11/2023,Minewater Power Costs,ENV - Mine Water Operations,Edf Energy,167428,"23,588.93"
"Department for Business, Energy and Industrial Strategy",The Coal Authority,06/11/2023,Minewater Power Costs,ENV - Mine Water Operations,Edf Energy,167428,"4,376.26"
"Department for Business, Energy and Industrial Strategy",The Coal Authority,06/11/2023,Minewater Power Costs,ENV - Mine Water Operations,Edf Energy,167428,"5,015.14"
"Department for Business, Energy and Industrial Strategy",The Coal Authority,06/11/2023,Minewater Power Costs,ENV - Mine Water Operations,Edf Energy,167428,"3,428.78"
"Department for Business, Energy and Industrial Strategy",The Coal Authority,06/11/2023,Minewater Power Costs,ENV - Mine Water Operations,Edf Energy,167428,"1,407.46"
"Department for Business, Energy and Industrial Strategy",The Coal Authority,06/11/2023,Minewater Power Costs,ENV - Mine Water Operations,Edf Energy,167428,"1,073.91"
"Department for Business, Energy and Industrial Strategy",The Coal Authority,06/11/2023,Minewater Power Costs,ENV - Mine Water Operations,Edf Energy,167428,"17,936.38"
"Department for Business, Energy and Industrial Strategy",The Coal Authority,06/11/2023,Minewater Power Costs,ENV - Mine Water Operations,Edf Energy,167428,"3,092.21"
"Department for Business, Energy and Industrial Strategy",The Coal Authority,06/11/2023,Minewater Power Costs,ENV - Mine Water Operations,Edf Energy,167428,"2,495.02"
"Department for Business, Energy and Industrial Strategy",The Coal Authority,06/11/2023,Minewater Power Costs,ENV - Mine Water Operations,Edf Energy,167428,"9,463.48"
"Department for Business, Energy and Industrial Strategy",The Coal Authority,06/11/2023,Minewater Power Costs,ENV - Mine Water Operations,Edf Energy,167428,"1,371.53"
"Department for Business, Energy and Industrial Strategy",The Coal Authority,06/11/2023,Minewater Power Costs,ENV - Mine Water Operations,Edf Energy,167428,"3,648.89"
"Department for Business, Energy and Industrial Strategy",The Coal Authority,06/11/2023,Minewater Power Costs,ENV - Mine Water Operations,Edf Energy,167428,"20,784.13"
"Department for Business, Energy and Industrial Strategy",The Coal Authority,06/11/2023,Minewater Power Costs,ENV - Mine Water Operations,Edf Energy,167428,"1,247.24"
"Department for Business, Energy and Industrial Strategy",The Coal Authority,06/11/2023,Minewater Power Costs,ENV - Mine Water Operations,Edf Energy,167428,84.22
"Department for Business, Energy and Industrial Strategy",The Coal Authority,06/11/2023,Minewater Power Costs,ENV - Mine Water Operations,Edf Energy,167428,"2,061.09"
"Department for Business, Energy and Industrial Strategy",The Coal Authority,06/11/2023,Minewater Power Costs,ENV - Mine Water Operations,Edf Energy,167428,"31,884.31"
"Department for Business, Energy and Industrial Strategy",The Coal Authority,06/11/2023,Minewater Power Costs,ENV - Mine Water Operations,Edf Energy,167428,"1,160.45"
"Department for Business, Energy and Industrial Strategy",The Coal Authority,06/11/2023,Minewater Power Costs,ENV - Mine Water Operations,Edf Energy,167428,"1,538.79"
"Department for Business, Energy and Industrial Strategy",The Coal Authority,06/11/2023,Minewater Power Costs,ENV - Mine Water Operations,Edf Energy,167428,"8,233.55"
"Department for Business, Energy and Industrial Strategy",The Coal Authority,06/11/2023,Minewater Power Costs,ENV - Mine Water Operations,Edf Energy,167428,"6,060.05"
"Department for Business, Energy and Industrial Strategy",The Coal Authority,06/11/2023,Minewater Power Costs,ENV - Mine Water Operations,Edf Energy,167428,"10,279.39"
"Department for Business, Energy and Industrial Strategy",The Coal Authority,06/11/2023,Minewater Power Costs,ENV - Mine Water Operations,Edf Energy,167428,"1,921.80"
"Department for Business, Energy and Industrial Strategy",The Coal Authority,06/11/2023,Minewater Power Costs,ENV - Mine Water Operations,Edf Energy,167428,"1,527.85"
"Department for Business, Energy and Industrial Strategy",The Coal Authority,06/11/2023,Minewater Power Costs,ENV - Mine Water Operations,Edf Energy,167428,"24,444.69"
"Department for Business, Energy and Industrial Strategy",The Coal Authority,06/11/2023,Minewater Power Costs,ENV - Mine Water Operations,Edf Energy,167428,"4,255.29"
"Department for Business, Energy and Industrial Strategy",The Coal Authority,06/11/2023,Minewater Power Costs,ENV - Mine Water Operations,Edf Energy,167428,"16,026.28"
"Department for Business, Energy and Industrial Strategy",The Coal Authority,06/11/2023,Minewater Power Costs,ENV - Mine Water Operations,Edf Energy,167428,"4,953.83"
"Department for Business, Energy and Industrial Strategy",The Coal Authority,06/11/2023,Minewater Power Costs,ENV - Mine Water Operations,Edf Energy,167428,"16,350.56"
"Department for Business, Energy and Industrial Strategy",The Coal Authority,06/11/2023,Minewater Power Costs,ENV - Mine Water Operations,Edf Energy,167428,"32,939.93"
"Department for Business, Energy and Industrial Strategy",The Coal Authority,06/11/2023,Minewater Power Costs,ENV - Mine Water Operations,Edf Energy,167428,"2,763.33"
"Department for Business, Energy and Industrial Strategy",The Coal Authority,06/11/2023,Minewater Power Costs,ENV - Mine Water Operations,Edf Energy,167428,"5,198.65"
"Department for Business, Energy and Industrial Strategy",The Coal Authority,06/11/2023,Minewater Power Costs,ENV - Mine Water Operations,Edf Energy,167428,"12,189.72"
"Department for Business, Energy and Industrial Strategy",The Coal Authority,06/11/2023,Minewater Power Costs,ENV - Mine Water Operations,Edf Energy,167428,"11,224.59"
"Department for Business, Energy and Industrial Strategy",The Coal Authority,06/11/2023,Minewater Power Costs,ENV - Mine Water Operations,Edf Energy,167428,"29,458.44"
"Department for Business, Energy and Industrial Strategy",The Coal Authority,06/11/2023,Minewater Power Costs,ENV - Mine Water Operations,Edf Energy,167428,"2,390.66"
"Department for Business, Energy and Industrial Strategy",The Coal Authority,06/11/2023,Minewater Power Costs,ENV - Mine Water Operations,Edf Energy,167428,"4,608.13"
"Department for Business, Energy and Industrial Strategy",The Coal Authority,06/11/2023,Minewater Power Costs,ENV - Mine Water Operations,Edf Energy,167428,"1,033.19"
"Department for Business, Energy and Industrial Strategy",The Coal Authority,06/11/2023,Minewater Power Costs,ENV - Mine Water Operations,Edf Energy,167428,209.85
"Department for Business, Energy and Industrial Strategy",The Coal Authority,06/11/2023,Minewater Power Costs,ENV - Mine Water Operations,Edf Energy,167428,"25,442.21"
"Department for Business, Energy and Industrial Strategy",The Coal Authority,06/11/2023,Minewater Power Costs,ENV - Projects & Delivery,Edf Energy,167428,"3,425.70"
"Department for Business, Energy and Industrial Strategy",The Coal Authority,09/11/2023,Minewater Pumping Tests,ENV - Projects & Delivery,Severn Trent Serv Ops Uk Ltd,167112,"-5,328.61"
"Department for Business, Energy and Industrial Strategy",The Coal Authority,07/11/2023,Minewater Pumping Tests,ENV - Projects & Delivery,Severn Trent Serv Ops Uk Ltd,167402,"1,691.11"
"Department for Business, Energy and Industrial Strategy",The Coal Authority,07/11/2023,Minewater Pumping Tests,ENV - Projects & Delivery,Severn Trent Serv Ops Uk Ltd,167402,186.5
"Department for Business, Energy and Industrial Strategy",The Coal Authority,07/11/2023,Minewater Pumping Tests,ENV - Projects & Delivery,Severn Trent Serv Ops Uk Ltd,167402,746.53
"Department for Business, Energy and Industrial Strategy",The Coal Authority,07/11/2023,Minewater Pumping Tests,ENV - Projects & Delivery,Severn Trent Serv Ops Uk Ltd,167402,"1,091.01"
"Department for Business, Energy and Industrial Strategy",The Coal Authority,07/11/2023,Minewater Pumping Tests,ENV - Salinity Programme,Severn Trent Serv Ops Uk Ltd,167402,46.46
"Department for Business, Energy and Industrial Strategy",The Coal Authority,07/11/2023,Minewater Pumping Tests,ENV - Salinity Programme,Severn Trent Serv Ops Uk Ltd,167402,67.69
"Department for Business, Energy and Industrial Strategy",The Coal Authority,07/11/2023,Minewater Pumping Tests,ENV - Salinity Programme,Severn Trent Serv Ops Uk Ltd,167402,465.19
"Department for Business, Energy and Industrial Strategy",The Coal Authority,07/11/2023,Minewater Pumping Tests,ENV - Salinity Programme,Severn Trent Serv Ops Uk Ltd,167402,"2,972.00"
"Department for Business, Energy and Industrial Strategy",The Coal Authority,06/11/2023,Minewater Pumping Tests,ENV - Salinity Programme,Edf Energy,167428,"18,757.75"
"Department for Business, Energy and Industrial Strategy",The Coal Authority,07/11/2023,Minewater Remediation,ENV - Mine Water Operations,Severn Trent Serv Ops Uk Ltd,167402,41.35
"Department for Business, Energy and Industrial Strategy",The Coal Authority,07/11/2023,Minewater Remediation,ENV - Mine Water Operations,Severn Trent Serv Ops Uk Ltd,167402,"5,364.18"
"Department for Business, Energy and Industrial Strategy",The Coal Authority,07/11/2023,Minewater Remediation,ENV - Mine Water Operations,Severn Trent Serv Ops Uk Ltd,167402,701.19
"Department for Business, Energy and Industrial Strategy",The Coal Authority,07/11/2023,Minewater Remediation,ENV - Mine Water Operations,Severn Trent Serv Ops Uk Ltd,167402,"1,325.44"
"Department for Business, Energy and Industrial Strategy",The Coal Authority,01/11/2023,Minewater Rent,DEFRA Metal Mine Programme,Brownfield Investments Ltd,166792,"22,269.25"
"Department for Business, Energy and Industrial Strategy",The Coal Authority,01/11/2023,Minewater Rent,DEFRA Metal Mine Programme,Brownfield Investments Ltd,166792,360
"Department for Business, Energy and Industrial Strategy",The Coal Authority,06/11/2023,Minewater Rent,ENV - Mine Water Operations,A W Richardson & Sons,166825,930.83
"Department for Business, Energy and Industrial Strategy",The Coal Authority,06/11/2023,Minewater Rent,ENV - Mine Water Operations,D I & M R Crooks & Sons,166828,582.9
"Department for Business, Energy and Industrial Strategy",The Coal Authority,06/11/2023,Minewater Rent,ENV - Mine Water Operations,Rental Payment,166829,750
"Department for Business, Energy and Industrial Strategy",The Coal Authority,06/11/2023,Minewater Rent,ENV - Projects & Delivery,Rental Payment,166831,"1,000.00"
"Department for Business, Energy and Industrial Strategy",The Coal Authority,06/11/2023,Minewater Rent,ENV - Mine Water Operations,Bridgend CBC Income Account,166832,"1,155.00"
"Department for Business, Energy and Industrial Strategy",The Coal Authority,28/11/2023,Minewater Rent,ENV - Projects & Delivery,Douglas & Angus Estates,167531,"3,113.00"
"Department for Business, Energy and Industrial Strategy",The Coal Authority,06/11/2023,Minewater Rent,ENV - Mine Water Operations,Derbyshire County Council,167593,300
"Department for Business, Energy and Industrial Strategy",The Coal Authority,16/11/2023,Minewater Rent,ENV - Mine Water Operations,National Coal Mining Museum,167927,"3,000.00"
"Department for Business, Energy and Industrial Strategy",The Coal Authority,29/11/2023,Minewater Rent,ENV - Mine Water Operations,The Buccleuch Estates Ltd,168309,118
"Department for Business, Energy and Industrial Strategy",The Coal Authority,29/11/2023,Minewater Rent,ENV - Mine Water Operations,The Buccleuch Estates Ltd,168309,0.32
"Department for Business, Energy and Industrial Strategy",The Coal Authority,25/10/2023,Minewater Sampling - 'Non-operational' Sites,ENV - Salinity Programme,Socotec UK Limited,166367,384.04
"Department for Business, Energy and Industrial Strategy",The Coal Authority,03/11/2023,Minewater Sampling - 'Non-operational' Sites,ENV - Salinity Programme,European Geophysical Services,166572,-570
"Department for Business, Energy and Industrial Strategy",The Coal Authority,27/10/2023,Minewater Sampling - 'Non-operational' Sites,ENV - Salinity Programme,Socotec UK Limited,166784,884.09
"Department for Business, Energy and Industrial Strategy",The Coal Authority,31/10/2023,Minewater Sampling - 'Non-operational' Sites,ENV - Salinity Programme,Socotec UK Limited,166785,672.07
"Department for Business, Energy and Industrial Strategy",The Coal Authority,31/10/2023,Minewater Sampling - 'Non-operational' Sites,ENV - Salinity Programme,Socotec UK Limited,166856,480.05
"Department for Business, Energy and Industrial Strategy",The Coal Authority,23/08/2023,Minewater Sampling - 'Non-operational' Sites,ENV - Salinity Programme,Ribble Enviro Ltd,167179,"1,130.00"
"Department for Business, Energy and Industrial Strategy",The Coal Authority,23/08/2023,Minewater Sampling - 'Non-operational' Sites,ENV - Salinity Programme,Ribble Enviro Ltd,167179,20
"Department for Business, Energy and Industrial Strategy",The Coal Authority,13/11/2023,Minewater Sampling - 'Non-operational' Sites,ENV - Salinity Programme,European Geophysical Services,167732,"2,590.80"
"Department for Business, Energy and Industrial Strategy",The Coal Authority,13/11/2023,Minewater Sampling - 'Non-operational' Sites,ENV - Salinity Programme,European Geophysical Services,167732,321
"Department for Business, Energy and Industrial Strategy",The Coal Authority,30/09/2023,Minewater Sampling - 'Non-operational' Sites,ENV - Salinity Programme,Socotec UK Limited,167885,602.87
"Department for Business, Energy and Industrial Strategy",The Coal Authority,03/11/2023,Minewater Sampling - 'Non-operational' Sites,DEFRA Metal Mine Programme,Socotec UK Limited,167966,177.86
"Department for Business, Energy and Industrial Strategy",The Coal Authority,31/10/2023,Minewater Sampling - 'Non-operational' Sites,DEFRA Metal Mine Programme,Socotec UK Limited,167967,177.86
"Department for Business, Energy and Industrial Strategy",The Coal Authority,03/11/2023,Minewater Sampling - 'Non-operational' Sites,DEFRA Metal Mine Programme,Enitial Limited,167968,"2,933.75"
"Department for Business, Energy and Industrial Strategy",The Coal Authority,25/09/2023,Minewater Sampling - 'Non-operational' Sites,ENV - Salinity Programme,In-Situ Europe Ltd,167988,548
"Department for Business, Energy and Industrial Strategy",The Coal Authority,03/11/2023,Minewater Sampling - 'Non-operational' Sites,DEFRA Metal Mine Programme,Enitial Limited,168059,22.75
"Department for Business, Energy and Industrial Strategy",The Coal Authority,26/09/2023,Minewater Sampling - 'Non-operational' Sites,ENV - Salinity Programme,Socotec UK Limited,168247,486.86
"Department for Business, Energy and Industrial Strategy",The Coal Authority,31/07/2023,Minewater Sampling - 'Non-operational' Sites,ENV - Salinity Programme,Robertson Geologging Ltd,168293,"3,810.00"
"Department for Business, Energy and Industrial Strategy",The Coal Authority,27/11/2023,Minewater Sampling - 'Non-operational' Sites,DEFRA Metal Mine Programme,Socotec UK Limited,168343,177.86
"Department for Business, Energy and Industrial Strategy",The Coal Authority,07/06/2023,Minewater Sampling - Operational Sites,ENV - Mine Water Operations,SK Drainage Solutions Ltd,166252,375
"Department for Business, Energy and Industrial Strategy",The Coal Authority,31/10/2023,Minewater Sampling - Operational Sites,ENV - Mine Water Operations,National Coal Mining Museum,166904,"6,532.14"
"Department for Business, Energy and Industrial Strategy",The Coal Authority,07/11/2023,Minewater Sampling - Operational Sites,DEFRA Metal Mine Programme,John F Hunt Regeneration Ltd,166907,553.87
"Department for Business, Energy and Industrial Strategy",The Coal Authority,22/09/2023,Minewater Site Investigations,ENV - Mine Water Operations,Cornerstone  Projects Ltd,167101,247.3
"Department for Business, Energy and Industrial Strategy",The Coal Authority,14/09/2023,Minewater Site Surveys,NRW Metal Mine Programme,AECOM Ltd,166377,"2,514.00"
"Department for Business, Energy and Industrial Strategy",The Coal Authority,08/11/2023,Minewater Site Surveys,DEFRA LEP Funding,Jeremy Benn Associates Ltd,167180,547
"Department for Business, Energy and Industrial Strategy",The Coal Authority,19/10/2023,Minewater Site Surveys,ENV - Salinity Programme,WSP UK Ltd,167689,"2,473.97"
"Department for Business, Energy and Industrial Strategy",The Coal Authority,20/11/2023,Minewater Site Surveys,DEFRA LEP Funding,AECOM Ltd,167733,"2,123.50"
"Department for Business, Energy and Industrial Strategy",The Coal Authority,16/10/2023,Minewater Site Surveys,NRW Metal Mine Programme,Environmental Monitoring Solutions Limited,167987,"3,170.00"
"Department for Business, Energy and Industrial Strategy",The Coal Authority,21/11/2023,Minewater Site Surveys,NRW Metal Mine Programme,Hydro-Logic Services Int Limited,168019,"2,230.00"
"Department for Business, Energy and Industrial Strategy",The Coal Authority,23/11/2023,Minewater Site Surveys,NRW Metal Mine Programme,Hydro-Logic Services Int Limited,168074,"1,118.50"
"Department for Business, Energy and Industrial Strategy",The Coal Authority,24/11/2023,Minewater Site Surveys,NRW Metal Mine Programme,WSP UK Ltd,168156,"1,329.13"
"Department for Business, Energy and Industrial Strategy",The Coal Authority,20/11/2023,Minewater Site Surveys,ENV - Salinity Programme,Cornerstone  Projects Ltd,168292,329.71
"Department for Business, Energy and Industrial Strategy",The Coal Authority,30/09/2023,Minewater Sludge Disposal,DEFRA Metal Mine Programme,Wheal Jane Ltd,166726,"44,538.66"
"Department for Business, Energy and Industrial Strategy",The Coal Authority,30/11/2023,Minewater Sludge Disposal,DEFRA Metal Mine Programme,Wheal Jane Ltd,167271,"44,538.66"
"Department for Business, Energy and Industrial Strategy",The Coal Authority,07/11/2023,Minewater Sludge Disposal,ENV - Mine Water Operations,Severn Trent Serv Ops Uk Ltd,167402,68.16
"Department for Business, Energy and Industrial Strategy",The Coal Authority,07/11/2023,Minewater Sludge Disposal,ENV - Mine Water Operations,Severn Trent Serv Ops Uk Ltd,167402,849.89
"Department for Business, Energy and Industrial Strategy",The Coal Authority,07/11/2023,Minewater Sludge Disposal,ENV - Mine Water Operations,Severn Trent Serv Ops Uk Ltd,167402,345.1
"Department for Business, Energy and Industrial Strategy",The Coal Authority,07/11/2023,Minewater Sludge Disposal,ENV - Mine Water Operations,Severn Trent Serv Ops Uk Ltd,167402,"48,063.64"
"Department for Business, Energy and Industrial Strategy",The Coal Authority,07/11/2023,Minewater Sludge Disposal,ENV - Mine Water Operations,Severn Trent Serv Ops Uk Ltd,167402,897.11
"Department for Business, Energy and Industrial Strategy",The Coal Authority,07/11/2023,Minewater Sludge Disposal,ENV - Mine Water Operations,Severn Trent Serv Ops Uk Ltd,167402,165.17
"Department for Business, Energy and Industrial Strategy",The Coal Authority,07/11/2023,Minewater Sludge Disposal,ENV - Mine Water Operations,Severn Trent Serv Ops Uk Ltd,167402,"7,813.98"
"Department for Business, Energy and Industrial Strategy",The Coal Authority,31/10/2023,Minewater Telecoms & Telemetry,ENV - Mine Water Operations,KORE Wireless UK PLC,166777,15
"Department for Business, Energy and Industrial Strategy",The Coal Authority,02/11/2023,Minewater Telecoms & Telemetry,ENV - Mine Water Operations,KORE Wireless UK PLC,167044,35
"Department for Business, Energy and Industrial Strategy",The Coal Authority,18/10/2023,Minewater Water Charges,ENV - Mine Water Operations,Wave Utilities,166288,"11,754.73"
"Department for Business, Energy and Industrial Strategy",The Coal Authority,31/10/2023,Minewater Water Charges,ENV - Mine Water Operations,National Coal Mining Museum,166905,"2,880.19"
"Department for Business, Energy and Industrial Strategy",The Coal Authority,16/11/2023,Minewater Water Charges,ENV - Mine Water Operations,Water Plus Limited,168025,136.07
"Department for Business, Energy and Industrial Strategy",The Coal Authority,04/08/2023,Minewater Water Charges,ENV - Mine Water Operations,Natural Resources Wales,168065,155.58
"Department for Business, Energy and Industrial Strategy",The Coal Authority,30/10/2023,Office Furniture,Facilities,Gresham Office Furniture,166553,709.2
"Department for Business, Energy and Industrial Strategy",The Coal Authority,30/10/2023,Office Furniture,Facilities,Gresham Office Furniture,166553,"1,245.60"
"Department for Business, Energy and Industrial Strategy",The Coal Authority,30/10/2023,Office Furniture,Facilities,Wagstaff,166577,175
"Department for Business, Energy and Industrial Strategy",The Coal Authority,03/11/2023,Office Furniture,Facilities,Wagstaff,167042,79
"Department for Business, Energy and Industrial Strategy",The Coal Authority,03/11/2023,Office Furniture,Facilities,Wagstaff,167042,"1,039.00"
"Department for Business, Energy and Industrial Strategy",The Coal Authority,03/11/2023,Office Furniture,Facilities,Wagstaff,167042,197
"Department for Business, Energy and Industrial Strategy",The Coal Authority,03/11/2023,Office Furniture,Facilities,Wagstaff,167042,432
"Department for Business, Energy and Industrial Strategy",The Coal Authority,03/11/2023,Office Furniture,Facilities,Wagstaff,167042,28
"Department for Business, Energy and Industrial Strategy",The Coal Authority,03/11/2023,Office Furniture,Facilities,Wagstaff,167042,245
"Department for Business, Energy and Industrial Strategy",The Coal Authority,03/11/2023,Office Furniture,Facilities,Wagstaff,167042,208
"Department for Business, Energy and Industrial Strategy",The Coal Authority,03/11/2023,Office Furniture,Facilities,Wagstaff,167043,299
"Department for Business, Energy and Industrial Strategy",The Coal Authority,30/10/2023,Office Furniture,"Health, Safety & Wellbeing",Government Procurement Card,168336,21.56
"Department for Business, Energy and Industrial Strategy",The Coal Authority,25/10/2023,Office Furniture,Colleague & Corporate Engagement,Government Procurement Card,168348,276.46
"Department for Business, Energy and Industrial Strategy",The Coal Authority,25/10/2023,Office Furniture,Colleague & Corporate Engagement,Government Procurement Card,168348,19.24
"Department for Business, Energy and Industrial Strategy",The Coal Authority,30/10/2023,Office Furniture,"Health, Safety & Wellbeing",Government Procurement Card,168348,52.83
"Department for Business, Energy and Industrial Strategy",The Coal Authority,30/10/2023,Office Furniture,"Health, Safety & Wellbeing",Government Procurement Card,168348,21.24
"Department for Business, Energy and Industrial Strategy",The Coal Authority,30/10/2023,Office Furniture,"Health, Safety & Wellbeing",Government Procurement Card,168348,116.32
"Department for Business, Energy and Industrial Strategy",The Coal Authority,03/05/2022,Office Printing Services,DIG - Service & Assurance,Canon (Uk) Ltd,167547,117
"Department for Business, Energy and Industrial Strategy",The Coal Authority,03/05/2022,Office Printing Services,DIG - Service & Assurance,Canon (Uk) Ltd,167547,162.5
"Department for Business, Energy and Industrial Strategy",The Coal Authority,08/10/2023,Office Printing Services,DIG - Service & Assurance,De Lage Landen Leasing Ltd,167791,"1,362.98"
"Department for Business, Energy and Industrial Strategy",The Coal Authority,10/10/2023,Office Printing Services,Tips Response,Government Procurement Card,168348,54
"Department for Business, Energy and Industrial Strategy",The Coal Authority,09/10/2023,Ordance Survey Map Charges,Mining Reports,Ordnance Survey,167485,"3,150.00"
"Department for Business, Energy and Industrial Strategy",The Coal Authority,20/11/2023,Ordance Survey Map Charges,Mining Reports,Ordnance Survey,167725,"8,831.45"
"Department for Business, Energy and Industrial Strategy",The Coal Authority,20/11/2023,Ordance Survey Map Charges,Mining Reports,Ordnance Survey,167726,"5,042.36"
"Department for Business, Energy and Industrial Strategy",The Coal Authority,05/10/2023,Other Hosting / IaaS,DIG - Service & Assurance,Amazon Web Services EMEA SARL,167455,"1,947.59"
"Department for Business, Energy and Industrial Strategy",The Coal Authority,15/11/2023,Other Hosting / IaaS,DIG - Service & Assurance,Amazon Web Services EMEA SARL,167456,-428.47
"Department for Business, Energy and Industrial Strategy",The Coal Authority,02/11/2023,Other Hosting / IaaS,DIG - Service & Assurance,Amazon Web Services EMEA SARL,167465,"16,128.41"
"Department for Business, Energy and Industrial Strategy",The Coal Authority,04/11/2023,Other Hosting / IaaS,DIG - Service & Assurance,Amazon Web Services EMEA SARL,167466,"2,032.48"
"Department for Business, Energy and Industrial Strategy",The Coal Authority,15/11/2023,Other Hosting / IaaS,DIG - Service & Assurance,Amazon Web Services EMEA SARL,167467,-447.15
"Department for Business, Energy and Industrial Strategy",The Coal Authority,19/10/2023,Outsourced Cleaning Staff,Facilities,Personnel Hygiene Services Ltd,167631,296.29
"Department for Business, Energy and Industrial Strategy",The Coal Authority,25/10/2023,Outsourced Management - Estates,DEV - Property Management,Cooke & Arkwright,166329,237.5
"Department for Business, Energy and Industrial Strategy",The Coal Authority,31/10/2023,Outsourced Security Staff,Facilities,Regent Office Care Ltd T/A Regent Samsic,166554,"8,793.47"
"Department for Business, Energy and Industrial Strategy",The Coal Authority,31/10/2023,Outsourced Security Staff,Facilities,Regent Office Care Ltd T/A Regent Samsic,167040,125.68
"Department for Business, Energy and Industrial Strategy",The Coal Authority,24/11/2023,Payroll Processing Fees,Finance,Cgi It Uk Ltd,168172,"1,021.84"
"Department for Business, Energy and Industrial Strategy",The Coal Authority,31/10/2023,Peripherals / Consumables (MEP),PS&S - General Claims,Staff Control Expenses,167326,21
"Department for Business, Energy and Industrial Strategy",The Coal Authority,30/10/2023,Plant Maintenance,Facilities,Briggs & Forrester Building Services Maintenance L,166552,599.09
"Department for Business, Energy and Industrial Strategy",The Coal Authority,22/09/2023,Plant Maintenance,Facilities,Dakro Air & Water Limited,166925,"1,448.91"
"Department for Business, Energy and Industrial Strategy",The Coal Authority,22/09/2023,Plant Maintenance,Facilities,Dakro Air & Water Limited,166926,197
"Department for Business, Energy and Industrial Strategy",The Coal Authority,15/11/2023,Plant Maintenance,Facilities,Briggs & Forrester Building Services Maintenance L,167630,"2,795.29"
"Department for Business, Energy and Industrial Strategy",The Coal Authority,21/11/2023,Plant Maintenance,Facilities,Dakro Air & Water Limited,167941,180
"Department for Business, Energy and Industrial Strategy",The Coal Authority,02/11/2023,Postage & Couriers,Customer Services & Strategy,Postage By Phone -Pitney Bowes,166655,9.69
"Department for Business, Energy and Industrial Strategy",The Coal Authority,02/11/2023,Postage & Couriers,Customer Services & Strategy,Postage By Phone -Pitney Bowes,166655,500
"Department for Business, Energy and Industrial Strategy",The Coal Authority,02/09/2023,Postage & Couriers,Customer Services & Strategy,Postage By Phone -Pitney Bowes,166656,500
"Department for Business, Energy and Industrial Strategy",The Coal Authority,27/10/2023,Postage & Couriers,Customer Services & Strategy,FedEx Express UK Transportaion Limited,166793,0.1
"Department for Business, Energy and Industrial Strategy",The Coal Authority,27/10/2023,Postage & Couriers,Customer Services & Strategy,FedEx Express UK Transportaion Limited,166793,187.67
"Department for Business, Energy and Industrial Strategy",The Coal Authority,10/10/2023,Postage & Couriers,Incident & Emergency Response,Staff Control Expenses,166808,8.15
"Department for Business, Energy and Industrial Strategy",The Coal Authority,03/11/2023,Postage & Couriers,Customer Services & Strategy,FedEx Express UK Transportaion Limited,167066,341.9
"Department for Business, Energy and Industrial Strategy",The Coal Authority,10/11/2023,Postage & Couriers,Customer Services & Strategy,FedEx Express UK Transportaion Limited,167673,176.38
"Department for Business, Energy and Industrial Strategy",The Coal Authority,07/11/2023,Postage & Couriers,Customer Services & Strategy,Royal Mail Group Plc,167675,90
"Department for Business, Energy and Industrial Strategy",The Coal Authority,17/11/2023,Postage & Couriers,Customer Services & Strategy,FedEx Express UK Transportaion Limited,168052,49.3
"Department for Business, Energy and Industrial Strategy",The Coal Authority,12/10/2023,Postage & Couriers,PS&S - General Claims,Government Procurement Card,168348,5.74
"Department for Business, Energy and Industrial Strategy",The Coal Authority,07/10/2022,Professional Subscriptions,Corporate Programme Office,Staff Control Expenses,166808,115.61
"Department for Business, Energy and Industrial Strategy",The Coal Authority,07/10/2023,Professional Subscriptions,Corporate Programme Office,Staff Control Expenses,166808,106.57
"Department for Business, Energy and Industrial Strategy",The Coal Authority,26/10/2023,Professional Subscriptions,ENV - Technical,Staff Control Expenses,166808,153
"Department for Business, Energy and Industrial Strategy",The Coal Authority,13/11/2023,Professional Subscriptions,DEV - Planning & Local Authority Liaison,Staff Control Expenses,167326,354
"Department for Business, Energy and Industrial Strategy",The Coal Authority,14/11/2023,Professional Subscriptions,Mining Information,Staff Control Expenses,167721,354
"Department for Business, Energy and Industrial Strategy",The Coal Authority,01/11/2023,Professional Subscriptions,ENV - Technical,The Geological Society,167918,"1,477.50"
"Department for Business, Energy and Industrial Strategy",The Coal Authority,09/08/2023,Professional Subscriptions,Innovation By-Product & Services Delivery,Staff Control Expenses,168103,78.68
"Department for Business, Energy and Industrial Strategy",The Coal Authority,25/10/2023,Professional Subscriptions,Mining Information,Staff Control Expenses,168103,68.66
"Department for Business, Energy and Industrial Strategy",The Coal Authority,01/11/2023,Professional Subscriptions,Community Response,Staff Control Expenses,168103,16.88
"Department for Business, Energy and Industrial Strategy",The Coal Authority,02/11/2023,Professional Subscriptions,ENV - Projects & Delivery,Staff Control Expenses,168103,30
"Department for Business, Energy and Industrial Strategy",The Coal Authority,14/11/2023,Professional Subscriptions,Innovation By-Product & Services Delivery,Staff Control Expenses,168103,166
"Department for Business, Energy and Industrial Strategy",The Coal Authority,18/11/2023,Professional Subscriptions,Procurement,Staff Control Expenses,168103,145
"Department for Business, Energy and Industrial Strategy",The Coal Authority,19/10/2023,Professional Subscriptions,Heat & By-Product Innovation,Government Procurement Card,168348,295
"Department for Business, Energy and Industrial Strategy",The Coal Authority,25/10/2023,Professional Subscriptions,ENV - Salinity Programme,Government Procurement Card,168348,183.49
"Department for Business, Energy and Industrial Strategy",The Coal Authority,26/10/2023,Professional Subscriptions,Heat & By-Product Innovation,Government Procurement Card,168348,240
"Department for Business, Energy and Industrial Strategy",The Coal Authority,27/10/2023,Professional Subscriptions,PS&S - General Claims,Government Procurement Card,168348,84
"Department for Business, Energy and Industrial Strategy",The Coal Authority,31/10/2023,Professional Subscriptions,PS&S - General Claims,Government Procurement Card,168348,235.25
"Department for Business, Energy and Industrial Strategy",The Coal Authority,02/11/2023,Professional Subscriptions,Finance,Government Procurement Card,168348,450
"Department for Business, Energy and Industrial Strategy",The Coal Authority,20/10/2023,Property Rates Payable,DEV - Historic Property Liabilities,Business Stream,167263,105.23
"Department for Business, Energy and Industrial Strategy",The Coal Authority,06/11/2023,Property Rents Payable,DEV - Property Management,Inkersall Investments Ltd,167594,"1,058.00"
"Department for Business, Energy and Industrial Strategy",The Coal Authority,20/10/2023,Property Site Maintenance,PS&S - General Claims,Ovenden Plant Hire Limited,166272,535
"Department for Business, Energy and Industrial Strategy",The Coal Authority,03/11/2023,Property Site Maintenance,DEV - Property Management,Marshall Farming Limited,167122,"9,974.57"
"Department for Business, Energy and Industrial Strategy",The Coal Authority,10/11/2023,Property Site Maintenance,PS&S - General Claims,Nal Plant Limited,167198,240
"Department for Business, Energy and Industrial Strategy",The Coal Authority,15/11/2023,Public Relations,Community Response,NLA media access Ltd,167550,"7,627.40"
"Department for Business, Energy and Industrial Strategy",The Coal Authority,25/11/2023,Public Relations,DEFRA LEP Funding,Nenthead Chapel Enterprises Ltd,168024,360
"Department for Business, Energy and Industrial Strategy",The Coal Authority,22/11/2023,Public Relations,NRW Metal Mine Programme,Grasshopper Communications Ltd,168081,220
"Department for Business, Energy and Industrial Strategy",The Coal Authority,28/11/2023,Public Relations,DEFRA LEP Funding,Carrshield Village Hall arts and crafts Centre,168199,30
"Department for Business, Energy and Industrial Strategy",The Coal Authority,30/10/2023,Research & Development (Non BEIS Funded),DEFRA Metal Mine Programme,Wear Rivers Trust,166421,"2,906.84"
"Department for Business, Energy and Industrial Strategy",The Coal Authority,26/10/2023,Research & Development (Non BEIS Funded),DEFRA Metal Mine Programme,CE Geochem Ltd,166507,"2,493.75"
"Department for Business, Energy and Industrial Strategy",The Coal Authority,26/10/2023,Research & Development (Non BEIS Funded),DEFRA Metal Mine Programme,CE Geochem Ltd,166507,"1,000.00"
"Department for Business, Energy and Industrial Strategy",The Coal Authority,31/10/2023,Research & Development (Non BEIS Funded),DEFRA Metal Mine Programme,CE Geochem Ltd,167929,"2,178.75"
"Department for Business, Energy and Industrial Strategy",The Coal Authority,03/11/2023,Research & Development (Non BEIS Funded),DEFRA Metal Mine Programme,Enitial Limited,167968,"1,000.00"
"Department for Business, Energy and Industrial Strategy",The Coal Authority,03/11/2023,Research & Development (Non BEIS Funded),DEFRA Metal Mine Programme,Enitial Limited,168059,"10,015.69"
"Department for Business, Energy and Industrial Strategy",The Coal Authority,15/11/2023,Research & Development (Non BEIS Funded),DEFRA Metal Mine Programme,Braithwaite Engineers Limited,168061,"9,490.00"
"Department for Business, Energy and Industrial Strategy",The Coal Authority,09/10/2023,Short Term Vehicle Hire,ENV - Mine Water Operations,Enterprise Rent A Car,167469,235.38
"Department for Business, Energy and Industrial Strategy",The Coal Authority,31/10/2023,Short Term Vehicle Hire,Engineering,Enterprise Rent A Car,167554,30
"Department for Business, Energy and Industrial Strategy",The Coal Authority,10/07/2023,Short Term Vehicle Hire,ENV - Mine Water Operations,Enterprise Rent A Car,167569,190.95
"Department for Business, Energy and Industrial Strategy",The Coal Authority,03/11/2023,Site Repairs & Maintenance,Facilities,Total Integrated Solutions,167041,429.41
"Department for Business, Energy and Industrial Strategy",The Coal Authority,24/10/2023,Site Repairs & Maintenance,Facilities,Government Procurement Card,168348,14.15
"Department for Business, Energy and Industrial Strategy",The Coal Authority,23/10/2023,Site Services,Facilities,Hatherley Commercial Services Limited,166379,185
"Department for Business, Energy and Industrial Strategy",The Coal Authority,27/10/2023,Site Services,Facilities,Biffa Waste Services Ltd,166576,137.76
"Department for Business, Energy and Industrial Strategy",The Coal Authority,27/10/2023,Site Services,Facilities,Biffa Waste Services Ltd,166576,151.36
"Department for Business, Energy and Industrial Strategy",The Coal Authority,02/11/2023,Site Services,PS&S - General Claims,W G Pollard Ltd,166738,24
"Department for Business, Energy and Industrial Strategy",The Coal Authority,02/11/2023,Site Services,PS&S - General Claims,W G Pollard Ltd,166738,181.92
"Department for Business, Energy and Industrial Strategy",The Coal Authority,01/11/2023,Site Services,Facilities,Spacecare Ltd,166916,736.97
"Department for Business, Energy and Industrial Strategy",The Coal Authority,16/11/2023,Site Services,Facilities,Dakro Air & Water Limited,167940,750
"Department for Business, Energy and Industrial Strategy",The Coal Authority,31/10/2023,Site Services,Facilities,Restore Datashred,167949,235.8
"Department for Business, Energy and Industrial Strategy",The Coal Authority,21/10/2023,Software Licenses - On Premise,Innovation By-Product & Services Delivery,Government Procurement Card,168348,126.5
"Department for Business, Energy and Industrial Strategy",The Coal Authority,31/10/2023,Software Licenses - SaaS,DIG - Technical Delivery,WCL UK Ltd (trading as Everything ICT),166276,"12,000.00"
"Department for Business, Energy and Industrial Strategy",The Coal Authority,03/11/2023,Software Licenses - SaaS,People & Organisational Development,OMNIPLEX (GROUP) LIMITED,167566,"2,196.00"
"Department for Business, Energy and Industrial Strategy",The Coal Authority,13/11/2023,Software Licenses - SaaS,"Health, Safety & Wellbeing",Peoplesafe,167602,"8,470.00"
"Department for Business, Energy and Industrial Strategy",The Coal Authority,13/11/2023,Software Licenses - SaaS,"Health, Safety & Wellbeing",Peoplesafe,167603,"1,200.00"
"Department for Business, Energy and Industrial Strategy",The Coal Authority,20/09/2023,Software Licenses - SaaS,DIG - Technical Delivery,LastPass UK Ltd,167867,"4,284.00"
"Department for Business, Energy and Industrial Strategy",The Coal Authority,16/11/2023,Software Licenses - SaaS,DIG - Service & Assurance,Eficode UK Limited,167868,"1,781.32"
"Department for Business, Energy and Industrial Strategy",The Coal Authority,16/11/2023,Software Licenses - SaaS,DIG - Service & Assurance,Eficode UK Limited,167868,"6,625.39"
"Department for Business, Energy and Industrial Strategy",The Coal Authority,16/11/2023,Software Licenses - SaaS,DIG - Service & Assurance,Eficode UK Limited,167868,"11,250.47"
"Department for Business, Energy and Industrial Strategy",The Coal Authority,16/11/2023,Software Licenses - SaaS,DIG - Service & Assurance,Eficode UK Limited,167868,"4,125.99"
"Department for Business, Energy and Industrial Strategy",The Coal Authority,16/11/2023,Software Licenses - SaaS,DIG - Service & Assurance,Eficode UK Limited,167868,"13,885.55"
"Department for Business, Energy and Industrial Strategy",The Coal Authority,16/11/2023,Software Licenses - SaaS,DIG - Service & Assurance,Eficode UK Limited,167868,"11,505.17"
"Department for Business, Energy and Industrial Strategy",The Coal Authority,28/11/2023,Software Licenses - SaaS,DIG - Technical Delivery,Egress Software Technologies,168261,"14,375.00"
"Department for Business, Energy and Industrial Strategy",The Coal Authority,15/10/2023,Software Licenses - SaaS,Colleague & Corporate Engagement,Government Procurement Card,168348,18.27
"Department for Business, Energy and Industrial Strategy",The Coal Authority,31/10/2023,Software Support & Maintenance - SaaS,Finance,Bottomline Technologies D/D,167117,169.59
"Department for Business, Energy and Industrial Strategy",The Coal Authority,03/11/2023,Software Support & Maintenance - SaaS,People & Organisational Development,OMNIPLEX (GROUP) LIMITED,167566,270
"Department for Business, Energy and Industrial Strategy",The Coal Authority,27/11/2023,Software Support & Maintenance - SaaS,DIG - Data Licensing,Nerc,168311,"10,022.98"
"Department for Business, Energy and Industrial Strategy",The Coal Authority,17/10/2023,Software Support & Maintenance - SaaS,DIG - Technical Delivery,Government Procurement Card,168348,20.37
"Department for Business, Energy and Industrial Strategy",The Coal Authority,27/10/2023,Software Support & Maintenance - SaaS,Community Response,Government Procurement Card,168348,153
"Department for Business, Energy and Industrial Strategy",The Coal Authority,12/09/2023,Staff Events,Heat & By-Product Innovation,Government Procurement Card,167978,36.92
"Department for Business, Energy and Industrial Strategy",The Coal Authority,22/11/2023,Staff Events,Staff Network and Groups,Adverset Media Solutions Limited,168193,217
"Department for Business, Energy and Industrial Strategy",The Coal Authority,31/10/2023,Staff Medicals,People & Organisational Development,David Barber (OH) Ltd,166483,170
"Department for Business, Energy and Industrial Strategy",The Coal Authority,30/09/2023,Staff Medicals,People & Organisational Development,Bluecrest Health Screening,167322,"17,051.00"
"Department for Business, Energy and Industrial Strategy",The Coal Authority,31/10/2023,Staff Medicals,People & Organisational Development,Bluecrest Health Screening,167324,"8,959.00"
"Department for Business, Energy and Industrial Strategy",The Coal Authority,31/10/2023,Staff Medicals,People & Organisational Development,Bluecrest Health Screening,167325,289
"Department for Business, Energy and Industrial Strategy",The Coal Authority,21/11/2023,Staff Medicals,People & Organisational Development,Bupa UK,167961,480
"Department for Business, Energy and Industrial Strategy",The Coal Authority,21/11/2023,Staff Medicals,People & Organisational Development,Bupa UK,167962,480
"Department for Business, Energy and Industrial Strategy",The Coal Authority,31/10/2023,Stationery,Customer Services & Strategy,Banner Group Limited,166287,10.52
"Department for Business, Energy and Industrial Strategy",The Coal Authority,31/10/2023,Stationery,Customer Services & Strategy,Banner Group Limited,166287,93.95
"Department for Business, Energy and Industrial Strategy",The Coal Authority,31/10/2023,Stationery,Finance,Staff Control Expenses,166808,55.41
"Department for Business, Energy and Industrial Strategy",The Coal Authority,07/11/2023,Stationery,Tip Management Services,Staff Control Expenses,167326,24.09
"Department for Business, Energy and Industrial Strategy",The Coal Authority,27/10/2023,Stationery,DEFRA Metal Mine Programme,Staff Control Expenses,167721,395
"Department for Business, Energy and Industrial Strategy",The Coal Authority,27/10/2023,Stationery,DEFRA Metal Mine Programme,Staff Control Expenses,167721,5
"Department for Business, Energy and Industrial Strategy",The Coal Authority,29/11/2023,Stationery,Customer Services & Strategy,Banner Group Limited,168321,13.4
"Department for Business, Energy and Industrial Strategy",The Coal Authority,29/11/2023,Stationery,Customer Services & Strategy,Banner Group Limited,168321,44.04
"Department for Business, Energy and Industrial Strategy",The Coal Authority,29/11/2023,Stationery,Customer Services & Strategy,Banner Group Limited,168321,10.1
"Department for Business, Energy and Industrial Strategy",The Coal Authority,29/11/2023,Stationery,Customer Services & Strategy,Banner Group Limited,168321,52.47
"Department for Business, Energy and Industrial Strategy",The Coal Authority,29/11/2023,Stationery,Customer Services & Strategy,Banner Group Limited,168321,35.4
"Department for Business, Energy and Industrial Strategy",The Coal Authority,29/11/2023,Stationery,Customer Services & Strategy,Banner Group Limited,168321,49.8
"Department for Business, Energy and Industrial Strategy",The Coal Authority,26/10/2023,Stationery,PS&S - General Claims,Government Procurement Card,168336,10.48
"Department for Business, Energy and Industrial Strategy",The Coal Authority,05/10/2023,Stationery,PS&S - General Claims,Government Procurement Card,168348,23.33
"Department for Business, Energy and Industrial Strategy",The Coal Authority,09/10/2023,Stationery,PS&S - General Claims,Government Procurement Card,168348,49.15
"Department for Business, Energy and Industrial Strategy",The Coal Authority,17/10/2023,Stationery,PS&S - General Claims,Government Procurement Card,168348,3
"Department for Business, Energy and Industrial Strategy",The Coal Authority,19/10/2023,Stationery,Staff Network and Groups,Government Procurement Card,168348,44.18
"Department for Business, Energy and Industrial Strategy",The Coal Authority,20/10/2023,Stationery,Staff Network and Groups,Government Procurement Card,168348,16
"Department for Business, Energy and Industrial Strategy",The Coal Authority,25/10/2023,Stationery,Staff Network and Groups,Government Procurement Card,168348,10.1
"Department for Business, Energy and Industrial Strategy",The Coal Authority,10/10/2023,Stationery,PS&S - General Claims,Government Procurement Card,168349,3.74
"Department for Business, Energy and Industrial Strategy",The Coal Authority,31/10/2023,Subsidence - Contractor Costs,PS&S - General Claims,Cornerstone  Projects Ltd,166278,273.75
"Department for Business, Energy and Industrial Strategy",The Coal Authority,01/11/2023,Subsidence - Contractor Costs,PS&S - General Claims,Compensation Payment,166302,565
"Department for Business, Energy and Industrial Strategy",The Coal Authority,01/11/2023,Subsidence - Contractor Costs,PS&S - General Claims,Compensation Payment,166302,"1,144.91"
"Department for Business, Energy and Industrial Strategy",The Coal Authority,02/11/2023,Subsidence - Contractor Costs,PS&S - General Claims,Cornerstone  Projects Ltd,166428,212.75
"Department for Business, Energy and Industrial Strategy",The Coal Authority,02/11/2023,Subsidence - Contractor Costs,PS&S - General Claims,PMC Surveys,166742,"5,150.00"
"Department for Business, Energy and Industrial Strategy",The Coal Authority,02/11/2023,Subsidence - Contractor Costs,PS&S - General Claims,PMC Surveys,166743,550
"Department for Business, Energy and Industrial Strategy",The Coal Authority,03/11/2023,Subsidence - Contractor Costs,PS&S - General Claims,Compensation Payment,166830,"182,669.30"
"Department for Business, Energy and Industrial Strategy",The Coal Authority,04/11/2023,Subsidence - Contractor Costs,PS&S - General Claims,Geol-Consultants Ltd,166969,288.97
"Department for Business, Energy and Industrial Strategy",The Coal Authority,04/11/2023,Subsidence - Contractor Costs,PS&S - General Claims,Geol-Consultants Ltd,166969,200
"Department for Business, Energy and Industrial Strategy",The Coal Authority,04/11/2023,Subsidence - Contractor Costs,PS&S - General Claims,Geol-Consultants Ltd,166969,346.77
"Department for Business, Energy and Industrial Strategy",The Coal Authority,04/11/2023,Subsidence - Contractor Costs,PS&S - General Claims,Geol-Consultants Ltd,166969,100
"Department for Business, Energy and Industrial Strategy",The Coal Authority,04/11/2023,Subsidence - Contractor Costs,PS&S - General Claims,Geol-Consultants Ltd,166969,"1,849.40"
"Department for Business, Energy and Industrial Strategy",The Coal Authority,04/11/2023,Subsidence - Contractor Costs,PS&S - General Claims,Geol-Consultants Ltd,166969,104.02
"Department for Business, Energy and Industrial Strategy",The Coal Authority,07/11/2023,Subsidence - Contractor Costs,PS&S - General Claims,Christie Gillespie Consulting Engineers,167033,150
"Department for Business, Energy and Industrial Strategy",The Coal Authority,01/11/2023,Subsidence - Contractor Costs,PS&S - General Claims,Christie Gillespie Consulting Engineers,167079,942.5
"Department for Business, Energy and Industrial Strategy",The Coal Authority,09/11/2023,Subsidence - Contractor Costs,PS&S - General Claims,Cornerstone  Projects Ltd,167148,212.75
"Department for Business, Energy and Industrial Strategy",The Coal Authority,10/11/2023,Subsidence - Contractor Costs,PS&S - General Claims,Thomas Menzies Builders Ltd,167237,"1,147.85"
"Department for Business, Energy and Industrial Strategy",The Coal Authority,30/09/2023,Subsidence - Contractor Costs,PS&S - General Claims,Sweeting Bros (Land Drainage) Ltd,167239,"8,943.01"
"Department for Business, Energy and Industrial Strategy",The Coal Authority,31/10/2023,Subsidence - Contractor Costs,PS&S - General Claims,Sweeting Bros (Land Drainage) Ltd,167243,"9,282.59"
"Department for Business, Energy and Industrial Strategy",The Coal Authority,10/11/2023,Subsidence - Contractor Costs,PS&S - General Claims,D.N.O Scott & Son,167248,770
"Department for Business, Energy and Industrial Strategy",The Coal Authority,10/11/2023,Subsidence - Contractor Costs,PS&S - General Claims,D.N.O Scott & Son,167248,"6,500.00"
"Department for Business, Energy and Industrial Strategy",The Coal Authority,10/11/2023,Subsidence - Contractor Costs,PS&S - General Claims,D.N.O Scott & Son,167248,950.5
"Department for Business, Energy and Industrial Strategy",The Coal Authority,13/11/2023,Subsidence - Contractor Costs,PS&S - General Claims,Compensation Payment,167252,494.2
"Department for Business, Energy and Industrial Strategy",The Coal Authority,23/10/2023,Subsidence - Contractor Costs,PS&S - General Claims,OVO Energy,167287,310.8
"Department for Business, Energy and Industrial Strategy",The Coal Authority,13/11/2023,Subsidence - Contractor Costs,PS&S - Thoresby,Pierrepont Estate Management Ltd,167382,"1,506.03"
"Department for Business, Energy and Industrial Strategy",The Coal Authority,13/11/2023,Subsidence - Contractor Costs,PS&S - Thoresby,Pierrepont Estate Management Ltd,167383,293.1
"Department for Business, Energy and Industrial Strategy",The Coal Authority,13/11/2023,Subsidence - Contractor Costs,PS&S - Thoresby,Pierrepont Estate Management Ltd,167384,258.97
"Department for Business, Energy and Industrial Strategy",The Coal Authority,13/11/2023,Subsidence - Contractor Costs,PS&S - Thoresby,Pierrepont Estate Management Ltd,167385,304.34
"Department for Business, Energy and Industrial Strategy",The Coal Authority,13/11/2023,Subsidence - Contractor Costs,PS&S - Thoresby,Pierrepont Estate Management Ltd,167386,319.67
"Department for Business, Energy and Industrial Strategy",The Coal Authority,13/11/2023,Subsidence - Contractor Costs,PS&S - General Claims,Compensation Payment,167388,228.98
"Department for Business, Energy and Industrial Strategy",The Coal Authority,12/09/2023,Subsidence - Contractor Costs,PS&S - General Claims,Alliance Contracting Solutions Ltd,167486,"2,906.28"
"Department for Business, Energy and Industrial Strategy",The Coal Authority,10/11/2023,Subsidence - Contractor Costs,PS&S - General Claims,Nal Plant Limited,167505,250
"Department for Business, Energy and Industrial Strategy",The Coal Authority,10/11/2023,Subsidence - Contractor Costs,PS&S - General Claims,Nal Plant Limited,167506,240
"Department for Business, Energy and Industrial Strategy",The Coal Authority,10/11/2023,Subsidence - Contractor Costs,PS&S - General Claims,Nal Plant Limited,167507,430
"Department for Business, Energy and Industrial Strategy",The Coal Authority,10/11/2023,Subsidence - Contractor Costs,PS&S - General Claims,Nal Plant Limited,167508,"8,732.77"
"Department for Business, Energy and Industrial Strategy",The Coal Authority,14/11/2023,Subsidence - Contractor Costs,PS&S - General Claims,Nal Plant Limited,167524,"1,060.00"
"Department for Business, Energy and Industrial Strategy",The Coal Authority,14/11/2023,Subsidence - Contractor Costs,PS&S - General Claims,Nal Plant Limited,167526,310
"Department for Business, Energy and Industrial Strategy",The Coal Authority,15/11/2023,Subsidence - Contractor Costs,PS&S - General Claims,McGowan Homes & Property Services,167534,900
"Department for Business, Energy and Industrial Strategy",The Coal Authority,16/11/2023,Subsidence - Contractor Costs,PS&S - General Claims,Cornerstone  Projects Ltd,167596,58
"Department for Business, Energy and Industrial Strategy",The Coal Authority,20/11/2023,Subsidence - Contractor Costs,PS&S - General Claims,Cornerstone  Projects Ltd,167714,102.06
"Department for Business, Energy and Industrial Strategy",The Coal Authority,20/11/2023,Subsidence - Contractor Costs,PS&S - General Claims,Cornerstone  Projects Ltd,167715,227.81
"Department for Business, Energy and Industrial Strategy",The Coal Authority,20/11/2023,Subsidence - Contractor Costs,PS&S - General Claims,Cornerstone  Projects Ltd,167716,232.81
"Department for Business, Energy and Industrial Strategy",The Coal Authority,16/11/2023,Subsidence - Contractor Costs,PS&S - General Claims,Compensation Payment,167718,"1,560.00"
"Department for Business, Energy and Industrial Strategy",The Coal Authority,20/11/2023,Subsidence - Contractor Costs,PS&S - General Claims,Compensation Payment,167719,468
"Department for Business, Energy and Industrial Strategy",The Coal Authority,20/11/2023,Subsidence - Contractor Costs,PS&S - General Claims,Compensation Payment,167720,440
"Department for Business, Energy and Industrial Strategy",The Coal Authority,21/11/2023,Subsidence - Contractor Costs,PS&S - General Claims,Cornerstone  Projects Ltd,167772,232.81
"Department for Business, Energy and Industrial Strategy",The Coal Authority,20/11/2023,Subsidence - Contractor Costs,PS&S - Thoresby,Nal Plant Limited,167780,"31,412.41"
"Department for Business, Energy and Industrial Strategy",The Coal Authority,14/11/2023,Subsidence - Contractor Costs,PS&S - General Claims,Luddon Construction Limited,167871,"2,400.00"
"Department for Business, Energy and Industrial Strategy",The Coal Authority,20/11/2023,Subsidence - Contractor Costs,PS&S - General Claims,Nal Plant Limited,167883,190
"Department for Business, Energy and Industrial Strategy",The Coal Authority,09/11/2023,Subsidence - Contractor Costs,PS&S - General Claims,Network Rail Infrastructure Ltd,167884,"385,772.66"
"Department for Business, Energy and Industrial Strategy",The Coal Authority,22/11/2023,Subsidence - Contractor Costs,PS&S - General Claims,Nal Plant Limited,167903,706.91
"Department for Business, Energy and Industrial Strategy",The Coal Authority,22/11/2023,Subsidence - Contractor Costs,PS&S - Thoresby,Nal Plant Limited,167904,"6,878.41"
"Department for Business, Energy and Industrial Strategy",The Coal Authority,24/11/2023,Subsidence - Contractor Costs,PS&S - General Claims,Christie Gillespie Consulting Engineers,167972,"2,358.75"
"Department for Business, Energy and Industrial Strategy",The Coal Authority,04/09/2023,Subsidence - Contractor Costs,PS&S - Thoresby,AECOM Ltd,167996,"18,555.01"
"Department for Business, Energy and Industrial Strategy",The Coal Authority,04/09/2023,Subsidence - Contractor Costs,PS&S - Thoresby,AECOM Ltd,167996,-0.01
"Department for Business, Energy and Industrial Strategy",The Coal Authority,22/11/2023,Subsidence - Contractor Costs,PS&S - General Claims,Nal Plant Limited,168031,"2,816.30"
"Department for Business, Energy and Industrial Strategy",The Coal Authority,22/11/2023,Subsidence - Contractor Costs,PS&S - General Claims,Nal Plant Limited,168031,"2,938.12"
"Department for Business, Energy and Industrial Strategy",The Coal Authority,24/11/2023,Subsidence - Contractor Costs,PS&S - General Claims,DSI Underground UK Limited,168148,346.77
"Department for Business, Energy and Industrial Strategy",The Coal Authority,24/11/2023,Subsidence - Contractor Costs,PS&S - General Claims,DSI Underground UK Limited,168148,115.59
"Department for Business, Energy and Industrial Strategy",The Coal Authority,24/11/2023,Subsidence - Contractor Costs,PS&S - General Claims,DSI Underground UK Limited,168148,"1,733.82"
"Department for Business, Energy and Industrial Strategy",The Coal Authority,24/11/2023,Subsidence - Contractor Costs,PS&S - General Claims,DSI Underground UK Limited,168148,-0.02
"Department for Business, Energy and Industrial Strategy",The Coal Authority,28/11/2023,Subsidence - Contractor Costs,PS&S - General Claims,Cornerstone  Projects Ltd,168150,82
"Department for Business, Energy and Industrial Strategy",The Coal Authority,28/11/2023,Subsidence - Contractor Costs,PS&S - General Claims,Cornerstone  Projects Ltd,168152,234.07
"Department for Business, Energy and Industrial Strategy",The Coal Authority,29/11/2023,Subsidence - Contractor Costs,PS&S - General Claims,Cornerstone  Projects Ltd,168274,228.75
"Department for Business, Energy and Industrial Strategy",The Coal Authority,24/11/2023,Subsidence - Contractor Costs,PS&S - General Claims,Interlocks Surveys,168294,"2,964.00"
"Department for Business, Energy and Industrial Strategy",The Coal Authority,22/11/2023,Subsidence - Contractor Costs,PS&S - General Claims,OVO Energy,168308,116.05
"Department for Business, Energy and Industrial Strategy",The Coal Authority,30/11/2023,Subsidence - Contractor Costs,PS&S - General Claims,Compensation Payment,168334,"25,699.50"
"Department for Business, Energy and Industrial Strategy",The Coal Authority,30/11/2023,Subsidence - Contractor Costs,PS&S - General Claims,Compensation Payment,168334,"2,520.82"
"Department for Business, Energy and Industrial Strategy",The Coal Authority,30/11/2023,Subsidence - Contractor Costs,PS&S - General Claims,Compensation Payment,168335,"1,080.00"
"Department for Business, Energy and Industrial Strategy",The Coal Authority,16/10/2023,Subsidence - Contractor Costs,PS&S - General Claims,Government Procurement Card,168336,22
"Department for Business, Energy and Industrial Strategy",The Coal Authority,19/10/2023,Subsidence - Equipment,DEFRA LEP Funding,Government Procurement Card,168336,6.67
"Department for Business, Energy and Industrial Strategy",The Coal Authority,04/10/2023,Subsidence - Equipment,PS&S - General Claims,Government Procurement Card,168348,2.42
"Department for Business, Energy and Industrial Strategy",The Coal Authority,05/10/2023,Subsidence - Equipment,PS&S - General Claims,Government Procurement Card,168348,91.65
"Department for Business, Energy and Industrial Strategy",The Coal Authority,31/10/2023,Subsidence Pumping - Management Fees,ENV - Mine Water Operations,Doncaster East I D B,168176,46.87
"Department for Business, Energy and Industrial Strategy",The Coal Authority,07/11/2023,Subsidence Pumping Maintenance - Ad Hoc,ENV - Mine Water Operations,Severn Trent Serv Ops Uk Ltd,167402,699.48
"Department for Business, Energy and Industrial Strategy",The Coal Authority,07/11/2023,Subsidence Pumping Maintenance - Ad Hoc,ENV - Mine Water Operations,Severn Trent Serv Ops Uk Ltd,167402,184.5
"Department for Business, Energy and Industrial Strategy",The Coal Authority,07/11/2023,Subsidence Pumping Maintenance - Ad Hoc,ENV - Mine Water Operations,Severn Trent Serv Ops Uk Ltd,167402,"1,165.52"
"Department for Business, Energy and Industrial Strategy",The Coal Authority,31/10/2023,Subsidence Pumping Maintenance - Planned,ENV - Mine Water Operations,Doncaster East I D B,168176,393.27
"Department for Business, Energy and Industrial Strategy",The Coal Authority,30/10/2023,Subsidence Pumping Maintenance - Power,ENV - Mine Water Operations,RA & RL Smith Ltd,166323,"1,760.00"
"Department for Business, Energy and Industrial Strategy",The Coal Authority,06/11/2023,Subsidence Pumping Maintenance - Power,DEFRA LEP Funding,Edf Energy,167428,363.41
"Department for Business, Energy and Industrial Strategy",The Coal Authority,06/11/2023,Subsidence Pumping Maintenance - Power,ENV - Mine Water Operations,Edf Energy,167428,"1,333.41"
"Department for Business, Energy and Industrial Strategy",The Coal Authority,06/11/2023,Subsidence Pumping Maintenance - Power,ENV - Mine Water Operations,Edf Energy,167428,59.18
"Department for Business, Energy and Industrial Strategy",The Coal Authority,06/11/2023,Subsidence Pumping Maintenance - Power,ENV - Mine Water Operations,Edf Energy,167428,"1,097.00"
"Department for Business, Energy and Industrial Strategy",The Coal Authority,06/11/2023,Subsidence Pumping Maintenance - Power,ENV - Mine Water Operations,Edf Energy,167428,530.62
"Department for Business, Energy and Industrial Strategy",The Coal Authority,06/11/2023,Subsidence Pumping Maintenance - Power,ENV - Mine Water Operations,Edf Energy,167428,745.21
"Department for Business, Energy and Industrial Strategy",The Coal Authority,06/11/2023,Subsidence Pumping Maintenance - Power,ENV - Mine Water Operations,Edf Energy,167428,"1,376.40"
"Department for Business, Energy and Industrial Strategy",The Coal Authority,06/11/2023,Subsidence Pumping Maintenance - Power,ENV - Mine Water Operations,Edf Energy,167428,892.97
"Department for Business, Energy and Industrial Strategy",The Coal Authority,06/11/2023,Subsidence Pumping Maintenance - Power,ENV - Mine Water Operations,Edf Energy,167428,154.16
"Department for Business, Energy and Industrial Strategy",The Coal Authority,06/11/2023,Subsidence Pumping Maintenance - Power,ENV - Mine Water Operations,Edf Energy,167428,"1,340.75"
"Department for Business, Energy and Industrial Strategy",The Coal Authority,06/11/2023,Subsidence Pumping Maintenance - Power,ENV - Mine Water Operations,Edf Energy,167428,351.23
"Department for Business, Energy and Industrial Strategy",The Coal Authority,06/11/2023,Subsidence Pumping Maintenance - Power,ENV - Mine Water Operations,Edf Energy,167428,922.25
"Department for Business, Energy and Industrial Strategy",The Coal Authority,06/11/2023,Subsidence Pumping Maintenance - Power,ENV - Mine Water Operations,Edf Energy,167428,"13,027.88"
"Department for Business, Energy and Industrial Strategy",The Coal Authority,06/11/2023,Subsidence Pumping Maintenance - Power,ENV - Mine Water Operations,Edf Energy,167428,"4,969.34"
"Department for Business, Energy and Industrial Strategy",The Coal Authority,06/11/2023,Subsidence Pumping Maintenance - Power,ENV - Mine Water Operations,Edf Energy,167428,349.59
"Department for Business, Energy and Industrial Strategy",The Coal Authority,06/11/2023,Subsidence Pumping Maintenance - Power,ENV - Mine Water Operations,Edf Energy,167428,768.5
"Department for Business, Energy and Industrial Strategy",The Coal Authority,06/11/2023,Subsidence Pumping Maintenance - Power,ENV - Mine Water Operations,Edf Energy,167428,"2,020.43"
"Department for Business, Energy and Industrial Strategy",The Coal Authority,06/11/2023,Subsidence Pumping Maintenance - Power,ENV - Mine Water Operations,Edf Energy,167428,"1,247.11"
"Department for Business, Energy and Industrial Strategy",The Coal Authority,06/11/2023,Subsidence Pumping Maintenance - Power,ENV - Mine Water Operations,Edf Energy,167428,58.24
"Department for Business, Energy and Industrial Strategy",The Coal Authority,06/11/2023,Subsidence Pumping Maintenance - Power,ENV - Mine Water Operations,Edf Energy,167428,"2,558.79"
"Department for Business, Energy and Industrial Strategy",The Coal Authority,06/11/2023,Subsidence Pumping Maintenance - Power,ENV - Mine Water Operations,Edf Energy,167428,259.8
"Department for Business, Energy and Industrial Strategy",The Coal Authority,06/11/2023,Subsidence Pumping Maintenance - Power,ENV - Mine Water Operations,Edf Energy,167428,"3,635.96"
"Department for Business, Energy and Industrial Strategy",The Coal Authority,06/11/2023,Subsidence Pumping Maintenance - Power,ENV - Mine Water Operations,Edf Energy,167428,614.03
"Department for Business, Energy and Industrial Strategy",The Coal Authority,06/11/2023,Subsidence Pumping Maintenance - Power,ENV - Mine Water Operations,Edf Energy,167428,"1,364.81"
"Department for Business, Energy and Industrial Strategy",The Coal Authority,06/11/2023,Subsidence Pumping Maintenance - Power,ENV - Mine Water Operations,Edf Energy,167428,"1,601.52"
"Department for Business, Energy and Industrial Strategy",The Coal Authority,31/10/2023,Subsidence Pumping Maintenance - Power,ENV - Mine Water Operations,Doncaster East I D B,168176,75.46
"Department for Business, Energy and Industrial Strategy",The Coal Authority,17/10/2023,Subsistence Allowances,SEPA Metal Mine Programme,Staff Control Expenses,166808,4.7
"Department for Business, Energy and Industrial Strategy",The Coal Authority,23/10/2023,Subsistence Allowances,Corporate Programme Office,Staff Control Expenses,166808,21.58
"Department for Business, Energy and Industrial Strategy",The Coal Authority,23/10/2023,Subsistence Allowances,PS&S - General Claims,Staff Control Expenses,166808,4.16
"Department for Business, Energy and Industrial Strategy",The Coal Authority,24/10/2023,Subsistence Allowances,Corporate Programme Office,Staff Control Expenses,166808,20.37
"Department for Business, Energy and Industrial Strategy",The Coal Authority,25/10/2023,Subsistence Allowances,Corporate Programme Office,Staff Control Expenses,166808,29.81
"Department for Business, Energy and Industrial Strategy",The Coal Authority,26/10/2023,Subsistence Allowances,Corporate Programme Office,Staff Control Expenses,166808,35.26
"Department for Business, Energy and Industrial Strategy",The Coal Authority,27/10/2023,Subsistence Allowances,Corporate Programme Office,Staff Control Expenses,166808,9.24
"Department for Business, Energy and Industrial Strategy",The Coal Authority,02/10/2023,Subsistence Allowances,ENV - Mine Water Operations,Staff Control Expenses,167326,13.7
"Department for Business, Energy and Industrial Strategy",The Coal Authority,03/10/2023,Subsistence Allowances,Other Customers,Staff Control Expenses,167326,2.25
"Department for Business, Energy and Industrial Strategy",The Coal Authority,17/10/2023,Subsistence Allowances,Customer Services & Strategy,Staff Control Expenses,167326,21.45
"Department for Business, Energy and Industrial Strategy",The Coal Authority,18/10/2023,Subsistence Allowances,DIG - GIS,Staff Control Expenses,167326,4.95
"Department for Business, Energy and Industrial Strategy",The Coal Authority,18/10/2023,Subsistence Allowances,DIG - GIS,Staff Control Expenses,167326,2.08
"Department for Business, Energy and Industrial Strategy",The Coal Authority,31/10/2023,Subsistence Allowances,DEFRA LEP Funding,Staff Control Expenses,167326,26.9
"Department for Business, Energy and Industrial Strategy",The Coal Authority,06/11/2023,Subsistence Allowances,ENV - Mine Water Operations,Staff Control Expenses,167326,20.06
"Department for Business, Energy and Industrial Strategy",The Coal Authority,06/11/2023,Subsistence Allowances,Finance,Staff Control Expenses,167326,22.95
"Department for Business, Energy and Industrial Strategy",The Coal Authority,06/11/2023,Subsistence Allowances,Finance,Staff Control Expenses,167326,4.55
"Department for Business, Energy and Industrial Strategy",The Coal Authority,06/11/2023,Subsistence Allowances,Heat & By-Product Innovation,Staff Control Expenses,167326,8.95
"Department for Business, Energy and Industrial Strategy",The Coal Authority,06/11/2023,Subsistence Allowances,Heat & By-Product Innovation,Staff Control Expenses,167326,2.16
"Department for Business, Energy and Industrial Strategy",The Coal Authority,06/11/2023,Subsistence Allowances,Heat & By-Product Innovation,Staff Control Expenses,167326,4.88
"Department for Business, Energy and Industrial Strategy",The Coal Authority,07/11/2023,Subsistence Allowances,ENV - Mine Water Operations,Staff Control Expenses,167326,4.55
"Department for Business, Energy and Industrial Strategy",The Coal Authority,07/11/2023,Subsistence Allowances,Heat & By-Product Innovation,Staff Control Expenses,167326,6.25
"Department for Business, Energy and Industrial Strategy",The Coal Authority,11/07/2023,Subsistence Allowances,ENV - Projects & Delivery,Staff Control Expenses,167721,4.4
"Department for Business, Energy and Industrial Strategy",The Coal Authority,11/07/2023,Subsistence Allowances,ENV - Projects & Delivery,Staff Control Expenses,167721,14.12
"Department for Business, Energy and Industrial Strategy",The Coal Authority,03/10/2023,Subsistence Allowances,ENV - Salinity Programme,Staff Control Expenses,167721,16.55
"Department for Business, Energy and Industrial Strategy",The Coal Authority,04/10/2023,Subsistence Allowances,ENV - Salinity Programme,Staff Control Expenses,167721,4.25
"Department for Business, Energy and Industrial Strategy",The Coal Authority,17/10/2023,Subsistence Allowances,ENV - Salinity Programme,Staff Control Expenses,167721,18.29
"Department for Business, Energy and Industrial Strategy",The Coal Authority,18/10/2023,Subsistence Allowances,ENV - Salinity Programme,Staff Control Expenses,167721,3.79
"Department for Business, Energy and Industrial Strategy",The Coal Authority,26/10/2023,Subsistence Allowances,ENV - Projects & Delivery,Staff Control Expenses,167721,12.4
"Department for Business, Energy and Industrial Strategy",The Coal Authority,26/10/2023,Subsistence Allowances,ENV - Projects & Delivery,Staff Control Expenses,167721,7.65
"Department for Business, Energy and Industrial Strategy",The Coal Authority,26/10/2023,Subsistence Allowances,ENV - Projects & Delivery,Staff Control Expenses,167721,4.2
"Department for Business, Energy and Industrial Strategy",The Coal Authority,01/11/2023,Subsistence Allowances,Engineering,Staff Control Expenses,167721,27.47
"Department for Business, Energy and Industrial Strategy",The Coal Authority,01/11/2023,Subsistence Allowances,Engineering,Staff Control Expenses,167721,27.48
"Department for Business, Energy and Industrial Strategy",The Coal Authority,10/11/2023,Subsistence Allowances,DEFRA LEP Funding,Staff Control Expenses,167721,5.1
"Department for Business, Energy and Industrial Strategy",The Coal Authority,17/07/2023,Subsistence Allowances,DEFRA Metal Mine Programme,Government Procurement Card,167975,3.6
